Council Name,Date,TransNo,Amount � (Excl VAT),Supplier name,Supplier Category,Expense Area,Expense Type,Expense Code,Unclaimed VAT
Royal Borough of Kingston,23/03/2022,70021470,"2,982.00",1st Malden Scouts Group,SUNDRY SUPPLIER - FINANCE,Adult Social Care & Health,"Grants, Contributions & Donations",A47005,0
Royal Borough of Kingston,28/02/2022,70019479,"12,625.00",31TEN CONSULTING LIMITED,TEMP STAFF & CONSULTANCY,Corporate & Communities,Consultancy Services,A56007,0
Royal Borough of Kingston,28/02/2022,70020230,"15,000.00",31TEN CONSULTING LIMITED,TEMP STAFF & CONSULTANCY,Corporate & Communities,Consultancy Services,A56007,0
Royal Borough of Kingston,31/03/2022,70020497,"40,000.00",31TEN CONSULTING LIMITED,TEMP STAFF & CONSULTANCY,Corporate & Communities,Consultancy Services,A56007,0
Royal Borough of Kingston,11/11/2021,70020520,"2,000.00",31TEN CONSULTING LIMITED,TEMP STAFF & CONSULTANCY,Place,Property-Related Professional Fees,A20035,0
Royal Borough of Kingston,31/03/2022,70020733,"12,625.00",31TEN CONSULTING LIMITED,TEMP STAFF & CONSULTANCY,Corporate & Communities,Consultancy Services,A56007,0
Royal Borough of Kingston,30/03/2022,90091701,"1,314.08",REDACTED - PERSONAL DATA,PLS LANDLORDS,Place,PSL Payments To Landlords,A22031,0
Royal Borough of Kingston,30/03/2022,90091756,"1,314.00",REDACTED - PERSONAL DATA,PLS LANDLORDS,Place,PSL Payments To Landlords,A22031,0
Royal Borough of Kingston,30/03/2022,90091589,"1,097.00",REDACTED - PERSONAL DATA,PLS LANDLORDS,Place,PSL Payments To Landlords,A22031,0
Royal Borough of Kingston,30/03/2022,90091658,"1,094.00",REDACTED - PERSONAL DATA,PLS LANDLORDS,Place,PSL Payments To Landlords,A22031,0
Royal Borough of Kingston,30/03/2022,90091745,"2,300.00",REDACTED - PERSONAL DATA,PLS LANDLORDS,Place,PSL Payments To Landlords,A22031,0
Royal Borough of Kingston,30/03/2022,90091746,"2,300.00",REDACTED - PERSONAL DATA,PLS LANDLORDS,Place,PSL Payments To Landlords,A22031,0
Royal Borough of Kingston,30/03/2022,90091747,"2,300.00",REDACTED - PERSONAL DATA,PLS LANDLORDS,Place,PSL Payments To Landlords,A22031,0
Royal Borough of Kingston,30/03/2022,90091921,"2,300.00",REDACTED - PERSONAL DATA,PLS LANDLORDS,Place,PSL Payments To Landlords,A22031,0
Royal Borough of Kingston,30/03/2022,90091697,993.34,REDACTED - PERSONAL DATA,PLS LANDLORDS,Place,PSL Payments To Landlords,A22031,0
Royal Borough of Kingston,01/03/2022,90085031,"1,306.80",ABACUS PRE-SCHOOL,ACADEMIC INSTNS - OTHER,Schools,2 Yr Old Place Funding,A60000,0
Royal Borough of Kingston,01/03/2022,90085076,"10,533.60",ABACUS PRE-SCHOOL,ACADEMIC INSTNS - OTHER,Schools,PVI Providers,A60014,0
Royal Borough of Kingston,01/03/2022,90089945,"3,697.86",ABBEY 14LIMITED,SOCIAL SERVICES RESIDENTIAL,Adult Social Care & Health,Independent Placements,A56006,0
Royal Borough of Kingston,01/03/2022,90085247,"1,560.00",ABBEYFIELD,SOCIAL SERVICES RESIDENTIAL,Adult Social Care & Health,Independent Placements,A56006,0
Royal Borough of Kingston,01/03/2022,90085248,"1,800.00",ABBEYFIELD,SOCIAL SERVICES RESIDENTIAL,Adult Social Care & Health,Independent Placements,A56006,0
Royal Borough of Kingston,01/03/2022,90085253,"1,920.00",ABBEYFIELD,SOCIAL SERVICES RESIDENTIAL,Adult Social Care & Health,Independent Placements,A56006,0
Royal Borough of Kingston,01/03/2022,90085254,"3,720.00",ABBEYFIELD,SOCIAL SERVICES RESIDENTIAL,Adult Social Care & Health,Independent Placements,A56006,0
Royal Borough of Kingston,01/03/2022,90085255,"1,560.00",ABBEYFIELD,SOCIAL SERVICES RESIDENTIAL,Adult Social Care & Health,Independent Placements,A56006,0
Royal Borough of Kingston,01/03/2022,90085256,814.29,ABBEYFIELD,SOCIAL SERVICES RESIDENTIAL,Adult Social Care & Health,Independent Placements,A56006,0
Royal Borough of Kingston,01/03/2022,90085257,"4,207.14",ABBEYFIELD,SOCIAL SERVICES RESIDENTIAL,Adult Social Care & Health,Independent Placements,A56006,0
Royal Borough of Kingston,01/03/2022,90085258,"4,071.43",ABBEYFIELD,SOCIAL SERVICES RESIDENTIAL,Adult Social Care & Health,Independent Placements,A56006,0
Royal Borough of Kingston,01/03/2022,90085259,"4,207.14",ABBEYFIELD,SOCIAL SERVICES RESIDENTIAL,Adult Social Care & Health,Independent Placements,A56006,0
Royal Borough of Kingston,01/03/2022,90085260,"4,207.14",ABBEYFIELD,SOCIAL SERVICES RESIDENTIAL,Adult Social Care & Health,Independent Placements,A56006,0
Royal Borough of Kingston,01/03/2022,90085261,"3,800.00",ABBEYFIELD,SOCIAL SERVICES RESIDENTIAL,Adult Social Care & Health,Independent Placements,A56006,0
Royal Borough of Kingston,01/03/2022,90089251,"2,280.00",ABBEYFIELD,SOCIAL SERVICES RESIDENTIAL,Adult Social Care & Health,Independent Placements,A56006,0
Royal Borough of Kingston,01/03/2022,90089252,"1,800.00",ABBEYFIELD,SOCIAL SERVICES RESIDENTIAL,Adult Social Care & Health,Independent Placements,A56006,0
Royal Borough of Kingston,01/03/2022,90089257,840,ABBEYFIELD,SOCIAL SERVICES RESIDENTIAL,Adult Social Care & Health,Other Private Contractors - Third Party,A56080,0
Royal Borough of Kingston,24/03/2022,90089303,"1,785.39",ABBEYFIELD,SOCIAL SERVICES RESIDENTIAL,Adult Social Care & Health,"Grants, Contributions & Donations",A47005,0
Royal Borough of Kingston,26/03/2022,90089366,"5,365.00",ABBEYFIELD,SOCIAL SERVICES RESIDENTIAL,Adult Social Care & Health,"Grants, Contributions & Donations",A47005,0
Royal Borough of Kingston,01/03/2022,90089695,"1,200.00",ABBEYFIELD,SOCIAL SERVICES RESIDENTIAL,Adult Social Care & Health,Independent Placements,A56006,0
Royal Borough of Kingston,01/03/2022,90089702,"1,320.00",ABBEYFIELD,SOCIAL SERVICES RESIDENTIAL,Adult Social Care & Health,Independent Placements,A56006,0
Royal Borough of Kingston,01/03/2022,90089707,"3,720.00",ABBEYFIELD,SOCIAL SERVICES RESIDENTIAL,Adult Social Care & Health,Independent Placements,A56006,0
Royal Borough of Kingston,01/03/2022,90089815,"3,720.00",ABBEYFIELD,SOCIAL SERVICES RESIDENTIAL,Adult Social Care & Health,Independent Placements,A56006,0
Royal Borough of Kingston,01/03/2022,90089816,"3,720.00",ABBEYFIELD,SOCIAL SERVICES RESIDENTIAL,Adult Social Care & Health,Independent Placements,A56006,0
Royal Borough of Kingston,01/03/2022,90089817,"3,720.00",ABBEYFIELD,SOCIAL SERVICES RESIDENTIAL,Adult Social Care & Health,Independent Placements,A56006,0
Royal Borough of Kingston,01/03/2022,90089819,"3,720.00",ABBEYFIELD,SOCIAL SERVICES RESIDENTIAL,Adult Social Care & Health,Independent Placements,A56006,0
Royal Borough of Kingston,01/03/2022,90089848,"3,720.00",ABBEYFIELD,SOCIAL SERVICES RESIDENTIAL,Adult Social Care & Health,Independent Placements,A56006,0
Royal Borough of Kingston,01/03/2022,90089850,"3,600.00",ABBEYFIELD,SOCIAL SERVICES RESIDENTIAL,Adult Social Care & Health,Independent Placements,A56006,0
Royal Borough of Kingston,01/03/2022,90089851,"3,720.00",ABBEYFIELD,SOCIAL SERVICES RESIDENTIAL,Adult Social Care & Health,Independent Placements,A56006,0
Royal Borough of Kingston,01/03/2022,90089852,"3,720.00",ABBEYFIELD,SOCIAL SERVICES RESIDENTIAL,Adult Social Care & Health,Independent Placements,A56006,0
Royal Borough of Kingston,01/03/2022,90089853,"3,360.00",ABBEYFIELD,SOCIAL SERVICES RESIDENTIAL,Adult Social Care & Health,Independent Placements,A56006,0
Royal Borough of Kingston,01/03/2022,90089854,"3,720.00",ABBEYFIELD,SOCIAL SERVICES RESIDENTIAL,Adult Social Care & Health,Independent Placements,A56006,0
Royal Borough of Kingston,01/03/2022,90089856,"3,720.00",ABBEYFIELD,SOCIAL SERVICES RESIDENTIAL,Adult Social Care & Health,Independent Placements,A56006,0
Royal Borough of Kingston,01/03/2022,90089862,"3,720.00",ABBEYFIELD,SOCIAL SERVICES RESIDENTIAL,Adult Social Care & Health,Independent Placements,A56006,0
Royal Borough of Kingston,01/03/2022,90089875,"1,680.00",ABBEYFIELD,SOCIAL SERVICES RESIDENTIAL,Adult Social Care & Health,Independent Placements,A56006,0
Royal Borough of Kingston,01/03/2022,90089883,"3,720.00",ABBEYFIELD,SOCIAL SERVICES RESIDENTIAL,Adult Social Care & Health,Independent Placements,A56006,0
Royal Borough of Kingston,01/03/2022,90089885,"3,720.00",ABBEYFIELD,SOCIAL SERVICES RESIDENTIAL,Adult Social Care & Health,Independent Placements,A56006,0
Royal Borough of Kingston,01/03/2022,90089930,"3,985.71",ABBEYFIELD,SOCIAL SERVICES RESIDENTIAL,Adult Social Care & Health,Independent Placements,A56006,0
Royal Borough of Kingston,01/03/2022,90089939,"3,720.00",ABBEYFIELD,SOCIAL SERVICES RESIDENTIAL,Adult Social Care & Health,Independent Placements,A56006,0
Royal Borough of Kingston,01/03/2022,90089944,"3,985.71",ABBEYFIELD,SOCIAL SERVICES RESIDENTIAL,Adult Social Care & Health,Independent Placements,A56006,0
Royal Borough of Kingston,01/03/2022,90089967,"3,720.00",ABBEYFIELD,SOCIAL SERVICES RESIDENTIAL,Adult Social Care & Health,Independent Placements,A56006,0
Royal Borough of Kingston,01/03/2022,90089988,"4,207.14",ABBEYFIELD,SOCIAL SERVICES RESIDENTIAL,Adult Social Care & Health,Independent Placements,A56006,0
Royal Borough of Kingston,01/03/2022,90089990,"4,428.57",ABBEYFIELD,SOCIAL SERVICES RESIDENTIAL,Adult Social Care & Health,Independent Placements,A56006,0
Royal Borough of Kingston,01/03/2022,90089992,"3,720.00",ABBEYFIELD,SOCIAL SERVICES RESIDENTIAL,Adult Social Care & Health,Independent Placements,A56006,0
Royal Borough of Kingston,01/03/2022,90089997,"3,720.00",ABBEYFIELD,SOCIAL SERVICES RESIDENTIAL,Adult Social Care & Health,Independent Placements,A56006,0
Royal Borough of Kingston,01/03/2022,90090007,"3,720.00",ABBEYFIELD,SOCIAL SERVICES RESIDENTIAL,Adult Social Care & Health,Independent Placements,A56006,0
Royal Borough of Kingston,01/03/2022,90090122,"2,520.00",ABBEYFIELD,SOCIAL SERVICES RESIDENTIAL,Adult Social Care & Health,Other Private Contractors - Third Party,A56080,0
Royal Borough of Kingston,01/03/2022,90090125,"1,800.00",ABBEYFIELD,SOCIAL SERVICES RESIDENTIAL,Adult Social Care & Health,Other Private Contractors - Third Party,A56080,0
Royal Borough of Kingston,01/03/2022,90091395,"5,425.00",ABC HILLINGDON LTD,ACCOMMODATION - OTHER,Adult Social Care & Health,Personal Budget - Third Party,A61019,0
Royal Borough of Kingston,30/03/2022,90091707,990.58,REDACTED - PERSONAL DATA,PLS LANDLORDS,Place,PSL Payments To Landlords,A22031,0
Royal Borough of Kingston,25/02/2022,70018913,"1,125.00",AC & MS LIMITED,LEGAL & PROFESSIONAL SERVICES,Housing Revenue Account,Asbestos Audit,A20042,0
Royal Borough of Kingston,01/03/2022,90084969,572.4,ACACIA PRE-SCHOOL,ACADEMIC INSTNS - OTHER,Schools,PVI Providers,A60014,0
Royal Borough of Kingston,01/03/2022,90085032,"3,005.64",ACACIA PRE-SCHOOL,ACADEMIC INSTNS - OTHER,Schools,2 Yr Old Place Funding,A60000,0
Royal Borough of Kingston,01/03/2022,90085077,"15,717.41",ACACIA PRE-SCHOOL,ACADEMIC INSTNS - OTHER,Schools,PVI Providers,A60014,0
Royal Borough of Kingston,28/10/2021,70018931,"1,620.00",ACCESS INDEPENDENT LIMITED,SOCIAL SERVICES - OTHER,Adult Social Care & Health,Other Private Contractors - Third Party,A56080,0
Royal Borough of Kingston,30/03/2022,90091994,"1,047.00",Accountancy Services (New Malden) Limited,PLS LANDLORDS,Place,PSL Payments To Landlords,A22031,0
Royal Borough of Kingston,25/02/2022,70018958,"284,069.65",ACHIEVING FOR CHILDREN LIMITED,LEGAL & PROFESSIONAL SERVICES,Adult Social Care & Health,Education Allowance,A60008,0
Royal Borough of Kingston,02/03/2022,70019384,"46,800.00",ACHIEVING FOR CHILDREN LIMITED,LEGAL & PROFESSIONAL SERVICES,Adult Social Care & Health,Other Private Contractors - Third Party,A56080,0
Royal Borough of Kingston,25/02/2022,70019512,980,ACHIEVING FOR CHILDREN LIMITED,LEGAL & PROFESSIONAL SERVICES,Adult Social Care & Health,Education Allowance,A60008,0
Royal Borough of Kingston,25/02/2022,70019618,"6,465.51",ACHIEVING FOR CHILDREN LIMITED,LEGAL & PROFESSIONAL SERVICES,Adult Social Care & Health,Variations To Childrens Services Contract,A51021,0
Royal Borough of Kingston,08/03/2022,70019684,"5,311,941.72",ACHIEVING FOR CHILDREN LIMITED,LEGAL & PROFESSIONAL SERVICES,Learning & Childrens Services,Fixed Childrens Services Contract Strategic,A51019,0
Royal Borough of Kingston,23/03/2022,70020949,"10,000.00",ACHIEVING FOR CHILDREN LIMITED,LEGAL & PROFESSIONAL SERVICES,Adult Social Care & Health,Other Private Contractors - Third Party,A56080,0
Royal Borough of Kingston,23/03/2022,70020950,"4,000.00",ACHIEVING FOR CHILDREN LIMITED,LEGAL & PROFESSIONAL SERVICES,Adult Social Care & Health,Other Private Contractors - Third Party,A56080,0
Royal Borough of Kingston,24/03/2022,70021025,"25,000.00",ACHIEVING FOR CHILDREN LIMITED,LEGAL & PROFESSIONAL SERVICES,Corporate & Communities,Professional Fees,A44066,0
Royal Borough of Kingston,24/03/2022,70021390,"3,006.02",ACHIEVING FOR CHILDREN LIMITED,LEGAL & PROFESSIONAL SERVICES,Adult Social Care & Health,"Grants, Contributions & Donations",A47005,0
Royal Borough of Kingston,01/03/2022,90085012,"1,166.40",Acorn to Oak Nursery and Preschool Ltd,CHILDMINDERS START UP GRANT,Schools,PVI Providers,A60014,0
Royal Borough of Kingston,01/03/2022,90085033,"3,049.20",Acorn to Oak Nursery and Preschool Ltd,CHILDMINDERS START UP GRANT,Schools,2 Yr Old Place Funding,A60000,0
Royal Borough of Kingston,01/03/2022,90085078,"33,503.23",Acorn to Oak Nursery and Preschool Ltd,CHILDMINDERS START UP GRANT,Schools,PVI Providers,A60014,0
Royal Borough of Kingston,04/03/2022,70019614,980,ADAM HOTEL MANAGEMENT LTD,ACCOMMODATION BED & BREAKFAST,Place,Bed & Breakfast,A56000,0
Royal Borough of Kingston,04/03/2022,70019616,"1,176.00",ADAM HOTEL MANAGEMENT LTD,ACCOMMODATION BED & BREAKFAST,Place,Bed & Breakfast,A56000,0
Royal Borough of Kingston,04/03/2022,70019617,980,ADAM HOTEL MANAGEMENT LTD,ACCOMMODATION BED & BREAKFAST,Place,Bed & Breakfast,A56000,0
Royal Borough of Kingston,04/03/2022,70020609,"1,176.00",ADAM HOTEL MANAGEMENT LTD,ACCOMMODATION BED & BREAKFAST,Place,Bed & Breakfast,A56000,0
Royal Borough of Kingston,28/02/2022,70019277,"1,176.00",ADAM HOTELS UK LIMITED,ACCOMMODATION BED & BREAKFAST,Place,Bed & Breakfast,A56000,0
Royal Borough of Kingston,16/02/2022,70018432,"14,450.24",ADAM HTT LIMITED,TAXI AND COACH HIRE,Adult Social Care & Health,Home To School Transport Taxis,A33016,0
Royal Borough of Kingston,23/02/2022,70018868,"3,213.80",ADAM HTT LIMITED,TAXI AND COACH HIRE,Adult Social Care & Health,Home To School Transport Taxis,A33016,0
Royal Borough of Kingston,02/03/2022,70019413,"12,446.72",ADAM HTT LIMITED,TAXI AND COACH HIRE,Adult Social Care & Health,Home To School Transport Taxis,A33016,0
Royal Borough of Kingston,09/03/2022,70019962,"19,142.78",ADAM HTT LIMITED,TAXI AND COACH HIRE,Adult Social Care & Health,Home To School Transport Taxis,A33016,0
Royal Borough of Kingston,16/03/2022,70021357,"14,805.02",ADAM HTT LIMITED,TAXI AND COACH HIRE,Adult Social Care & Health,Home To School Transport Taxis,A33016,0
Royal Borough of Kingston,23/03/2022,70021358,"14,393.62",ADAM HTT LIMITED,TAXI AND COACH HIRE,Adult Social Care & Health,Home To School Transport Taxis,A33016,0
Royal Borough of Kingston,30/03/2022,70021465,"12,740.30",ADAM HTT LIMITED,TAXI AND COACH HIRE,Adult Social Care & Health,Home To School Transport Taxis,A33016,0
Royal Borough of Kingston,01/03/2022,90085162,"2,872.80",REDACTED - PERSONAL DATA,CHILDMINDERS START UP GRANT,Schools,PVI Providers,A60014,0
Royal Borough of Kingston,24/02/2022,70018910,"1,473.85",ADVANCED TREE SERVICES LIMITED,CONSTRUCTION INDUSTRY,Corporate & Communities,Maintenance of trees,A28003,0
Royal Borough of Kingston,24/02/2022,70018911,75,ADVANCED TREE SERVICES LIMITED,CONSTRUCTION INDUSTRY,Corporate & Communities,Maintenance of trees,A28003,0
Royal Borough of Kingston,24/02/2022,70018911,225,ADVANCED TREE SERVICES LIMITED,CONSTRUCTION INDUSTRY,Corporate & Communities,Maintenance of trees,A28003,0
Royal Borough of Kingston,24/02/2022,70018911,791.67,ADVANCED TREE SERVICES LIMITED,CONSTRUCTION INDUSTRY,Corporate & Communities,Maintenance of trees,A28003,0
Royal Borough of Kingston,24/02/2022,70018911,58.33,ADVANCED TREE SERVICES LIMITED,CONSTRUCTION INDUSTRY,Corporate & Communities,Maintenance of trees,A28003,0
Royal Borough of Kingston,24/02/2022,70018911,300,ADVANCED TREE SERVICES LIMITED,CONSTRUCTION INDUSTRY,Corporate & Communities,Maintenance of trees,A28003,0
Royal Borough of Kingston,24/02/2022,70018911,458.33,ADVANCED TREE SERVICES LIMITED,CONSTRUCTION INDUSTRY,Corporate & Communities,Maintenance of trees,A28003,0
Royal Borough of Kingston,24/02/2022,70018911,791.67,ADVANCED TREE SERVICES LIMITED,CONSTRUCTION INDUSTRY,Corporate & Communities,Maintenance of trees,A28003,0
Royal Borough of Kingston,01/03/2022,70019113,"15,884.00",ADVANCED TREE SERVICES LIMITED,CONSTRUCTION INDUSTRY,Corporate & Communities,Maintenance of trees,A28003,0
Royal Borough of Kingston,09/03/2022,70019890,"3,240.00",ADVANCED TREE SERVICES LIMITED,CONSTRUCTION INDUSTRY,Housing Revenue Account,Maintenance of trees,A28003,0
Royal Borough of Kingston,14/03/2022,70020172,"1,300.00",ADVANCED TREE SERVICES LIMITED,CONSTRUCTION INDUSTRY,Housing Revenue Account,Tree Works,A56042,0
Royal Borough of Kingston,14/03/2022,70020178,"15,000.00",ADVANCED TREE SERVICES LIMITED,CONSTRUCTION INDUSTRY,Corporate & Communities,Maintenance of trees,A28003,0
Royal Borough of Kingston,14/03/2022,70020185,"5,000.00",ADVANCED TREE SERVICES LIMITED,CONSTRUCTION INDUSTRY,Corporate & Communities,Other Private Contractors - Third Party,A56080,0
Royal Borough of Kingston,15/03/2022,70020237,"10,000.00",ADVANCED TREE SERVICES LIMITED,CONSTRUCTION INDUSTRY,Corporate & Communities,Maintenance of trees,A28003,0
Royal Borough of Kingston,15/03/2022,70020238,"2,460.00",ADVANCED TREE SERVICES LIMITED,CONSTRUCTION INDUSTRY,Corporate & Communities,Maintenance of trees,A28003,0
Royal Borough of Kingston,15/03/2022,70020239,"2,250.00",ADVANCED TREE SERVICES LIMITED,CONSTRUCTION INDUSTRY,Corporate & Communities,Maintenance of trees,A28003,0
Royal Borough of Kingston,15/03/2022,70020240,"1,948.00",ADVANCED TREE SERVICES LIMITED,CONSTRUCTION INDUSTRY,Corporate & Communities,Maintenance of trees,A28003,0
Royal Borough of Kingston,15/03/2022,70020241,"3,000.00",ADVANCED TREE SERVICES LIMITED,CONSTRUCTION INDUSTRY,Corporate & Communities,Maintenance of trees,A28003,0
Royal Borough of Kingston,15/03/2022,70020271,"1,162.00",ADVANCED TREE SERVICES LIMITED,CONSTRUCTION INDUSTRY,Corporate & Communities,Maintenance of trees,A28003,0
Royal Borough of Kingston,15/03/2022,70020272,442,ADVANCED TREE SERVICES LIMITED,CONSTRUCTION INDUSTRY,Corporate & Communities,Maintenance of trees,A28003,0
Royal Borough of Kingston,15/03/2022,70020273,"28,148.00",ADVANCED TREE SERVICES LIMITED,CONSTRUCTION INDUSTRY,Corporate & Communities,Maintenance of trees,A28003,0
Royal Borough of Kingston,23/03/2022,70020919,"4,703.09",ADVANCED TREE SERVICES LIMITED,CONSTRUCTION INDUSTRY,Corporate & Communities,Maintenance of trees,A28003,0
Royal Borough of Kingston,23/03/2022,70020920,"2,951.20",ADVANCED TREE SERVICES LIMITED,CONSTRUCTION INDUSTRY,Corporate & Communities,Maintenance of trees,A28003,0
Royal Borough of Kingston,01/03/2022,90084970,763.2,ADVANTAGE DAY NURSERY LTD,ACADEMIC INSTNS - OTHER,Schools,PVI Providers,A60014,0
Royal Borough of Kingston,01/03/2022,90085034,"9,583.20",ADVANTAGE DAY NURSERY LTD,ACADEMIC INSTNS - OTHER,Schools,2 Yr Old Place Funding,A60000,0
Royal Borough of Kingston,01/03/2022,90085079,"75,267.36",ADVANTAGE DAY NURSERY LTD,ACADEMIC INSTNS - OTHER,Schools,PVI Providers,A60014,0
Royal Borough of Kingston,01/02/2022,70019121,960,AGE CONCERN KINGSTON UPON THAMES,GRANTS & EX GRATIA PAYMENTS,Adult Social Care & Health,Payments to Voluntary Organisations,A54005,0
Royal Borough of Kingston,28/02/2022,70019470,"1,300.00",AGE CONCERN KINGSTON UPON THAMES,GRANTS & EX GRATIA PAYMENTS,Adult Social Care & Health,Payments to Voluntary Organisations,A54005,0
Royal Borough of Kingston,24/02/2022,70018907,"2,950.42",AGENTO DIGITAL LIMITED,BUSINESS & COMPUTER SYSTEMS,Corporate & Communities,Cloud Services,A45007,0
Royal Borough of Kingston,07/02/2022,70017808,895,Agile Change Management Limited,TRAINING,Corporate & Communities,Staff Development And Training,A15022,0
Royal Borough of Kingston,21/03/2022,90088450,957.6,REDACTED - PERSONAL DATA,CHILDMINDERS START UP GRANT,Schools,PVI Providers,A60014,0
Royal Borough of Kingston,24/03/2022,90089291,"2,276.37",AID WITH CARE LIMITED,GRANTS & EX GRATIA PAYMENTS,Adult Social Care & Health,"Grants, Contributions & Donations",A47005,0
Royal Borough of Kingston,26/02/2022,70020235,"74,692.80",ALCOVE LIMITED,BUSINESS & COMPUTER SYSTEMS,Adult Social Care & Health,Equipment And Materials Purchase,A40000,0
Royal Borough of Kingston,01/02/2022,70020341,"2,160.00",ALCOVE LIMITED,BUSINESS & COMPUTER SYSTEMS,Adult Social Care & Health,Equipment And Materials Purchase,A40000,0
Royal Borough of Kingston,30/03/2022,90091786,"1,094.00",REDACTED - PERSONAL DATA,LANDLORDS,Place,PSL Payments To Landlords,A22031,0
Royal Borough of Kingston,14/03/2022,70020175,"30,302.38",ALEXANDRA SCHOOL,CENTRAL & LOCAL GOVERNMENT,Capital Programme,Purchase of Furniture & Equipment,C16000,0
Royal Borough of Kingston,15/03/2022,70020311,"1,794.73",ALEXANDRA SCHOOL,CENTRAL & LOCAL GOVERNMENT,Learning & Childrens Services,MSF Claims Support Staff - Internal Trading,A46108,0
Royal Borough of Kingston,15/03/2022,70020312,"3,880.00",ALEXANDRA SCHOOL,CENTRAL & LOCAL GOVERNMENT,Learning & Childrens Services,MSF Claims Teaching Staff - Internal Trading,A46107,0
Royal Borough of Kingston,01/03/2022,90085080,"28,459.87",ALEXANDRA SCHOOL,CENTRAL & LOCAL GOVERNMENT,Schools,Miscellaneous Expenses,A49000,0
Royal Borough of Kingston,04/03/2022,90085272,"162,959.08",ALEXANDRA SCHOOL,CENTRAL & LOCAL GOVERNMENT,Schools,Miscellaneous Expenses,A49000,0
Royal Borough of Kingston,28/03/2022,90089621,"21,520.00",ALEXANDRA SCHOOL,CENTRAL & LOCAL GOVERNMENT,Schools,Miscellaneous Expenses,A49000,0
Royal Borough of Kingston,28/03/2022,90089623,"2,345.00",ALEXANDRA SCHOOL,CENTRAL & LOCAL GOVERNMENT,Schools,Miscellaneous Expenses,A49000,0
Royal Borough of Kingston,30/03/2022,90091529,"2,312.75",ALEXANDRA SCHOOL,CENTRAL & LOCAL GOVERNMENT,Capital Programme,Payments to Contractors,C14000,0
Royal Borough of Kingston,30/03/2022,90091984,"1,050.00",REDACTED - PERSONAL DATA,PLS LANDLORDS,Place,PSL Payments To Landlords,A22031,0
Royal Borough of Kingston,30/03/2022,90091938,780,REDACTED - PERSONAL DATA,PLS LANDLORDS,Place,PSL Payments To Landlords,A22031,0
Royal Borough of Kingston,30/03/2022,90091939,931.66,REDACTED - PERSONAL DATA,PLS LANDLORDS,Place,PSL Payments To Landlords,A22031,0
Royal Borough of Kingston,30/03/2022,90091940,780,REDACTED - PERSONAL DATA,PLS LANDLORDS,Place,PSL Payments To Landlords,A22031,0
Royal Borough of Kingston,30/03/2022,90091941,931.66,REDACTED - PERSONAL DATA,PLS LANDLORDS,Place,PSL Payments To Landlords,A22031,0
Royal Borough of Kingston,30/03/2022,90091603,"1,314.00",REDACTED - PERSONAL DATA,PLS LANDLORDS,Place,PSL Payments To Landlords,A22031,0
Royal Borough of Kingston,21/02/2022,90086135,543.38,ALPENBEST LTD,SOCIAL SERVICES DAY CARE,Adult Social Care & Health,Homecare - new framework,A56127,0
Royal Borough of Kingston,21/02/2022,90086169,784.88,ALPENBEST LTD,SOCIAL SERVICES DAY CARE,Adult Social Care & Health,Homecare - new framework,A56127,0
Royal Borough of Kingston,21/02/2022,90086204,543.38,ALPENBEST LTD,SOCIAL SERVICES DAY CARE,Adult Social Care & Health,Homecare - new framework,A56127,0
Royal Borough of Kingston,21/02/2022,90086209,552,ALPENBEST LTD,SOCIAL SERVICES DAY CARE,Adult Social Care & Health,Homecare - new framework,A56127,0
Royal Borough of Kingston,21/02/2022,90086217,500.25,ALPENBEST LTD,SOCIAL SERVICES DAY CARE,Adult Social Care & Health,Homecare - new framework,A56127,0
Royal Borough of Kingston,21/02/2022,90086221,"1,449.00",ALPENBEST LTD,SOCIAL SERVICES DAY CARE,Adult Social Care & Health,Homecare - new framework,A56127,0
Royal Borough of Kingston,21/02/2022,90086233,603.75,ALPENBEST LTD,SOCIAL SERVICES DAY CARE,Adult Social Care & Health,Homecare - new framework,A56127,0
Royal Borough of Kingston,21/02/2022,90086258,543.38,ALPENBEST LTD,SOCIAL SERVICES DAY CARE,Adult Social Care & Health,Homecare - new framework,A56127,0
Royal Borough of Kingston,21/02/2022,90086277,603.75,ALPENBEST LTD,SOCIAL SERVICES DAY CARE,Adult Social Care & Health,Homecare - new framework,A56127,0
Royal Borough of Kingston,21/02/2022,90086303,517.5,ALPENBEST LTD,SOCIAL SERVICES DAY CARE,Adult Social Care & Health,Homecare - new framework,A56127,0
Royal Borough of Kingston,21/02/2022,90086310,603.75,ALPENBEST LTD,SOCIAL SERVICES DAY CARE,Adult Social Care & Health,Homecare - new framework,A56127,0
Royal Borough of Kingston,21/02/2022,90086311,560.63,ALPENBEST LTD,SOCIAL SERVICES DAY CARE,Adult Social Care & Health,Homecare - new framework,A56127,0
Royal Borough of Kingston,21/02/2022,90086409,603.75,ALPENBEST LTD,SOCIAL SERVICES DAY CARE,Adult Social Care & Health,Homecare - new framework,A56127,0
Royal Borough of Kingston,21/02/2022,90086415,543.38,ALPENBEST LTD,SOCIAL SERVICES DAY CARE,Adult Social Care & Health,Homecare - new framework,A56127,0
Royal Borough of Kingston,21/02/2022,90086460,543.38,ALPENBEST LTD,SOCIAL SERVICES DAY CARE,Adult Social Care & Health,Homecare - new framework,A56127,0
Royal Borough of Kingston,21/02/2022,90086473,655.5,ALPENBEST LTD,SOCIAL SERVICES DAY CARE,Adult Social Care & Health,Homecare - new framework,A56127,0
Royal Borough of Kingston,21/02/2022,90086515,543.38,ALPENBEST LTD,SOCIAL SERVICES DAY CARE,Adult Social Care & Health,Homecare - new framework,A56127,0
Royal Borough of Kingston,21/02/2022,90086540,595.13,ALPENBEST LTD,SOCIAL SERVICES DAY CARE,Adult Social Care & Health,Homecare - new framework,A56127,0
Royal Borough of Kingston,21/02/2022,90086556,715.88,ALPENBEST LTD,SOCIAL SERVICES DAY CARE,Adult Social Care & Health,Homecare - new framework,A56127,0
Royal Borough of Kingston,21/02/2022,90086572,603.75,ALPENBEST LTD,SOCIAL SERVICES DAY CARE,Adult Social Care & Health,Homecare - new framework,A56127,0
Royal Borough of Kingston,21/02/2022,90086720,724.5,ALPENBEST LTD,SOCIAL SERVICES DAY CARE,Adult Social Care & Health,Personal Budget - Third Party,A61019,0
Royal Borough of Kingston,21/02/2022,90086755,603.75,ALPENBEST LTD,SOCIAL SERVICES DAY CARE,Adult Social Care & Health,Personal Budget - Third Party,A61019,0
Royal Borough of Kingston,28/02/2022,90087464,543.38,ALPENBEST LTD,SOCIAL SERVICES DAY CARE,Adult Social Care & Health,Homecare - new framework,A56127,0
Royal Borough of Kingston,28/02/2022,90087486,784.88,ALPENBEST LTD,SOCIAL SERVICES DAY CARE,Adult Social Care & Health,Homecare - new framework,A56127,0
Royal Borough of Kingston,28/02/2022,90087526,543.38,ALPENBEST LTD,SOCIAL SERVICES DAY CARE,Adult Social Care & Health,Homecare - new framework,A56127,0
Royal Borough of Kingston,28/02/2022,90087531,552,ALPENBEST LTD,SOCIAL SERVICES DAY CARE,Adult Social Care & Health,Homecare - new framework,A56127,0
Royal Borough of Kingston,28/02/2022,90087539,517.5,ALPENBEST LTD,SOCIAL SERVICES DAY CARE,Adult Social Care & Health,Homecare - new framework,A56127,0
Royal Borough of Kingston,28/02/2022,90087543,"1,449.00",ALPENBEST LTD,SOCIAL SERVICES DAY CARE,Adult Social Care & Health,Homecare - new framework,A56127,0
Royal Borough of Kingston,28/02/2022,90087554,603.75,ALPENBEST LTD,SOCIAL SERVICES DAY CARE,Adult Social Care & Health,Homecare - new framework,A56127,0
Royal Borough of Kingston,28/02/2022,90087576,543.38,ALPENBEST LTD,SOCIAL SERVICES DAY CARE,Adult Social Care & Health,Homecare - new framework,A56127,0
Royal Borough of Kingston,28/02/2022,90087603,603.75,ALPENBEST LTD,SOCIAL SERVICES DAY CARE,Adult Social Care & Health,Homecare - new framework,A56127,0
Royal Borough of Kingston,28/02/2022,90087633,543.38,ALPENBEST LTD,SOCIAL SERVICES DAY CARE,Adult Social Care & Health,Homecare - new framework,A56127,0
Royal Borough of Kingston,28/02/2022,90087640,603.75,ALPENBEST LTD,SOCIAL SERVICES DAY CARE,Adult Social Care & Health,Homecare - new framework,A56127,0
Royal Borough of Kingston,28/02/2022,90087641,577.88,ALPENBEST LTD,SOCIAL SERVICES DAY CARE,Adult Social Care & Health,Homecare - new framework,A56127,0
Royal Borough of Kingston,28/02/2022,90087712,612.38,ALPENBEST LTD,SOCIAL SERVICES DAY CARE,Adult Social Care & Health,Homecare - new framework,A56127,0
Royal Borough of Kingston,28/02/2022,90087718,543.38,ALPENBEST LTD,SOCIAL SERVICES DAY CARE,Adult Social Care & Health,Homecare - new framework,A56127,0
Royal Borough of Kingston,28/02/2022,90087746,500.25,ALPENBEST LTD,SOCIAL SERVICES DAY CARE,Adult Social Care & Health,Homecare - new framework,A56127,0
Royal Borough of Kingston,28/02/2022,90087784,543.38,ALPENBEST LTD,SOCIAL SERVICES DAY CARE,Adult Social Care & Health,Homecare - new framework,A56127,0
Royal Borough of Kingston,28/02/2022,90087822,543.38,ALPENBEST LTD,SOCIAL SERVICES DAY CARE,Adult Social Care & Health,Homecare - new framework,A56127,0
Royal Borough of Kingston,28/02/2022,90087858,595.13,ALPENBEST LTD,SOCIAL SERVICES DAY CARE,Adult Social Care & Health,Homecare - new framework,A56127,0
Royal Borough of Kingston,28/02/2022,90087874,715.88,ALPENBEST LTD,SOCIAL SERVICES DAY CARE,Adult Social Care & Health,Homecare - new framework,A56127,0
Royal Borough of Kingston,28/02/2022,90087888,603.75,ALPENBEST LTD,SOCIAL SERVICES DAY CARE,Adult Social Care & Health,Homecare - new framework,A56127,0
Royal Borough of Kingston,28/02/2022,90087988,500.25,ALPENBEST LTD,SOCIAL SERVICES DAY CARE,Adult Social Care & Health,Homecare - new framework,A56127,0
Royal Borough of Kingston,28/02/2022,90088030,724.5,ALPENBEST LTD,SOCIAL SERVICES DAY CARE,Adult Social Care & Health,Personal Budget - Third Party,A61019,0
Royal Borough of Kingston,28/02/2022,90088109,603.75,ALPENBEST LTD,SOCIAL SERVICES DAY CARE,Adult Social Care & Health,Personal Budget - Third Party,A61019,0
Royal Borough of Kingston,07/03/2022,90088519,543.38,ALPENBEST LTD,SOCIAL SERVICES DAY CARE,Adult Social Care & Health,Homecare - new framework,A56127,0
Royal Borough of Kingston,07/03/2022,90088538,784.88,ALPENBEST LTD,SOCIAL SERVICES DAY CARE,Adult Social Care & Health,Homecare - new framework,A56127,0
Royal Borough of Kingston,07/03/2022,90088580,543.38,ALPENBEST LTD,SOCIAL SERVICES DAY CARE,Adult Social Care & Health,Homecare - new framework,A56127,0
Royal Borough of Kingston,07/03/2022,90088585,552,ALPENBEST LTD,SOCIAL SERVICES DAY CARE,Adult Social Care & Health,Homecare - new framework,A56127,0
Royal Borough of Kingston,07/03/2022,90088601,"1,449.00",ALPENBEST LTD,SOCIAL SERVICES DAY CARE,Adult Social Care & Health,Homecare - new framework,A56127,0
Royal Borough of Kingston,07/03/2022,90088613,603.75,ALPENBEST LTD,SOCIAL SERVICES DAY CARE,Adult Social Care & Health,Homecare - new framework,A56127,0
Royal Borough of Kingston,07/03/2022,90088636,508.88,ALPENBEST LTD,SOCIAL SERVICES DAY CARE,Adult Social Care & Health,Homecare - new framework,A56127,0
Royal Borough of Kingston,07/03/2022,90088659,603.75,ALPENBEST LTD,SOCIAL SERVICES DAY CARE,Adult Social Care & Health,Homecare - new framework,A56127,0
Royal Borough of Kingston,07/03/2022,90088689,543.38,ALPENBEST LTD,SOCIAL SERVICES DAY CARE,Adult Social Care & Health,Homecare - new framework,A56127,0
Royal Borough of Kingston,07/03/2022,90088696,603.75,ALPENBEST LTD,SOCIAL SERVICES DAY CARE,Adult Social Care & Health,Homecare - new framework,A56127,0
Royal Borough of Kingston,07/03/2022,90088697,560.63,ALPENBEST LTD,SOCIAL SERVICES DAY CARE,Adult Social Care & Health,Homecare - new framework,A56127,0
Royal Borough of Kingston,07/03/2022,90088771,603.75,ALPENBEST LTD,SOCIAL SERVICES DAY CARE,Adult Social Care & Health,Homecare - new framework,A56127,0
Royal Borough of Kingston,07/03/2022,90088777,543.38,ALPENBEST LTD,SOCIAL SERVICES DAY CARE,Adult Social Care & Health,Homecare - new framework,A56127,0
Royal Borough of Kingston,07/03/2022,90088794,-500.25,ALPENBEST LTD,SOCIAL SERVICES DAY CARE,Adult Social Care & Health,Homecare - new framework,A56127,0
Royal Borough of Kingston,07/03/2022,90088795,-500.25,ALPENBEST LTD,SOCIAL SERVICES DAY CARE,Adult Social Care & Health,Homecare - new framework,A56127,0
Royal Borough of Kingston,07/03/2022,90088829,543.38,ALPENBEST LTD,SOCIAL SERVICES DAY CARE,Adult Social Care & Health,Homecare - new framework,A56127,0
Royal Borough of Kingston,07/03/2022,90088880,543.38,ALPENBEST LTD,SOCIAL SERVICES DAY CARE,Adult Social Care & Health,Homecare - new framework,A56127,0
Royal Borough of Kingston,07/03/2022,90088907,595.13,ALPENBEST LTD,SOCIAL SERVICES DAY CARE,Adult Social Care & Health,Homecare - new framework,A56127,0
Royal Borough of Kingston,07/03/2022,90088923,715.88,ALPENBEST LTD,SOCIAL SERVICES DAY CARE,Adult Social Care & Health,Homecare - new framework,A56127,0
Royal Borough of Kingston,07/03/2022,90088938,603.75,ALPENBEST LTD,SOCIAL SERVICES DAY CARE,Adult Social Care & Health,Homecare - new framework,A56127,0
Royal Borough of Kingston,07/03/2022,90089064,724.5,ALPENBEST LTD,SOCIAL SERVICES DAY CARE,Adult Social Care & Health,Personal Budget - Third Party,A61019,0
Royal Borough of Kingston,07/03/2022,90089101,603.75,ALPENBEST LTD,SOCIAL SERVICES DAY CARE,Adult Social Care & Health,Personal Budget - Third Party,A61019,0
Royal Borough of Kingston,24/03/2022,90089277,"8,628.17",ALPENBEST LTD,SOCIAL SERVICES DAY CARE,Adult Social Care & Health,"Grants, Contributions & Donations",A47005,0
Royal Borough of Kingston,26/03/2022,90089374,"11,315.00",ALPENBEST LTD,SOCIAL SERVICES DAY CARE,Adult Social Care & Health,"Grants, Contributions & Donations",A47005,0
Royal Borough of Kingston,26/03/2022,90089375,"6,558.00",ALPENBEST LTD,SOCIAL SERVICES DAY CARE,Adult Social Care & Health,"Grants, Contributions & Donations",A47005,0
Royal Borough of Kingston,14/03/2022,90090303,543.38,ALPENBEST LTD,SOCIAL SERVICES DAY CARE,Adult Social Care & Health,Homecare - new framework,A56127,0
Royal Borough of Kingston,14/03/2022,90090317,543.38,ALPENBEST LTD,SOCIAL SERVICES DAY CARE,Adult Social Care & Health,Homecare - new framework,A56127,0
Royal Borough of Kingston,14/03/2022,90090318,-543.38,ALPENBEST LTD,SOCIAL SERVICES DAY CARE,Adult Social Care & Health,Homecare - new framework,A56127,0
Royal Borough of Kingston,14/03/2022,90090319,543.38,ALPENBEST LTD,SOCIAL SERVICES DAY CARE,Adult Social Care & Health,Homecare - new framework,A56127,0
Royal Borough of Kingston,14/03/2022,90090320,-543.38,ALPENBEST LTD,SOCIAL SERVICES DAY CARE,Adult Social Care & Health,Homecare - new framework,A56127,0
Royal Borough of Kingston,14/03/2022,90090321,543.38,ALPENBEST LTD,SOCIAL SERVICES DAY CARE,Adult Social Care & Health,Homecare - new framework,A56127,0
Royal Borough of Kingston,14/03/2022,90090322,-543.38,ALPENBEST LTD,SOCIAL SERVICES DAY CARE,Adult Social Care & Health,Homecare - new framework,A56127,0
Royal Borough of Kingston,14/03/2022,90090324,-543.38,ALPENBEST LTD,SOCIAL SERVICES DAY CARE,Adult Social Care & Health,Homecare - new framework,A56127,0
Royal Borough of Kingston,14/03/2022,90090325,-543.38,ALPENBEST LTD,SOCIAL SERVICES DAY CARE,Adult Social Care & Health,Homecare - new framework,A56127,0
Royal Borough of Kingston,14/03/2022,90090326,-543.38,ALPENBEST LTD,SOCIAL SERVICES DAY CARE,Adult Social Care & Health,Homecare - new framework,A56127,0
Royal Borough of Kingston,14/03/2022,90090327,-543.38,ALPENBEST LTD,SOCIAL SERVICES DAY CARE,Adult Social Care & Health,Homecare - new framework,A56127,0
Royal Borough of Kingston,14/03/2022,90090328,-543.38,ALPENBEST LTD,SOCIAL SERVICES DAY CARE,Adult Social Care & Health,Homecare - new framework,A56127,0
Royal Borough of Kingston,14/03/2022,90090349,784.88,ALPENBEST LTD,SOCIAL SERVICES DAY CARE,Adult Social Care & Health,Homecare - new framework,A56127,0
Royal Borough of Kingston,14/03/2022,90090386,543.38,ALPENBEST LTD,SOCIAL SERVICES DAY CARE,Adult Social Care & Health,Homecare - new framework,A56127,0
Royal Borough of Kingston,14/03/2022,90090391,552,ALPENBEST LTD,SOCIAL SERVICES DAY CARE,Adult Social Care & Health,Homecare - new framework,A56127,0
Royal Borough of Kingston,14/03/2022,90090398,500.25,ALPENBEST LTD,SOCIAL SERVICES DAY CARE,Adult Social Care & Health,Homecare - new framework,A56127,0
Royal Borough of Kingston,14/03/2022,90090403,"1,449.00",ALPENBEST LTD,SOCIAL SERVICES DAY CARE,Adult Social Care & Health,Homecare - new framework,A56127,0
Royal Borough of Kingston,14/03/2022,90090415,603.75,ALPENBEST LTD,SOCIAL SERVICES DAY CARE,Adult Social Care & Health,Homecare - new framework,A56127,0
Royal Borough of Kingston,14/03/2022,90090459,603.75,ALPENBEST LTD,SOCIAL SERVICES DAY CARE,Adult Social Care & Health,Homecare - new framework,A56127,0
Royal Borough of Kingston,14/03/2022,90090484,543.38,ALPENBEST LTD,SOCIAL SERVICES DAY CARE,Adult Social Care & Health,Homecare - new framework,A56127,0
Royal Borough of Kingston,14/03/2022,90090491,603.75,ALPENBEST LTD,SOCIAL SERVICES DAY CARE,Adult Social Care & Health,Homecare - new framework,A56127,0
Royal Borough of Kingston,14/03/2022,90090492,577.88,ALPENBEST LTD,SOCIAL SERVICES DAY CARE,Adult Social Care & Health,Homecare - new framework,A56127,0
Royal Borough of Kingston,14/03/2022,90090571,603.75,ALPENBEST LTD,SOCIAL SERVICES DAY CARE,Adult Social Care & Health,Homecare - new framework,A56127,0
Royal Borough of Kingston,14/03/2022,90090573,543.38,ALPENBEST LTD,SOCIAL SERVICES DAY CARE,Adult Social Care & Health,Homecare - new framework,A56127,0
Royal Borough of Kingston,14/03/2022,90090574,543.38,ALPENBEST LTD,SOCIAL SERVICES DAY CARE,Adult Social Care & Health,Homecare - new framework,A56127,0
Royal Borough of Kingston,14/03/2022,90090575,543.38,ALPENBEST LTD,SOCIAL SERVICES DAY CARE,Adult Social Care & Health,Homecare - new framework,A56127,0
Royal Borough of Kingston,14/03/2022,90090576,543.38,ALPENBEST LTD,SOCIAL SERVICES DAY CARE,Adult Social Care & Health,Homecare - new framework,A56127,0
Royal Borough of Kingston,14/03/2022,90090577,543.38,ALPENBEST LTD,SOCIAL SERVICES DAY CARE,Adult Social Care & Health,Homecare - new framework,A56127,0
Royal Borough of Kingston,14/03/2022,90090582,543.38,ALPENBEST LTD,SOCIAL SERVICES DAY CARE,Adult Social Care & Health,Homecare - new framework,A56127,0
Royal Borough of Kingston,14/03/2022,90090624,552,ALPENBEST LTD,SOCIAL SERVICES DAY CARE,Adult Social Care & Health,Homecare - new framework,A56127,0
Royal Borough of Kingston,14/03/2022,90090639,724.5,ALPENBEST LTD,SOCIAL SERVICES DAY CARE,Adult Social Care & Health,Homecare - new framework,A56127,0
Royal Borough of Kingston,14/03/2022,90090660,543.38,ALPENBEST LTD,SOCIAL SERVICES DAY CARE,Adult Social Care & Health,Homecare - new framework,A56127,0
Royal Borough of Kingston,14/03/2022,90090685,595.13,ALPENBEST LTD,SOCIAL SERVICES DAY CARE,Adult Social Care & Health,Homecare - new framework,A56127,0
Royal Borough of Kingston,14/03/2022,90090702,715.88,ALPENBEST LTD,SOCIAL SERVICES DAY CARE,Adult Social Care & Health,Homecare - new framework,A56127,0
Royal Borough of Kingston,14/03/2022,90090716,603.75,ALPENBEST LTD,SOCIAL SERVICES DAY CARE,Adult Social Care & Health,Homecare - new framework,A56127,0
Royal Borough of Kingston,14/03/2022,90091275,724.5,ALPENBEST LTD,SOCIAL SERVICES DAY CARE,Adult Social Care & Health,Personal Budget - Third Party,A61019,0
Royal Borough of Kingston,14/03/2022,90091323,603.75,ALPENBEST LTD,SOCIAL SERVICES DAY CARE,Adult Social Care & Health,Personal Budget - Third Party,A61019,0
Royal Borough of Kingston,28/03/2022,70021217,"10,000.00",Alpha Phones,SUNDRY SUPPLIER - FINANCE,Place,"Grants, Contributions & Donations",A47005,0
Royal Borough of Kingston,30/11/2021,70018988,"9,950.00",ALTAIR CONSULTANCY AND ADVISORY SERVICES LTD,LEGAL & PROFESSIONAL SERVICES,Place,Property-Related Professional Fees,A20035,0
Royal Borough of Kingston,30/03/2022,90091720,"1,075.00",REDACTED - PERSONAL DATA,PLS LANDLORDS,Place,PSL Payments To Landlords,A22031,0
Royal Borough of Kingston,30/03/2022,90091578,"1,136.00",REDACTED - PERSONAL DATA,PLS LANDLORDS,Place,PSL Payments To Landlords,A22031,0
Royal Borough of Kingston,01/03/2022,90086097,700,ANCHOR TRUST -THAMESIDE,SOCIAL SERVICES RESIDENTIAL,Adult Social Care & Health,Independent Placements,A56006,0
Royal Borough of Kingston,18/01/2022,70019629,"2,600.00",Beyond Blocks,TRAINING,Corporate & Communities,Miscellaneous Expenses,A49000,0
Royal Borough of Kingston,30/03/2022,90091937,"1,314.00",REDACTED - PERSONAL DATA,PLS LANDLORDS,Place,PSL Payments To Landlords,A22031,0
Royal Borough of Kingston,30/03/2022,90091854,"1,094.00",REDACTED - PERSONAL DATA,PLS LANDLORDS,Place,PSL Payments To Landlords,A22031,0
Royal Borough of Kingston,18/02/2022,70020040,"3,828.46",ANGLIAN WATER BUSINESS NATIONAL LTD,UTILITIES,Place,Water Services,A24005,0
Royal Borough of Kingston,08/02/2022,70020057,644.23,ANGLIAN WATER BUSINESS NATIONAL LTD,UTILITIES,Corporate & Communities,Water Services,A24005,0
Royal Borough of Kingston,18/02/2022,70020062,983.23,ANGLIAN WATER BUSINESS NATIONAL LTD,UTILITIES,Housing Revenue Account,Water Services,A24005,0
Royal Borough of Kingston,18/02/2022,70020071,308.77,ANGLIAN WATER BUSINESS NATIONAL LTD,UTILITIES,Housing Revenue Account,Water Services,A24005,0
Royal Borough of Kingston,18/02/2022,70020071,418.39,ANGLIAN WATER BUSINESS NATIONAL LTD,UTILITIES,Housing Revenue Account,Water Services,A24005,0
Royal Borough of Kingston,19/01/2022,70020108,"34,206.89",ANGLIAN WATER BUSINESS NATIONAL LTD,UTILITIES,Corporate & Communities,Water Services,A24005,0
Royal Borough of Kingston,20/12/2021,70020109,"1,280.81",ANGLIAN WATER BUSINESS NATIONAL LTD,UTILITIES,Corporate & Communities,Water Services,A24005,0
Royal Borough of Kingston,30/03/2022,90091614,"1,094.00",REDACTED - PERSONAL DATA,PLS LANDLORDS,Place,PSL Payments To Landlords,A22031,0
Royal Borough of Kingston,30/03/2022,90091981,"1,047.00",REDACTED - PERSONAL DATA,PLS LANDLORDS,Place,PSL Payments To Landlords,A22031,0
Royal Borough of Kingston,04/11/2021,70018418,"-2,777.78",AON UK LTD,UTILITIES,Corporate & Communities,General Insurance (Excl Premises & Transport),A44260,0
Royal Borough of Kingston,04/11/2021,70018418,"9,500.00",AON UK LTD,UTILITIES,Corporate & Communities,General Insurance (Excl Premises & Transport),A44260,0
Royal Borough of Kingston,03/03/2022,70019368,"1,235.00",AP RENTAL INC LTD,LANDLORDS,Adult Social Care & Health,Housing Benefit - Rent Allowances -Private Tenants Only,A62009,0
Royal Borough of Kingston,03/03/2022,70019369,"1,260.00",AP RENTAL INC LTD,LANDLORDS,Adult Social Care & Health,Housing Benefit - Rent Allowances -Private Tenants Only,A62009,0
Royal Borough of Kingston,03/03/2022,70019370,"1,085.00",AP RENTAL INC LTD,LANDLORDS,Adult Social Care & Health,Housing Benefit - Rent Allowances -Private Tenants Only,A62009,0
Royal Borough of Kingston,03/03/2022,70019371,"1,200.00",AP RENTAL INC LTD,LANDLORDS,Adult Social Care & Health,Housing Benefit - Rent Allowances -Private Tenants Only,A62009,0
Royal Borough of Kingston,03/03/2022,70019372,"1,035.00",AP RENTAL INC LTD,LANDLORDS,Adult Social Care & Health,Housing Benefit - Rent Allowances -Private Tenants Only,A62009,0
Royal Borough of Kingston,03/03/2022,70019382,"1,235.00",AP RENTAL INC LTD,LANDLORDS,Adult Social Care & Health,Housing Benefit - Rent Allowances -Private Tenants Only,A62009,0
Royal Borough of Kingston,28/02/2022,70019575,"1,397.20",APEX HOUSING SOLUTIONS LTD,ACCOMMODATION BED & BREAKFAST,Place,Bed & Breakfast,A56000,0
Royal Borough of Kingston,28/02/2022,70019576,"1,176.00",APEX HOUSING SOLUTIONS LTD,ACCOMMODATION BED & BREAKFAST,Place,Bed & Breakfast,A56000,0
Royal Borough of Kingston,28/02/2022,70019577,"1,176.00",APEX HOUSING SOLUTIONS LTD,ACCOMMODATION BED & BREAKFAST,Place,Bed & Breakfast,A56000,0
Royal Borough of Kingston,28/02/2022,70019578,"2,352.00",APEX HOUSING SOLUTIONS LTD,ACCOMMODATION BED & BREAKFAST,Place,Bed & Breakfast,A56000,0
Royal Borough of Kingston,28/02/2022,70019579,"1,820.00",APEX HOUSING SOLUTIONS LTD,ACCOMMODATION BED & BREAKFAST,Place,Bed & Breakfast,A56000,0
Royal Borough of Kingston,28/02/2022,70019580,"1,397.20",APEX HOUSING SOLUTIONS LTD,ACCOMMODATION BED & BREAKFAST,Place,Bed & Breakfast,A56000,0
Royal Borough of Kingston,28/02/2022,70019582,"1,397.20",APEX HOUSING SOLUTIONS LTD,ACCOMMODATION BED & BREAKFAST,Place,Bed & Breakfast,A56000,0
Royal Borough of Kingston,28/02/2022,70019583,"1,341.20",APEX HOUSING SOLUTIONS LTD,ACCOMMODATION BED & BREAKFAST,Place,Bed & Breakfast,A56000,0
Royal Borough of Kingston,28/02/2022,70019584,"1,736.00",APEX HOUSING SOLUTIONS LTD,ACCOMMODATION BED & BREAKFAST,Place,Bed & Breakfast,A56000,0
Royal Borough of Kingston,28/02/2022,70019585,"1,428.00",APEX HOUSING SOLUTIONS LTD,ACCOMMODATION BED & BREAKFAST,Place,Bed & Breakfast,A56000,0
Royal Borough of Kingston,28/02/2022,70019586,"1,512.00",APEX HOUSING SOLUTIONS LTD,ACCOMMODATION BED & BREAKFAST,Place,Bed & Breakfast,A56000,0
Royal Borough of Kingston,28/02/2022,70019587,"1,743.00",APEX HOUSING SOLUTIONS LTD,ACCOMMODATION BED & BREAKFAST,Place,Bed & Breakfast,A56000,0
Royal Borough of Kingston,28/02/2022,70019588,"1,736.00",APEX HOUSING SOLUTIONS LTD,ACCOMMODATION BED & BREAKFAST,Place,Bed & Breakfast,A56000,0
Royal Borough of Kingston,28/02/2022,70019589,"1,397.20",APEX HOUSING SOLUTIONS LTD,ACCOMMODATION BED & BREAKFAST,Place,Bed & Breakfast,A56000,0
Royal Borough of Kingston,28/02/2022,70019590,"1,428.00",APEX HOUSING SOLUTIONS LTD,ACCOMMODATION BED & BREAKFAST,Place,Bed & Breakfast,A56000,0
Royal Borough of Kingston,28/02/2022,70019591,"1,176.00",APEX HOUSING SOLUTIONS LTD,ACCOMMODATION BED & BREAKFAST,Place,Bed & Breakfast,A56000,0
Royal Borough of Kingston,28/02/2022,70019592,"1,176.00",APEX HOUSING SOLUTIONS LTD,ACCOMMODATION BED & BREAKFAST,Place,Bed & Breakfast,A56000,0
Royal Borough of Kingston,28/02/2022,70019593,"1,512.00",APEX HOUSING SOLUTIONS LTD,ACCOMMODATION BED & BREAKFAST,Place,Bed & Breakfast,A56000,0
Royal Borough of Kingston,28/02/2022,70019594,"1,288.00",APEX HOUSING SOLUTIONS LTD,ACCOMMODATION BED & BREAKFAST,Place,Bed & Breakfast,A56000,0
Royal Borough of Kingston,28/02/2022,70019776,"1,428.00",APEX HOUSING SOLUTIONS LTD,ACCOMMODATION BED & BREAKFAST,Place,Bed & Breakfast,A56000,0
Royal Borough of Kingston,28/02/2022,70019777,"1,512.00",APEX HOUSING SOLUTIONS LTD,ACCOMMODATION BED & BREAKFAST,Place,Bed & Breakfast,A56000,0
Royal Borough of Kingston,28/02/2022,70019779,"1,988.00",APEX HOUSING SOLUTIONS LTD,ACCOMMODATION BED & BREAKFAST,Place,Bed & Breakfast,A56000,0
Royal Borough of Kingston,28/02/2022,70019780,"1,397.20",APEX HOUSING SOLUTIONS LTD,ACCOMMODATION BED & BREAKFAST,Place,Bed & Breakfast,A56000,0
Royal Borough of Kingston,28/02/2022,70019781,"1,512.00",APEX HOUSING SOLUTIONS LTD,ACCOMMODATION BED & BREAKFAST,Place,Bed & Breakfast,A56000,0
Royal Borough of Kingston,28/02/2022,70019782,"1,036.00",APEX HOUSING SOLUTIONS LTD,ACCOMMODATION BED & BREAKFAST,Place,Bed & Breakfast,A56000,0
Royal Borough of Kingston,28/02/2022,70019783,"1,512.00",APEX HOUSING SOLUTIONS LTD,ACCOMMODATION BED & BREAKFAST,Place,Bed & Breakfast,A56000,0
Royal Borough of Kingston,28/02/2022,70019784,"1,397.20",APEX HOUSING SOLUTIONS LTD,ACCOMMODATION BED & BREAKFAST,Place,Bed & Breakfast,A56000,0
Royal Borough of Kingston,28/02/2022,70019785,588,APEX HOUSING SOLUTIONS LTD,ACCOMMODATION BED & BREAKFAST,Place,Bed & Breakfast,A56000,0
Royal Borough of Kingston,28/02/2022,70019786,"1,176.00",APEX HOUSING SOLUTIONS LTD,ACCOMMODATION BED & BREAKFAST,Place,Bed & Breakfast,A56000,0
Royal Borough of Kingston,28/02/2022,70019787,"1,341.20",APEX HOUSING SOLUTIONS LTD,ACCOMMODATION BED & BREAKFAST,Place,Bed & Breakfast,A56000,0
Royal Borough of Kingston,28/02/2022,70019788,"1,428.00",APEX HOUSING SOLUTIONS LTD,ACCOMMODATION BED & BREAKFAST,Place,Bed & Breakfast,A56000,0
Royal Borough of Kingston,28/02/2022,70019789,"1,176.00",APEX HOUSING SOLUTIONS LTD,ACCOMMODATION BED & BREAKFAST,Place,Bed & Breakfast,A56000,0
Royal Borough of Kingston,28/02/2022,70019790,"1,792.00",APEX HOUSING SOLUTIONS LTD,ACCOMMODATION BED & BREAKFAST,Place,Bed & Breakfast,A56000,0
Royal Borough of Kingston,28/02/2022,70019791,"1,820.00",APEX HOUSING SOLUTIONS LTD,ACCOMMODATION BED & BREAKFAST,Place,Bed & Breakfast,A56000,0
Royal Borough of Kingston,28/02/2022,70019792,"1,397.20",APEX HOUSING SOLUTIONS LTD,ACCOMMODATION BED & BREAKFAST,Place,Bed & Breakfast,A56000,0
Royal Borough of Kingston,28/02/2022,70019793,"1,176.00",APEX HOUSING SOLUTIONS LTD,ACCOMMODATION BED & BREAKFAST,Place,Bed & Breakfast,A56000,0
Royal Borough of Kingston,28/02/2022,70019794,"1,428.00",APEX HOUSING SOLUTIONS LTD,ACCOMMODATION BED & BREAKFAST,Place,Bed & Breakfast,A56000,0
Royal Borough of Kingston,28/02/2022,70019795,"1,148.00",APEX HOUSING SOLUTIONS LTD,ACCOMMODATION BED & BREAKFAST,Place,Bed & Breakfast,A56000,0
Royal Borough of Kingston,31/12/2021,70020094,583,APEX HOUSING SOLUTIONS LTD,ACCOMMODATION BED & BREAKFAST,Place,Bed & Breakfast,A56000,0
Royal Borough of Kingston,28/02/2022,70019069,"6,599.58",AQUAVENT LIMITED,BUILDING MNTCE - SERVICES,Housing Revenue Account,Water Testing & Treatment,A20037,0
Royal Borough of Kingston,30/03/2022,90091804,899,REDACTED - PERSONAL DATA,PLS LANDLORDS,Place,PSL Payments To Landlords,A22031,0
Royal Borough of Kingston,30/03/2022,90091596,"1,093.50",REDACTED - PERSONAL DATA,PLS LANDLORDS,Place,PSL Payments To Landlords,A22031,0
Royal Borough of Kingston,30/03/2022,90091662,"1,314.00",REDACTED - PERSONAL DATA,PLS LANDLORDS,Place,PSL Payments To Landlords,A22031,0
Royal Borough of Kingston,30/03/2022,90091796,"1,093.50",REDACTED - PERSONAL DATA,PLS LANDLORDS,Place,PSL Payments To Landlords,A22031,0
Royal Borough of Kingston,30/03/2022,90091797,833.33,REDACTED - PERSONAL DATA,PLS LANDLORDS,Place,PSL Payments To Landlords,A22031,0
Royal Borough of Kingston,30/03/2022,90092000,"1,047.00",REDACTED - PERSONAL DATA,PLS LANDLORDS,Place,PSL Payments To Landlords,A22031,0
Royal Borough of Kingston,30/03/2022,90092001,"1,047.00",REDACTED - PERSONAL DATA,PLS LANDLORDS,Place,PSL Payments To Landlords,A22031,0
Royal Borough of Kingston,26/03/2022,90089378,556,ASHCROFT CARE SERVICES LIMITED,SOCIAL SERVICES RESIDENTIAL,Adult Social Care & Health,"Grants, Contributions & Donations",A47005,0
Royal Borough of Kingston,01/03/2022,90090094,"6,067.14",ASHCROFT CARE SERVICES LIMITED,SOCIAL SERVICES RESIDENTIAL,Adult Social Care & Health,Independent Placements,A56006,0
Royal Borough of Kingston,01/03/2022,90091197,899,ASHINGTON HOUSE LTD,SOCIAL SERVICES RESIDENTIAL,Adult Social Care & Health,Personal Budget - Third Party,A61019,0
Royal Borough of Kingston,01/03/2022,90091126,"1,274.10",ASHPRIME PROPERTIES LTD,SOCIAL SERVICES RESIDENTIAL,Adult Social Care & Health,Personal Budget - Third Party,A61019,0
Royal Borough of Kingston,30/03/2022,90091865,"1,317.00",REDACTED - PERSONAL DATA,PLS LANDLORDS,Place,PSL Payments To Landlords,A22031,0
Royal Borough of Kingston,07/02/2022,70018410,"1,113.34",ASKEWS AND HOLTS LIBRARY SERVICES LTD,BOOKS PUBLICATIONS STATIONERY,Corporate & Communities,Books,A43050,0
Royal Borough of Kingston,07/02/2022,70018415,788.81,ASKEWS AND HOLTS LIBRARY SERVICES LTD,BOOKS PUBLICATIONS STATIONERY,Corporate & Communities,Books,A43050,0
Royal Borough of Kingston,07/02/2022,70019011,"2,578.78",ASKEWS AND HOLTS LIBRARY SERVICES LTD,BOOKS PUBLICATIONS STATIONERY,Corporate & Communities,Books,A43050,0
Royal Borough of Kingston,01/03/2022,90091176,"2,507.55",Aspirations Care Ltd,SOCIAL SERVICES - OTHER,Adult Social Care & Health,Personal Budget - Third Party,A61019,0
Royal Borough of Kingston,26/03/2022,90089380,"1,423.00",ASPREY HEALTHCARE LTD,SOCIAL SERVICES RESIDENTIAL,Adult Social Care & Health,"Grants, Contributions & Donations",A47005,0
Royal Borough of Kingston,01/03/2022,90089835,"5,048.57",ASPREY HEALTHCARE LTD,SOCIAL SERVICES RESIDENTIAL,Adult Social Care & Health,Independent Placements,A56006,0
Royal Borough of Kingston,01/03/2022,90089934,"3,801.93",ASPREY HEALTHCARE LTD,SOCIAL SERVICES RESIDENTIAL,Adult Social Care & Health,Independent Placements,A56006,0
Royal Borough of Kingston,01/03/2022,90089942,"4,361.04",ASPREY HEALTHCARE LTD,SOCIAL SERVICES RESIDENTIAL,Adult Social Care & Health,Independent Placements,A56006,0
Royal Borough of Kingston,01/03/2022,90089807,"4,669.93",ASTORIA HEALTHCARE LTD,SOCIAL SERVICES RESIDENTIAL,Adult Social Care & Health,Independent Placements,A56006,0
Royal Borough of Kingston,01/03/2022,70019071,"27,937.80",ATLANTIC DATA LIMITED,TEMP STAFF & CONSULTANCY,Corporate & Communities,DBS Checks,A15029,0
Royal Borough of Kingston,01/03/2022,70019071,"10,653.53",ATLANTIC DATA LIMITED,TEMP STAFF & CONSULTANCY,Corporate & Communities,DBS Checks,A15029,0
Royal Borough of Kingston,30/03/2022,90091793,"1,094.34",AUMKARA INVESTMENTS LTD,PLS LANDLORDS,Place,PSL Payments To Landlords,A22031,0
Royal Borough of Kingston,30/03/2022,90091794,"1,094.34",AUMKARA INVESTMENTS LTD,PLS LANDLORDS,Place,PSL Payments To Landlords,A22031,0
Royal Borough of Kingston,30/03/2022,90091795,"1,094.34",AUMKARA INVESTMENTS LTD,PLS LANDLORDS,Place,PSL Payments To Landlords,A22031,0
Royal Borough of Kingston,26/03/2022,90089382,"1,000.00",AUTISM CONSULTANTS LTD,SOCIAL SERVICES RESIDENTIAL,Adult Social Care & Health,"Grants, Contributions & Donations",A47005,0
Royal Borough of Kingston,01/03/2022,90090028,"10,919.17",AUTISM CONSULTANTS LTD,SOCIAL SERVICES RESIDENTIAL,Adult Social Care & Health,Independent Placements,A56006,0
Royal Borough of Kingston,25/02/2022,70019144,"1,433.50",AVICENNA PSYCHIATRY,SOCIAL SERVICES - OTHER,Adult Social Care & Health,Other Private Contractors - Third Party,A56080,0
Royal Borough of Kingston,25/03/2022,70021151,"1,772.65",AVICENNA PSYCHIATRY,SOCIAL SERVICES - OTHER,Adult Social Care & Health,Other Private Contractors - Third Party,A56080,0
Royal Borough of Kingston,10/12/2021,70014277,"12,890.00",AXIS EUROPE PLC,CONSTRUCTION INDUSTRY,Capital Programme,Council Dwellings - Construction & Renovation,C10002,0
Royal Borough of Kingston,19/01/2022,70016448,"6,070.00",AXIS EUROPE PLC,CONSTRUCTION INDUSTRY,Capital Programme,Council Dwellings - Construction & Renovation,C10002,0
Royal Borough of Kingston,07/02/2022,70017692,"3,636.74",AXIS EUROPE PLC,CONSTRUCTION INDUSTRY,Capital Programme,Council Dwellings - Construction & Renovation,C10002,0
Royal Borough of Kingston,11/02/2022,70018084,"2,072.00",AXIS EUROPE PLC,CONSTRUCTION INDUSTRY,Capital Programme,Council Dwellings - Construction & Renovation,C10002,0
Royal Borough of Kingston,14/02/2022,70018129,"4,859.53",AXIS EUROPE PLC,CONSTRUCTION INDUSTRY,Capital Programme,Council Dwellings - Capitalised Voids,C10001,0
Royal Borough of Kingston,14/02/2022,70018132,"1,111.00",AXIS EUROPE PLC,CONSTRUCTION INDUSTRY,Capital Programme,Council Dwellings - Capitalised Voids,C10001,0
Royal Borough of Kingston,14/02/2022,70018133,"29,195.15",AXIS EUROPE PLC,CONSTRUCTION INDUSTRY,Capital Programme,Council Dwellings - Capitalised Voids,C10001,0
Royal Borough of Kingston,14/02/2022,70018137,"1,566.76",AXIS EUROPE PLC,CONSTRUCTION INDUSTRY,Capital Programme,Council Dwellings - Capitalised Voids,C10001,0
Royal Borough of Kingston,14/02/2022,70018138,"1,393.95",AXIS EUROPE PLC,CONSTRUCTION INDUSTRY,Capital Programme,Council Dwellings - Capitalised Voids,C10001,0
Royal Borough of Kingston,14/02/2022,70018141,932.72,AXIS EUROPE PLC,CONSTRUCTION INDUSTRY,Capital Programme,Council Dwellings - Capitalised Voids,C10001,0
Royal Borough of Kingston,14/02/2022,70018143,"13,262.94",AXIS EUROPE PLC,CONSTRUCTION INDUSTRY,Capital Programme,Disabled Adaptations,C20003,0
Royal Borough of Kingston,14/02/2022,70018144,"4,359.20",AXIS EUROPE PLC,CONSTRUCTION INDUSTRY,Capital Programme,Council Dwellings - Capitalised Voids,C10001,0
Royal Borough of Kingston,14/02/2022,70018145,"1,463.32",AXIS EUROPE PLC,CONSTRUCTION INDUSTRY,Capital Programme,Council Dwellings - Capitalised Voids,C10001,0
Royal Borough of Kingston,14/02/2022,70018147,"1,040.87",AXIS EUROPE PLC,CONSTRUCTION INDUSTRY,Capital Programme,Council Dwellings - Capitalised Voids,C10001,0
Royal Borough of Kingston,14/02/2022,70018149,"2,024.52",AXIS EUROPE PLC,CONSTRUCTION INDUSTRY,Capital Programme,Council Dwellings - Capitalised Voids,C10001,0
Royal Borough of Kingston,14/02/2022,70018150,"1,705.14",AXIS EUROPE PLC,CONSTRUCTION INDUSTRY,Capital Programme,Council Dwellings - Capitalised Voids,C10001,0
Royal Borough of Kingston,14/02/2022,70018152,538.94,AXIS EUROPE PLC,CONSTRUCTION INDUSTRY,Capital Programme,Council Dwellings - Capitalised Voids,C10001,0
Royal Borough of Kingston,14/02/2022,70018156,559.37,AXIS EUROPE PLC,CONSTRUCTION INDUSTRY,Capital Programme,Council Dwellings - Capitalised Voids,C10001,0
Royal Borough of Kingston,14/02/2022,70018157,"8,333.76",AXIS EUROPE PLC,CONSTRUCTION INDUSTRY,Capital Programme,Council Dwellings - Capitalised Voids,C10001,0
Royal Borough of Kingston,14/02/2022,70018159,"7,436.37",AXIS EUROPE PLC,CONSTRUCTION INDUSTRY,Capital Programme,Council Dwellings - Capitalised Voids,C10001,0
Royal Borough of Kingston,17/02/2022,70018441,"3,296.83",AXIS EUROPE PLC,CONSTRUCTION INDUSTRY,Housing Revenue Account,Housing - Heating & Ventilation,A20045,0
Royal Borough of Kingston,17/02/2022,70018443,991.65,AXIS EUROPE PLC,CONSTRUCTION INDUSTRY,Place,Void Property Repairs,A20036,0
Royal Borough of Kingston,17/02/2022,70018444,"1,621.82",AXIS EUROPE PLC,CONSTRUCTION INDUSTRY,Housing Revenue Account,Electrical Repairs,A20002,0
Royal Borough of Kingston,17/02/2022,70018445,"1,150.94",AXIS EUROPE PLC,CONSTRUCTION INDUSTRY,Housing Revenue Account,Void Property Repairs,A20036,0
Royal Borough of Kingston,17/02/2022,70018447,"6,536.66",AXIS EUROPE PLC,CONSTRUCTION INDUSTRY,Housing Revenue Account,Property Repairs & Maintenance & Alterations - Responsive,A20011,0
Royal Borough of Kingston,21/02/2022,70018534,"1,366.40",AXIS EUROPE PLC,CONSTRUCTION INDUSTRY,Capital Programme,Council Dwellings - Design & Planning,C10003,0
Royal Borough of Kingston,21/02/2022,70018535,"2,698.04",AXIS EUROPE PLC,CONSTRUCTION INDUSTRY,Adult Social Care & Health,Lift Servicing And Repairs,A20006,0
Royal Borough of Kingston,25/02/2022,70018926,"5,029.70",AXIS EUROPE PLC,CONSTRUCTION INDUSTRY,Capital Programme,Council Dwellings - Construction & Renovation,C10002,0
Royal Borough of Kingston,25/02/2022,70018927,"7,987.15",AXIS EUROPE PLC,CONSTRUCTION INDUSTRY,Capital Programme,Council Dwellings - Construction & Renovation,C10002,0
Royal Borough of Kingston,17/02/2022,70018928,"1,603.38",AXIS EUROPE PLC,CONSTRUCTION INDUSTRY,Housing Revenue Account,Void Property Repairs,A20036,0
Royal Borough of Kingston,28/02/2022,70018990,"5,122.31",AXIS EUROPE PLC,CONSTRUCTION INDUSTRY,Capital Programme,Council Dwellings - Construction & Renovation,C10002,0
Royal Borough of Kingston,28/02/2022,70018995,"25,909.41",AXIS EUROPE PLC,CONSTRUCTION INDUSTRY,Place,Void Property Repairs,A20036,0
Royal Borough of Kingston,28/02/2022,70018996,"2,867.15",AXIS EUROPE PLC,CONSTRUCTION INDUSTRY,Housing Revenue Account,Void Property Repairs,A20036,0
Royal Borough of Kingston,28/02/2022,70018999,"1,126.81",AXIS EUROPE PLC,CONSTRUCTION INDUSTRY,Adult Social Care & Health,Lift Servicing And Repairs,A20006,0
Royal Borough of Kingston,28/02/2022,70019003,"2,472.68",AXIS EUROPE PLC,CONSTRUCTION INDUSTRY,Capital Programme,Disabled Adaptations,C20003,0
Royal Borough of Kingston,28/02/2022,70019007,"2,074.83",AXIS EUROPE PLC,CONSTRUCTION INDUSTRY,Capital Programme,Disabled Adaptations,C20003,0
Royal Borough of Kingston,28/02/2022,70019037,"2,167.71",AXIS EUROPE PLC,CONSTRUCTION INDUSTRY,Capital Programme,Council Dwellings - Construction & Renovation,C10002,0
Royal Borough of Kingston,28/02/2022,70019038,"2,394.20",AXIS EUROPE PLC,CONSTRUCTION INDUSTRY,Capital Programme,Council Dwellings - Construction & Renovation,C10002,0
Royal Borough of Kingston,28/02/2022,70019039,"1,969.13",AXIS EUROPE PLC,CONSTRUCTION INDUSTRY,Capital Programme,Council Dwellings - Construction & Renovation,C10002,0
Royal Borough of Kingston,28/02/2022,70019040,"2,887.03",AXIS EUROPE PLC,CONSTRUCTION INDUSTRY,Capital Programme,Council Dwellings - Construction & Renovation,C10002,0
Royal Borough of Kingston,28/02/2022,70019041,"2,881.31",AXIS EUROPE PLC,CONSTRUCTION INDUSTRY,Capital Programme,Council Dwellings - Construction & Renovation,C10002,0
Royal Borough of Kingston,28/02/2022,70019042,"2,242.37",AXIS EUROPE PLC,CONSTRUCTION INDUSTRY,Capital Programme,Council Dwellings - Construction & Renovation,C10002,0
Royal Borough of Kingston,28/02/2022,70019049,"2,088.17",AXIS EUROPE PLC,CONSTRUCTION INDUSTRY,Capital Programme,Council Dwellings - Construction & Renovation,C10002,0
Royal Borough of Kingston,28/02/2022,70019050,"2,065.00",AXIS EUROPE PLC,CONSTRUCTION INDUSTRY,Capital Programme,Council Dwellings - Construction & Renovation,C10002,0
Royal Borough of Kingston,28/02/2022,70019051,"3,291.25",AXIS EUROPE PLC,CONSTRUCTION INDUSTRY,Capital Programme,Council Dwellings - Construction & Renovation,C10002,0
Royal Borough of Kingston,28/02/2022,70019052,"2,036.04",AXIS EUROPE PLC,CONSTRUCTION INDUSTRY,Capital Programme,Council Dwellings - Construction & Renovation,C10002,0
Royal Borough of Kingston,28/02/2022,70019053,"2,716.69",AXIS EUROPE PLC,CONSTRUCTION INDUSTRY,Capital Programme,Council Dwellings - Construction & Renovation,C10002,0
Royal Borough of Kingston,28/02/2022,70019054,"2,696.96",AXIS EUROPE PLC,CONSTRUCTION INDUSTRY,Capital Programme,Council Dwellings - Construction & Renovation,C10002,0
Royal Borough of Kingston,28/02/2022,70019055,"2,304.69",AXIS EUROPE PLC,CONSTRUCTION INDUSTRY,Capital Programme,Council Dwellings - Construction & Renovation,C10002,0
Royal Borough of Kingston,28/02/2022,70019056,"3,699.83",AXIS EUROPE PLC,CONSTRUCTION INDUSTRY,Capital Programme,Council Dwellings - Construction & Renovation,C10002,0
Royal Borough of Kingston,28/02/2022,70019075,"4,154.70",AXIS EUROPE PLC,CONSTRUCTION INDUSTRY,Capital Programme,Council Dwellings - Construction & Renovation,C10002,0
Royal Borough of Kingston,28/02/2022,70019076,"4,151.70",AXIS EUROPE PLC,CONSTRUCTION INDUSTRY,Capital Programme,Council Dwellings - Construction & Renovation,C10002,0
Royal Borough of Kingston,28/02/2022,70019077,"8,699.77",AXIS EUROPE PLC,CONSTRUCTION INDUSTRY,Capital Programme,Council Dwellings - Construction & Renovation,C10002,0
Royal Borough of Kingston,28/02/2022,70019078,"9,676.25",AXIS EUROPE PLC,CONSTRUCTION INDUSTRY,Capital Programme,Council Dwellings - Construction & Renovation,C10002,0
Royal Borough of Kingston,28/02/2022,70019079,"13,893.68",AXIS EUROPE PLC,CONSTRUCTION INDUSTRY,Capital Programme,Council Dwellings - Construction & Renovation,C10002,0
Royal Borough of Kingston,28/02/2022,70019080,"25,018.84",AXIS EUROPE PLC,CONSTRUCTION INDUSTRY,Capital Programme,Council Dwellings - Construction & Renovation,C10002,0
Royal Borough of Kingston,28/02/2022,70019081,"2,163.36",AXIS EUROPE PLC,CONSTRUCTION INDUSTRY,Capital Programme,Council Dwellings - Construction & Renovation,C10002,0
Royal Borough of Kingston,28/02/2022,70019082,"2,685.65",AXIS EUROPE PLC,CONSTRUCTION INDUSTRY,Capital Programme,Council Dwellings - Construction & Renovation,C10002,0
Royal Borough of Kingston,28/02/2022,70019083,"2,535.32",AXIS EUROPE PLC,CONSTRUCTION INDUSTRY,Capital Programme,Council Dwellings - Construction & Renovation,C10002,0
Royal Borough of Kingston,28/02/2022,70019084,"3,576.91",AXIS EUROPE PLC,CONSTRUCTION INDUSTRY,Capital Programme,Council Dwellings - Construction & Renovation,C10002,0
Royal Borough of Kingston,28/02/2022,70019085,"2,300.35",AXIS EUROPE PLC,CONSTRUCTION INDUSTRY,Capital Programme,Council Dwellings - Construction & Renovation,C10002,0
Royal Borough of Kingston,28/02/2022,70019086,"3,043.86",AXIS EUROPE PLC,CONSTRUCTION INDUSTRY,Capital Programme,Council Dwellings - Construction & Renovation,C10002,0
Royal Borough of Kingston,28/02/2022,70019087,"2,805.36",AXIS EUROPE PLC,CONSTRUCTION INDUSTRY,Capital Programme,Council Dwellings - Construction & Renovation,C10002,0
Royal Borough of Kingston,28/02/2022,70019088,"2,184.86",AXIS EUROPE PLC,CONSTRUCTION INDUSTRY,Capital Programme,Council Dwellings - Construction & Renovation,C10002,0
Royal Borough of Kingston,28/02/2022,70019089,"2,204.09",AXIS EUROPE PLC,CONSTRUCTION INDUSTRY,Capital Programme,Council Dwellings - Construction & Renovation,C10002,0
Royal Borough of Kingston,28/02/2022,70019090,"1,929.62",AXIS EUROPE PLC,CONSTRUCTION INDUSTRY,Capital Programme,Council Dwellings - Construction & Renovation,C10002,0
Royal Borough of Kingston,28/02/2022,70019091,"2,758.88",AXIS EUROPE PLC,CONSTRUCTION INDUSTRY,Capital Programme,Council Dwellings - Construction & Renovation,C10002,0
Royal Borough of Kingston,31/01/2022,70019812,"2,045.58",AXIS EUROPE PLC,CONSTRUCTION INDUSTRY,Capital Programme,Council Dwellings - Construction & Renovation,C10002,0
Royal Borough of Kingston,07/02/2022,70020182,"11,679.92",AXIS EUROPE PLC,CONSTRUCTION INDUSTRY,Capital Programme,Disabled Adaptations,C20003,0
Royal Borough of Kingston,01/03/2022,90085207,"2,454.34",AXIS EUROPE PLC,CONSTRUCTION INDUSTRY,Housing Revenue Account,Electrical Repairs,A20002,0
Royal Borough of Kingston,01/03/2022,90085208,"1,585.81",AXIS EUROPE PLC,CONSTRUCTION INDUSTRY,Housing Revenue Account,Electrical Repairs,A20002,0
Royal Borough of Kingston,01/03/2022,90085209,"1,247.98",AXIS EUROPE PLC,CONSTRUCTION INDUSTRY,Place,Property Repairs & Maintenance & Alterations - Responsive,A20011,0
Royal Borough of Kingston,01/03/2022,90085210,"3,232.61",AXIS EUROPE PLC,CONSTRUCTION INDUSTRY,Housing Revenue Account,Property Repairs & Maintenance & Alterations - Responsive,A20011,0
Royal Borough of Kingston,01/03/2022,90085211,"3,136.64",AXIS EUROPE PLC,CONSTRUCTION INDUSTRY,Housing Revenue Account,Property Repairs & Maintenance & Alterations - Responsive,A20011,0
Royal Borough of Kingston,01/03/2022,70019253,700,AYUP DIGITAL LIMITED,LEGAL & PROFESSIONAL SERVICES,Adult Social Care & Health,Other Private Contractors - Third Party,A56080,0
Royal Borough of Kingston,28/03/2022,70021218,"20,000.00",Aztec Event Services Ltd,SUNDRY SUPPLIER - FINANCE,Place,"Grants, Contributions & Donations",A47005,0
Royal Borough of Kingston,30/03/2022,90091792,"1,314.00",REDACTED - PERSONAL DATA,PLS LANDLORDS,Place,PSL Payments To Landlords,A22031,0
Royal Borough of Kingston,30/03/2022,90091917,"1,094.00",REDACTED - PERSONAL DATA,PLS LANDLORDS,Place,PSL Payments To Landlords,A22031,0
Royal Borough of Kingston,30/03/2022,90091565,758.33,REDACTED - PERSONAL DATA,PLS LANDLORDS,Place,PSL Payments To Landlords,A22031,0
Royal Borough of Kingston,30/03/2022,90091738,750,REDACTED - PERSONAL DATA,PLS LANDLORDS,Place,PSL Payments To Landlords,A22031,0
Royal Borough of Kingston,20/12/2021,70018061,"19,152.63",BALANCE (SUPPORT) C.I.C,SOCIAL SERVICES - OTHER,Adult Social Care & Health,Other Private Contractors - Third Party,A56080,0
Royal Borough of Kingston,24/03/2022,90089339,743.91,BALANCE (SUPPORT) C.I.C,SOCIAL SERVICES - OTHER,Adult Social Care & Health,"Grants, Contributions & Donations",A47005,0
Royal Borough of Kingston,26/03/2022,90089387,"6,202.00",BALANCE (SUPPORT) C.I.C,SOCIAL SERVICES - OTHER,Adult Social Care & Health,"Grants, Contributions & Donations",A47005,0
Royal Borough of Kingston,26/03/2022,90089389,855,BALANCE (SUPPORT) C.I.C,SOCIAL SERVICES - OTHER,Adult Social Care & Health,"Grants, Contributions & Donations",A47005,0
Royal Borough of Kingston,01/03/2022,90090098,"1,796.14",BALANCE (SUPPORT) C.I.C,SOCIAL SERVICES - OTHER,Adult Social Care & Health,Independent Placements,A56006,0
Royal Borough of Kingston,01/03/2022,90090154,-828.59,BALANCE (SUPPORT) C.I.C,SOCIAL SERVICES - OTHER,Adult Social Care & Health,Supported Living - new framework,A56126,0
Royal Borough of Kingston,01/03/2022,90090155,-828.59,BALANCE (SUPPORT) C.I.C,SOCIAL SERVICES - OTHER,Adult Social Care & Health,Supported Living - new framework,A56126,0
Royal Borough of Kingston,01/03/2022,90090156,-801.86,BALANCE (SUPPORT) C.I.C,SOCIAL SERVICES - OTHER,Adult Social Care & Health,Supported Living - new framework,A56126,0
Royal Borough of Kingston,01/03/2022,90090157,-828.59,BALANCE (SUPPORT) C.I.C,SOCIAL SERVICES - OTHER,Adult Social Care & Health,Supported Living - new framework,A56126,0
Royal Borough of Kingston,01/03/2022,90090158,-801.86,BALANCE (SUPPORT) C.I.C,SOCIAL SERVICES - OTHER,Adult Social Care & Health,Supported Living - new framework,A56126,0
Royal Borough of Kingston,01/03/2022,90090159,-828.59,BALANCE (SUPPORT) C.I.C,SOCIAL SERVICES - OTHER,Adult Social Care & Health,Supported Living - new framework,A56126,0
Royal Borough of Kingston,01/03/2022,90090160,-828.59,BALANCE (SUPPORT) C.I.C,SOCIAL SERVICES - OTHER,Adult Social Care & Health,Supported Living - new framework,A56126,0
Royal Borough of Kingston,01/03/2022,90090161,-748.4,BALANCE (SUPPORT) C.I.C,SOCIAL SERVICES - OTHER,Adult Social Care & Health,Supported Living - new framework,A56126,0
Royal Borough of Kingston,01/03/2022,90090162,"1,438.90",BALANCE (SUPPORT) C.I.C,SOCIAL SERVICES - OTHER,Adult Social Care & Health,Supported Living - new framework,A56126,0
Royal Borough of Kingston,01/03/2022,90090164,"2,271.94",BALANCE (SUPPORT) C.I.C,SOCIAL SERVICES - OTHER,Adult Social Care & Health,Supported Living - new framework,A56126,0
Royal Borough of Kingston,01/03/2022,90090165,565,BALANCE (SUPPORT) C.I.C,SOCIAL SERVICES - OTHER,Adult Social Care & Health,Supported Living - new framework,A56126,0
Royal Borough of Kingston,01/03/2022,90090166,"2,347.67",BALANCE (SUPPORT) C.I.C,SOCIAL SERVICES - OTHER,Adult Social Care & Health,Supported Living - new framework,A56126,0
Royal Borough of Kingston,01/03/2022,90090167,583.83,BALANCE (SUPPORT) C.I.C,SOCIAL SERVICES - OTHER,Adult Social Care & Health,Supported Living - new framework,A56126,0
Royal Borough of Kingston,01/03/2022,90090168,"2,271.94",BALANCE (SUPPORT) C.I.C,SOCIAL SERVICES - OTHER,Adult Social Care & Health,Supported Living - new framework,A56126,0
Royal Borough of Kingston,01/03/2022,90090169,565,BALANCE (SUPPORT) C.I.C,SOCIAL SERVICES - OTHER,Adult Social Care & Health,Supported Living - new framework,A56126,0
Royal Borough of Kingston,01/03/2022,90090170,"2,347.67",BALANCE (SUPPORT) C.I.C,SOCIAL SERVICES - OTHER,Adult Social Care & Health,Supported Living - new framework,A56126,0
Royal Borough of Kingston,01/03/2022,90090171,583.83,BALANCE (SUPPORT) C.I.C,SOCIAL SERVICES - OTHER,Adult Social Care & Health,Supported Living - new framework,A56126,0
Royal Borough of Kingston,01/03/2022,90090172,"2,347.67",BALANCE (SUPPORT) C.I.C,SOCIAL SERVICES - OTHER,Adult Social Care & Health,Supported Living - new framework,A56126,0
Royal Borough of Kingston,01/03/2022,90090173,583.83,BALANCE (SUPPORT) C.I.C,SOCIAL SERVICES - OTHER,Adult Social Care & Health,Supported Living - new framework,A56126,0
Royal Borough of Kingston,01/03/2022,90090174,"2,120.48",BALANCE (SUPPORT) C.I.C,SOCIAL SERVICES - OTHER,Adult Social Care & Health,Supported Living - new framework,A56126,0
Royal Borough of Kingston,01/03/2022,90090175,527.33,BALANCE (SUPPORT) C.I.C,SOCIAL SERVICES - OTHER,Adult Social Care & Health,Supported Living - new framework,A56126,0
Royal Borough of Kingston,01/03/2022,90090176,"2,347.67",BALANCE (SUPPORT) C.I.C,SOCIAL SERVICES - OTHER,Adult Social Care & Health,Supported Living - new framework,A56126,0
Royal Borough of Kingston,01/03/2022,90090177,583.83,BALANCE (SUPPORT) C.I.C,SOCIAL SERVICES - OTHER,Adult Social Care & Health,Supported Living - new framework,A56126,0
Royal Borough of Kingston,01/03/2022,90090178,662.87,BALANCE (SUPPORT) C.I.C,SOCIAL SERVICES - OTHER,Adult Social Care & Health,Supported Living - new framework,A56126,0
Royal Borough of Kingston,01/03/2022,90090179,"1,079.17",BALANCE (SUPPORT) C.I.C,SOCIAL SERVICES - OTHER,Adult Social Care & Health,Supported Living - new framework,A56126,0
Royal Borough of Kingston,01/03/2022,90090181,"1,703.95",BALANCE (SUPPORT) C.I.C,SOCIAL SERVICES - OTHER,Adult Social Care & Health,Supported Living - new framework,A56126,0
Royal Borough of Kingston,01/03/2022,90090183,"1,760.74",BALANCE (SUPPORT) C.I.C,SOCIAL SERVICES - OTHER,Adult Social Care & Health,Supported Living - new framework,A56126,0
Royal Borough of Kingston,01/03/2022,90090185,"1,703.95",BALANCE (SUPPORT) C.I.C,SOCIAL SERVICES - OTHER,Adult Social Care & Health,Supported Living - new framework,A56126,0
Royal Borough of Kingston,01/03/2022,90090187,"1,760.74",BALANCE (SUPPORT) C.I.C,SOCIAL SERVICES - OTHER,Adult Social Care & Health,Supported Living - new framework,A56126,0
Royal Borough of Kingston,01/03/2022,90090189,"1,760.74",BALANCE (SUPPORT) C.I.C,SOCIAL SERVICES - OTHER,Adult Social Care & Health,Supported Living - new framework,A56126,0
Royal Borough of Kingston,01/03/2022,90090191,"1,590.35",BALANCE (SUPPORT) C.I.C,SOCIAL SERVICES - OTHER,Adult Social Care & Health,Supported Living - new framework,A56126,0
Royal Borough of Kingston,01/03/2022,90090193,"1,760.74",BALANCE (SUPPORT) C.I.C,SOCIAL SERVICES - OTHER,Adult Social Care & Health,Supported Living - new framework,A56126,0
Royal Borough of Kingston,01/03/2022,90090195,580.01,BALANCE (SUPPORT) C.I.C,SOCIAL SERVICES - OTHER,Adult Social Care & Health,Supported Living - new framework,A56126,0
Royal Borough of Kingston,01/03/2022,90090196,-662.87,BALANCE (SUPPORT) C.I.C,SOCIAL SERVICES - OTHER,Adult Social Care & Health,Supported Living - new framework,A56126,0
Royal Borough of Kingston,01/03/2022,90090198,"1,079.17",BALANCE (SUPPORT) C.I.C,SOCIAL SERVICES - OTHER,Adult Social Care & Health,Supported Living - new framework,A56126,0
Royal Borough of Kingston,01/03/2022,90090200,-662.87,BALANCE (SUPPORT) C.I.C,SOCIAL SERVICES - OTHER,Adult Social Care & Health,Supported Living - new framework,A56126,0
Royal Borough of Kingston,01/03/2022,90090201,641.49,BALANCE (SUPPORT) C.I.C,SOCIAL SERVICES - OTHER,Adult Social Care & Health,Supported Living - new framework,A56126,0
Royal Borough of Kingston,01/03/2022,90090202,"1,703.95",BALANCE (SUPPORT) C.I.C,SOCIAL SERVICES - OTHER,Adult Social Care & Health,Supported Living - new framework,A56126,0
Royal Borough of Kingston,01/03/2022,90090204,-641.49,BALANCE (SUPPORT) C.I.C,SOCIAL SERVICES - OTHER,Adult Social Care & Health,Supported Living - new framework,A56126,0
Royal Borough of Kingston,01/03/2022,90090205,662.87,BALANCE (SUPPORT) C.I.C,SOCIAL SERVICES - OTHER,Adult Social Care & Health,Supported Living - new framework,A56126,0
Royal Borough of Kingston,01/03/2022,90090206,"1,760.74",BALANCE (SUPPORT) C.I.C,SOCIAL SERVICES - OTHER,Adult Social Care & Health,Supported Living - new framework,A56126,0
Royal Borough of Kingston,01/03/2022,90090208,-662.87,BALANCE (SUPPORT) C.I.C,SOCIAL SERVICES - OTHER,Adult Social Care & Health,Supported Living - new framework,A56126,0
Royal Borough of Kingston,01/03/2022,90090209,641.49,BALANCE (SUPPORT) C.I.C,SOCIAL SERVICES - OTHER,Adult Social Care & Health,Supported Living - new framework,A56126,0
Royal Borough of Kingston,01/03/2022,90090210,"1,703.95",BALANCE (SUPPORT) C.I.C,SOCIAL SERVICES - OTHER,Adult Social Care & Health,Supported Living - new framework,A56126,0
Royal Borough of Kingston,01/03/2022,90090212,-641.49,BALANCE (SUPPORT) C.I.C,SOCIAL SERVICES - OTHER,Adult Social Care & Health,Supported Living - new framework,A56126,0
Royal Borough of Kingston,01/03/2022,90090213,662.87,BALANCE (SUPPORT) C.I.C,SOCIAL SERVICES - OTHER,Adult Social Care & Health,Supported Living - new framework,A56126,0
Royal Borough of Kingston,01/03/2022,90090214,"1,760.74",BALANCE (SUPPORT) C.I.C,SOCIAL SERVICES - OTHER,Adult Social Care & Health,Supported Living - new framework,A56126,0
Royal Borough of Kingston,01/03/2022,90090216,-662.87,BALANCE (SUPPORT) C.I.C,SOCIAL SERVICES - OTHER,Adult Social Care & Health,Supported Living - new framework,A56126,0
Royal Borough of Kingston,01/03/2022,90090217,662.87,BALANCE (SUPPORT) C.I.C,SOCIAL SERVICES - OTHER,Adult Social Care & Health,Supported Living - new framework,A56126,0
Royal Borough of Kingston,01/03/2022,90090218,"1,760.74",BALANCE (SUPPORT) C.I.C,SOCIAL SERVICES - OTHER,Adult Social Care & Health,Supported Living - new framework,A56126,0
Royal Borough of Kingston,01/03/2022,90090220,-662.87,BALANCE (SUPPORT) C.I.C,SOCIAL SERVICES - OTHER,Adult Social Care & Health,Supported Living - new framework,A56126,0
Royal Borough of Kingston,01/03/2022,90090221,598.72,BALANCE (SUPPORT) C.I.C,SOCIAL SERVICES - OTHER,Adult Social Care & Health,Supported Living - new framework,A56126,0
Royal Borough of Kingston,01/03/2022,90090222,"1,590.35",BALANCE (SUPPORT) C.I.C,SOCIAL SERVICES - OTHER,Adult Social Care & Health,Supported Living - new framework,A56126,0
Royal Borough of Kingston,01/03/2022,90090224,-598.72,BALANCE (SUPPORT) C.I.C,SOCIAL SERVICES - OTHER,Adult Social Care & Health,Supported Living - new framework,A56126,0
Royal Borough of Kingston,01/03/2022,90090225,662.87,BALANCE (SUPPORT) C.I.C,SOCIAL SERVICES - OTHER,Adult Social Care & Health,Supported Living - new framework,A56126,0
Royal Borough of Kingston,01/03/2022,90090226,"1,760.74",BALANCE (SUPPORT) C.I.C,SOCIAL SERVICES - OTHER,Adult Social Care & Health,Supported Living - new framework,A56126,0
Royal Borough of Kingston,07/02/2022,90090237,"1,122.60",BALANCE (SUPPORT) C.I.C,SOCIAL SERVICES - OTHER,Adult Social Care & Health,Supported Living - new framework,A56126,0
Royal Borough of Kingston,07/02/2022,90090238,"1,122.60",BALANCE (SUPPORT) C.I.C,SOCIAL SERVICES - OTHER,Adult Social Care & Health,Supported Living - new framework,A56126,0
Royal Borough of Kingston,07/02/2022,90090239,"1,122.60",BALANCE (SUPPORT) C.I.C,SOCIAL SERVICES - OTHER,Adult Social Care & Health,Supported Living - new framework,A56126,0
Royal Borough of Kingston,07/02/2022,90090240,"1,122.60",BALANCE (SUPPORT) C.I.C,SOCIAL SERVICES - OTHER,Adult Social Care & Health,Supported Living - new framework,A56126,0
Royal Borough of Kingston,07/02/2022,90090241,"1,122.60",BALANCE (SUPPORT) C.I.C,SOCIAL SERVICES - OTHER,Adult Social Care & Health,Supported Living - new framework,A56126,0
Royal Borough of Kingston,07/02/2022,90090242,"1,122.60",BALANCE (SUPPORT) C.I.C,SOCIAL SERVICES - OTHER,Adult Social Care & Health,Supported Living - new framework,A56126,0
Royal Borough of Kingston,07/02/2022,90090243,"1,122.60",BALANCE (SUPPORT) C.I.C,SOCIAL SERVICES - OTHER,Adult Social Care & Health,Supported Living - new framework,A56126,0
Royal Borough of Kingston,07/02/2022,90090247,-534.57,BALANCE (SUPPORT) C.I.C,SOCIAL SERVICES - OTHER,Adult Social Care & Health,Supported Living - new framework,A56126,0
Royal Borough of Kingston,07/02/2022,90090248,-598.72,BALANCE (SUPPORT) C.I.C,SOCIAL SERVICES - OTHER,Adult Social Care & Health,Supported Living - new framework,A56126,0
Royal Borough of Kingston,07/02/2022,90090249,-598.72,BALANCE (SUPPORT) C.I.C,SOCIAL SERVICES - OTHER,Adult Social Care & Health,Supported Living - new framework,A56126,0
Royal Borough of Kingston,07/02/2022,90090250,-598.72,BALANCE (SUPPORT) C.I.C,SOCIAL SERVICES - OTHER,Adult Social Care & Health,Supported Living - new framework,A56126,0
Royal Borough of Kingston,07/02/2022,90090251,-598.72,BALANCE (SUPPORT) C.I.C,SOCIAL SERVICES - OTHER,Adult Social Care & Health,Supported Living - new framework,A56126,0
Royal Borough of Kingston,07/02/2022,90090252,-598.72,BALANCE (SUPPORT) C.I.C,SOCIAL SERVICES - OTHER,Adult Social Care & Health,Supported Living - new framework,A56126,0
Royal Borough of Kingston,07/02/2022,90090253,-598.72,BALANCE (SUPPORT) C.I.C,SOCIAL SERVICES - OTHER,Adult Social Care & Health,Supported Living - new framework,A56126,0
Royal Borough of Kingston,07/02/2022,90090254,-598.72,BALANCE (SUPPORT) C.I.C,SOCIAL SERVICES - OTHER,Adult Social Care & Health,Supported Living - new framework,A56126,0
Royal Borough of Kingston,07/02/2022,90090263,748.4,BALANCE (SUPPORT) C.I.C,SOCIAL SERVICES - OTHER,Adult Social Care & Health,Supported Living - new framework,A56126,0
Royal Borough of Kingston,07/02/2022,90090264,673.56,BALANCE (SUPPORT) C.I.C,SOCIAL SERVICES - OTHER,Adult Social Care & Health,Supported Living - new framework,A56126,0
Royal Borough of Kingston,01/03/2022,90090289,"1,242.88",BALANCE (SUPPORT) C.I.C,SOCIAL SERVICES - OTHER,Adult Social Care & Health,Supported Living - new framework,A56126,0
Royal Borough of Kingston,01/03/2022,90090862,548.27,BALANCE (SUPPORT) C.I.C,SOCIAL SERVICES - OTHER,Adult Social Care & Health,Personal Budget - Third Party,A61019,0
Royal Borough of Kingston,01/03/2022,90090863,548.27,BALANCE (SUPPORT) C.I.C,SOCIAL SERVICES - OTHER,Adult Social Care & Health,Personal Budget - Third Party,A61019,0
Royal Borough of Kingston,01/03/2022,90090864,"12,933.64",BALANCE (SUPPORT) C.I.C,SOCIAL SERVICES - OTHER,Adult Social Care & Health,Personal Budget - Third Party,A61019,0
Royal Borough of Kingston,01/03/2022,90090993,996.21,BALANCE (SUPPORT) C.I.C,SOCIAL SERVICES - OTHER,Adult Social Care & Health,Personal Budget - Third Party,A61019,0
Royal Borough of Kingston,01/03/2022,90090994,543.39,BALANCE (SUPPORT) C.I.C,SOCIAL SERVICES - OTHER,Adult Social Care & Health,Personal Budget - Third Party,A61019,0
Royal Borough of Kingston,01/03/2022,90091001,546.88,BALANCE (SUPPORT) C.I.C,SOCIAL SERVICES - OTHER,Adult Social Care & Health,Personal Budget - Third Party,A61019,0
Royal Borough of Kingston,01/03/2022,90091004,905.64,BALANCE (SUPPORT) C.I.C,SOCIAL SERVICES - OTHER,Adult Social Care & Health,Personal Budget - Third Party,A61019,0
Royal Borough of Kingston,01/03/2022,90091005,905.64,BALANCE (SUPPORT) C.I.C,SOCIAL SERVICES - OTHER,Adult Social Care & Health,Personal Budget - Third Party,A61019,0
Royal Borough of Kingston,01/03/2022,90091006,876.43,BALANCE (SUPPORT) C.I.C,SOCIAL SERVICES - OTHER,Adult Social Care & Health,Personal Budget - Third Party,A61019,0
Royal Borough of Kingston,01/03/2022,90091007,905.64,BALANCE (SUPPORT) C.I.C,SOCIAL SERVICES - OTHER,Adult Social Care & Health,Personal Budget - Third Party,A61019,0
Royal Borough of Kingston,01/03/2022,90091008,876.43,BALANCE (SUPPORT) C.I.C,SOCIAL SERVICES - OTHER,Adult Social Care & Health,Personal Budget - Third Party,A61019,0
Royal Borough of Kingston,01/03/2022,90091009,905.64,BALANCE (SUPPORT) C.I.C,SOCIAL SERVICES - OTHER,Adult Social Care & Health,Personal Budget - Third Party,A61019,0
Royal Borough of Kingston,01/03/2022,90091010,905.64,BALANCE (SUPPORT) C.I.C,SOCIAL SERVICES - OTHER,Adult Social Care & Health,Personal Budget - Third Party,A61019,0
Royal Borough of Kingston,01/03/2022,90091011,818,BALANCE (SUPPORT) C.I.C,SOCIAL SERVICES - OTHER,Adult Social Care & Health,Personal Budget - Third Party,A61019,0
Royal Borough of Kingston,01/03/2022,90091012,905.64,BALANCE (SUPPORT) C.I.C,SOCIAL SERVICES - OTHER,Adult Social Care & Health,Personal Budget - Third Party,A61019,0
Royal Borough of Kingston,01/03/2022,90091015,"1,267.90",BALANCE (SUPPORT) C.I.C,SOCIAL SERVICES - OTHER,Adult Social Care & Health,Personal Budget - Third Party,A61019,0
Royal Borough of Kingston,01/03/2022,90091016,905.64,BALANCE (SUPPORT) C.I.C,SOCIAL SERVICES - OTHER,Adult Social Care & Health,Personal Budget - Third Party,A61019,0
Royal Borough of Kingston,01/03/2022,90091019,"2,804.79",BALANCE (SUPPORT) C.I.C,SOCIAL SERVICES - OTHER,Adult Social Care & Health,Personal Budget - Third Party,A61019,0
Royal Borough of Kingston,01/03/2022,90091023,"1,222.64",BALANCE (SUPPORT) C.I.C,SOCIAL SERVICES - OTHER,Adult Social Care & Health,Personal Budget - Third Party,A61019,0
Royal Borough of Kingston,01/03/2022,90091025,543.39,BALANCE (SUPPORT) C.I.C,SOCIAL SERVICES - OTHER,Adult Social Care & Health,Personal Budget - Third Party,A61019,0
Royal Borough of Kingston,01/03/2022,90091032,"2,082.98",BALANCE (SUPPORT) C.I.C,SOCIAL SERVICES - OTHER,Adult Social Care & Health,Personal Budget - Third Party,A61019,0
Royal Borough of Kingston,01/03/2022,90091035,"1,358.46",BALANCE (SUPPORT) C.I.C,SOCIAL SERVICES - OTHER,Adult Social Care & Health,Personal Budget - Third Party,A61019,0
Royal Borough of Kingston,01/03/2022,90091046,543.39,BALANCE (SUPPORT) C.I.C,SOCIAL SERVICES - OTHER,Adult Social Care & Health,Personal Budget - Third Party,A61019,0
Royal Borough of Kingston,01/03/2022,90091049,543.39,BALANCE (SUPPORT) C.I.C,SOCIAL SERVICES - OTHER,Adult Social Care & Health,Personal Budget - Third Party,A61019,0
Royal Borough of Kingston,01/03/2022,90091051,543.39,BALANCE (SUPPORT) C.I.C,SOCIAL SERVICES - OTHER,Adult Social Care & Health,Personal Budget - Third Party,A61019,0
Royal Borough of Kingston,01/03/2022,90091054,"1,449.03",BALANCE (SUPPORT) C.I.C,SOCIAL SERVICES - OTHER,Adult Social Care & Health,Personal Budget - Third Party,A61019,0
Royal Borough of Kingston,01/03/2022,90091055,"3,381.39",BALANCE (SUPPORT) C.I.C,SOCIAL SERVICES - OTHER,Adult Social Care & Health,Personal Budget - Third Party,A61019,0
Royal Borough of Kingston,01/03/2022,90091066,886.18,BALANCE (SUPPORT) C.I.C,SOCIAL SERVICES - OTHER,Adult Social Care & Health,Personal Budget - Third Party,A61019,0
Royal Borough of Kingston,01/03/2022,90091067,"2,497.40",BALANCE (SUPPORT) C.I.C,SOCIAL SERVICES - OTHER,Adult Social Care & Health,Personal Budget - Third Party,A61019,0
Royal Borough of Kingston,01/03/2022,90091068,633.95,BALANCE (SUPPORT) C.I.C,SOCIAL SERVICES - OTHER,Adult Social Care & Health,Personal Budget - Third Party,A61019,0
Royal Borough of Kingston,01/03/2022,90091070,724.51,BALANCE (SUPPORT) C.I.C,SOCIAL SERVICES - OTHER,Adult Social Care & Health,Personal Budget - Third Party,A61019,0
Royal Borough of Kingston,01/03/2022,90091073,"1,539.59",BALANCE (SUPPORT) C.I.C,SOCIAL SERVICES - OTHER,Adult Social Care & Health,Personal Budget - Third Party,A61019,0
Royal Borough of Kingston,01/03/2022,90091083,"1,358.46",BALANCE (SUPPORT) C.I.C,SOCIAL SERVICES - OTHER,Adult Social Care & Health,Personal Budget - Third Party,A61019,0
Royal Borough of Kingston,01/03/2022,90091090,815.08,BALANCE (SUPPORT) C.I.C,SOCIAL SERVICES - OTHER,Adult Social Care & Health,Personal Budget - Third Party,A61019,0
Royal Borough of Kingston,01/03/2022,90091091,"3,041.63",BALANCE (SUPPORT) C.I.C,SOCIAL SERVICES - OTHER,Adult Social Care & Health,Personal Budget - Third Party,A61019,0
Royal Borough of Kingston,01/03/2022,90091098,543.39,BALANCE (SUPPORT) C.I.C,SOCIAL SERVICES - OTHER,Adult Social Care & Health,Personal Budget - Third Party,A61019,0
Royal Borough of Kingston,01/03/2022,90091099,543.39,BALANCE (SUPPORT) C.I.C,SOCIAL SERVICES - OTHER,Adult Social Care & Health,Personal Budget - Third Party,A61019,0
Royal Borough of Kingston,01/03/2022,90091104,"3,985.14",BALANCE (SUPPORT) C.I.C,SOCIAL SERVICES - OTHER,Adult Social Care & Health,Personal Budget - Third Party,A61019,0
Royal Borough of Kingston,01/03/2022,90091105,"1,901.85",BALANCE (SUPPORT) C.I.C,SOCIAL SERVICES - OTHER,Adult Social Care & Health,Personal Budget - Third Party,A61019,0
Royal Borough of Kingston,01/03/2022,90091108,"1,540.66",BALANCE (SUPPORT) C.I.C,SOCIAL SERVICES - OTHER,Adult Social Care & Health,Personal Budget - Third Party,A61019,0
Royal Borough of Kingston,01/03/2022,90091110,724.51,BALANCE (SUPPORT) C.I.C,SOCIAL SERVICES - OTHER,Adult Social Care & Health,Personal Budget - Third Party,A61019,0
Royal Borough of Kingston,01/03/2022,90091136,"1,008.96",BALANCE (SUPPORT) C.I.C,SOCIAL SERVICES - OTHER,Adult Social Care & Health,Personal Budget - Third Party,A61019,0
Royal Borough of Kingston,01/03/2022,90091141,"1,177.34",BALANCE (SUPPORT) C.I.C,SOCIAL SERVICES - OTHER,Adult Social Care & Health,Personal Budget - Third Party,A61019,0
Royal Borough of Kingston,01/03/2022,90091145,724.51,BALANCE (SUPPORT) C.I.C,SOCIAL SERVICES - OTHER,Adult Social Care & Health,Personal Budget - Third Party,A61019,0
Royal Borough of Kingston,01/03/2022,90091148,"1,539.59",BALANCE (SUPPORT) C.I.C,SOCIAL SERVICES - OTHER,Adult Social Care & Health,Personal Budget - Third Party,A61019,0
Royal Borough of Kingston,01/03/2022,90091152,584.29,BALANCE (SUPPORT) C.I.C,SOCIAL SERVICES - OTHER,Adult Social Care & Health,Personal Budget - Third Party,A61019,0
Royal Borough of Kingston,01/03/2022,90091153,724.51,BALANCE (SUPPORT) C.I.C,SOCIAL SERVICES - OTHER,Adult Social Care & Health,Personal Budget - Third Party,A61019,0
Royal Borough of Kingston,01/03/2022,90091154,701.14,BALANCE (SUPPORT) C.I.C,SOCIAL SERVICES - OTHER,Adult Social Care & Health,Personal Budget - Third Party,A61019,0
Royal Borough of Kingston,01/03/2022,90091155,724.51,BALANCE (SUPPORT) C.I.C,SOCIAL SERVICES - OTHER,Adult Social Care & Health,Personal Budget - Third Party,A61019,0
Royal Borough of Kingston,01/03/2022,90091156,724.51,BALANCE (SUPPORT) C.I.C,SOCIAL SERVICES - OTHER,Adult Social Care & Health,Personal Budget - Third Party,A61019,0
Royal Borough of Kingston,01/03/2022,90091157,654.4,BALANCE (SUPPORT) C.I.C,SOCIAL SERVICES - OTHER,Adult Social Care & Health,Personal Budget - Third Party,A61019,0
Royal Borough of Kingston,01/03/2022,90091158,724.51,BALANCE (SUPPORT) C.I.C,SOCIAL SERVICES - OTHER,Adult Social Care & Health,Personal Budget - Third Party,A61019,0
Royal Borough of Kingston,01/03/2022,90091161,580.01,BALANCE (SUPPORT) C.I.C,SOCIAL SERVICES - OTHER,Adult Social Care & Health,Personal Budget - Third Party,A61019,0
Royal Borough of Kingston,01/03/2022,90091164,"2,524.68",BALANCE (SUPPORT) C.I.C,SOCIAL SERVICES - OTHER,Adult Social Care & Health,Personal Budget - Third Party,A61019,0
Royal Borough of Kingston,01/03/2022,90091171,"1,766.03",BALANCE (SUPPORT) C.I.C,SOCIAL SERVICES - OTHER,Adult Social Care & Health,Personal Budget - Third Party,A61019,0
Royal Borough of Kingston,01/03/2022,90091177,950.95,BALANCE (SUPPORT) C.I.C,SOCIAL SERVICES - OTHER,Adult Social Care & Health,Personal Budget - Third Party,A61019,0
Royal Borough of Kingston,01/03/2022,90091178,543.39,BALANCE (SUPPORT) C.I.C,SOCIAL SERVICES - OTHER,Adult Social Care & Health,Personal Budget - Third Party,A61019,0
Royal Borough of Kingston,01/03/2022,90091180,"1,267.90",BALANCE (SUPPORT) C.I.C,SOCIAL SERVICES - OTHER,Adult Social Care & Health,Personal Budget - Third Party,A61019,0
Royal Borough of Kingston,01/03/2022,90091182,"1,177.34",BALANCE (SUPPORT) C.I.C,SOCIAL SERVICES - OTHER,Adult Social Care & Health,Personal Budget - Third Party,A61019,0
Royal Borough of Kingston,01/03/2022,90091183,543.39,BALANCE (SUPPORT) C.I.C,SOCIAL SERVICES - OTHER,Adult Social Care & Health,Personal Budget - Third Party,A61019,0
Royal Borough of Kingston,01/03/2022,90091185,"1,630.16",BALANCE (SUPPORT) C.I.C,SOCIAL SERVICES - OTHER,Adult Social Care & Health,Personal Budget - Third Party,A61019,0
Royal Borough of Kingston,01/03/2022,90091201,633.95,BALANCE (SUPPORT) C.I.C,SOCIAL SERVICES - OTHER,Adult Social Care & Health,Personal Budget - Third Party,A61019,0
Royal Borough of Kingston,01/03/2022,90091204,543.39,BALANCE (SUPPORT) C.I.C,SOCIAL SERVICES - OTHER,Adult Social Care & Health,Personal Budget - Third Party,A61019,0
Royal Borough of Kingston,01/03/2022,90091389,543.39,BALANCE (SUPPORT) C.I.C,SOCIAL SERVICES - OTHER,Adult Social Care & Health,Personal Budget - Third Party,A61019,0
Royal Borough of Kingston,01/03/2022,90091400,514.17,BALANCE (SUPPORT) C.I.C,SOCIAL SERVICES - OTHER,Adult Social Care & Health,Personal Budget - Third Party,A61019,0
Royal Borough of Kingston,01/03/2022,90091424,"1,086.77",BALANCE (SUPPORT) C.I.C,SOCIAL SERVICES - OTHER,Adult Social Care & Health,Personal Budget - Third Party,A61019,0
Royal Borough of Kingston,01/03/2022,90089737,"3,489.71",BARCHESTER HEALTHCARE,SOCIAL SERVICES RESIDENTIAL,Adult Social Care & Health,Independent Placements,A56006,0
Royal Borough of Kingston,25/03/2022,70021131,"2,396.63",Barnes Solicitors LLP,SUNDRY SUPPLIER - HOUSING,Housing Revenue Account,Compensation (In Lieu Of Works),A20039,0
Royal Borough of Kingston,01/03/2022,90089937,"4,317.86",BAVANI CARE HOME LIMITED,SOCIAL SERVICES RESIDENTIAL,Adult Social Care & Health,Independent Placements,A56006,0
Royal Borough of Kingston,24/03/2022,70021032,"3,249.00",BEESMAX Limited,SUNDRY SUPPLIER - FINANCE,Place,"Grants, Contributions & Donations",A47005,0
Royal Borough of Kingston,28/02/2022,70019117,"5,235.45",CHELSEA &  WESTMINSTER HOSP NHS,MANAGEMENT & TRAINING SERVICES,Adult Social Care & Health,Other Private Contractors - Third Party,A56080,0
Royal Borough of Kingston,30/03/2022,90091550,"1,317.76",REDACTED - PERSONAL DATA,PLS LANDLORDS,Place,PSL Payments To Landlords,A22031,0
Royal Borough of Kingston,01/03/2022,90085085,957.6,REDACTED - PERSONAL DATA,CHILDMINDERS START UP GRANT,Schools,PVI Providers,A60014,0
Royal Borough of Kingston,30/09/2021,70018324,"4,995.00",BLAZIE ENGINEERING LTD,BUSINESS & COMPUTER SYSTEMS,Adult Social Care & Health,ICT Software Development,A45041,0
Royal Borough of Kingston,21/02/2022,90086740,748,BLUE ARROW CARE LTD,SOCIAL SERVICES-HOME CARE,Adult Social Care & Health,Personal Budget - Third Party,A61019,0
Royal Borough of Kingston,21/02/2022,90086746,595,BLUE ARROW CARE LTD,SOCIAL SERVICES-HOME CARE,Adult Social Care & Health,Personal Budget - Third Party,A61019,0
Royal Borough of Kingston,21/02/2022,90086757,535.5,BLUE ARROW CARE LTD,SOCIAL SERVICES-HOME CARE,Adult Social Care & Health,Personal Budget - Third Party,A61019,0
Royal Borough of Kingston,21/02/2022,90086774,595,BLUE ARROW CARE LTD,SOCIAL SERVICES-HOME CARE,Adult Social Care & Health,Personal Budget - Third Party,A61019,0
Royal Borough of Kingston,10/03/2022,90086867,"11,721.89",BLUE ARROW CARE LTD,SOCIAL SERVICES-HOME CARE,Adult Social Care & Health,"Grants, Contributions & Donations",A47005,0
Royal Borough of Kingston,10/03/2022,90086869,"2,800.00",BLUE ARROW CARE LTD,SOCIAL SERVICES-HOME CARE,Adult Social Care & Health,"Grants, Contributions & Donations",A47005,0
Royal Borough of Kingston,28/02/2022,90088050,748,BLUE ARROW CARE LTD,SOCIAL SERVICES-HOME CARE,Adult Social Care & Health,Personal Budget - Third Party,A61019,0
Royal Borough of Kingston,28/02/2022,90088100,586.5,BLUE ARROW CARE LTD,SOCIAL SERVICES-HOME CARE,Adult Social Care & Health,Personal Budget - Third Party,A61019,0
Royal Borough of Kingston,28/02/2022,90088111,535.5,BLUE ARROW CARE LTD,SOCIAL SERVICES-HOME CARE,Adult Social Care & Health,Personal Budget - Third Party,A61019,0
Royal Borough of Kingston,28/02/2022,90088131,595,BLUE ARROW CARE LTD,SOCIAL SERVICES-HOME CARE,Adult Social Care & Health,Personal Budget - Third Party,A61019,0
Royal Borough of Kingston,07/03/2022,90089084,748,BLUE ARROW CARE LTD,SOCIAL SERVICES-HOME CARE,Adult Social Care & Health,Personal Budget - Third Party,A61019,0
Royal Borough of Kingston,07/03/2022,90089090,595,BLUE ARROW CARE LTD,SOCIAL SERVICES-HOME CARE,Adult Social Care & Health,Personal Budget - Third Party,A61019,0
Royal Borough of Kingston,07/03/2022,90089103,535.5,BLUE ARROW CARE LTD,SOCIAL SERVICES-HOME CARE,Adult Social Care & Health,Personal Budget - Third Party,A61019,0
Royal Borough of Kingston,07/03/2022,90089119,595,BLUE ARROW CARE LTD,SOCIAL SERVICES-HOME CARE,Adult Social Care & Health,Personal Budget - Third Party,A61019,0
Royal Borough of Kingston,24/03/2022,90089279,"2,166.22",BLUE ARROW CARE LTD,SOCIAL SERVICES-HOME CARE,Adult Social Care & Health,"Grants, Contributions & Donations",A47005,0
Royal Borough of Kingston,26/03/2022,90089393,"2,274.00",BLUE ARROW CARE LTD,SOCIAL SERVICES-HOME CARE,Adult Social Care & Health,"Grants, Contributions & Donations",A47005,0
Royal Borough of Kingston,14/03/2022,90091314,595,BLUE ARROW CARE LTD,SOCIAL SERVICES-HOME CARE,Adult Social Care & Health,Personal Budget - Third Party,A61019,0
Royal Borough of Kingston,14/03/2022,90091316,535.5,BLUE ARROW CARE LTD,SOCIAL SERVICES-HOME CARE,Adult Social Care & Health,Personal Budget - Third Party,A61019,0
Royal Borough of Kingston,14/03/2022,90091325,535.5,BLUE ARROW CARE LTD,SOCIAL SERVICES-HOME CARE,Adult Social Care & Health,Personal Budget - Third Party,A61019,0
Royal Borough of Kingston,14/03/2022,90091343,612,BLUE ARROW CARE LTD,SOCIAL SERVICES-HOME CARE,Adult Social Care & Health,Personal Budget - Third Party,A61019,0
Royal Borough of Kingston,14/03/2022,90091371,"1,053.95",BLUE ARROW CARE LTD,SOCIAL SERVICES-HOME CARE,Adult Social Care & Health,Personal Budget - Third Party,A61019,0
Royal Borough of Kingston,14/03/2022,90091372,"2,635.05",BLUE ARROW CARE LTD,SOCIAL SERVICES-HOME CARE,Adult Social Care & Health,Personal Budget - Third Party,A61019,0
Royal Borough of Kingston,28/02/2022,70019122,"6,097.50",BNP PARIBAS REAL ESTATE ADVISORY & PROPERTY MANAGEMENT UK LTD,LEGAL & PROFESSIONAL SERVICES,Place,Consultancy Services,A56007,0
Royal Borough of Kingston,26/03/2022,90089394,707,BOLTERS CORNER NURSING HOME,SOCIAL SERVICES RESIDENTIAL,Adult Social Care & Health,"Grants, Contributions & Donations",A47005,0
Royal Borough of Kingston,01/03/2022,90089908,"4,056.93",BOLTERS CORNER NURSING HOME,SOCIAL SERVICES RESIDENTIAL,Adult Social Care & Health,Independent Placements,A56006,0
Royal Borough of Kingston,30/03/2022,90091741,801.66,BONSOR PENNINGTONS LTD,PLS LANDLORDS,Place,PSL Payments To Landlords,A22031,0
Royal Borough of Kingston,30/03/2022,90091742,900,BR INVESTMENTS LIMITED,PLS LANDLORDS,Place,PSL Payments To Landlords,A22031,0
Royal Borough of Kingston,11/03/2022,70021080,"3,000.00",BRaG Residents Association,SUNDRY SUPPLIER - FINANCE,Adult Social Care & Health,"Grants, Contributions & Donations",A47005,0
Royal Borough of Kingston,01/03/2022,90085015,777.6,BRIGHT HORIZONS FAMILY SOLUTIONS,CHILDMINDERS START UP GRANT,Schools,PVI Providers,A60014,0
Royal Borough of Kingston,01/03/2022,90085035,653.4,BRIGHT HORIZONS FAMILY SOLUTIONS,CHILDMINDERS START UP GRANT,Schools,2 Yr Old Place Funding,A60000,0
Royal Borough of Kingston,01/03/2022,90085037,871.2,BRIGHT HORIZONS FAMILY SOLUTIONS,CHILDMINDERS START UP GRANT,Schools,2 Yr Old Place Funding,A60000,0
Royal Borough of Kingston,01/03/2022,90085084,"14,348.04",BRIGHT HORIZONS FAMILY SOLUTIONS,CHILDMINDERS START UP GRANT,Schools,PVI Providers,A60014,0
Royal Borough of Kingston,01/03/2022,90085088,"17,380.44",BRIGHT HORIZONS FAMILY SOLUTIONS,CHILDMINDERS START UP GRANT,Schools,PVI Providers,A60014,0
Royal Borough of Kingston,01/03/2022,90085089,"29,095.08",BRIGHT HORIZONS FAMILY SOLUTIONS,CHILDMINDERS START UP GRANT,Schools,PVI Providers,A60014,0
Royal Borough of Kingston,01/03/2022,90085090,"14,012.88",BRIGHT HORIZONS FAMILY SOLUTIONS,CHILDMINDERS START UP GRANT,Schools,PVI Providers,A60014,0
Royal Borough of Kingston,01/03/2022,90085091,"11,299.68",BRIGHT HORIZONS FAMILY SOLUTIONS,CHILDMINDERS START UP GRANT,Schools,PVI Providers,A60014,0
Royal Borough of Kingston,14/02/2022,90086102,543.38,Bright Star Care Service Ltd,SOCIAL SERVICES - OTHER,Adult Social Care & Health,Homecare - new framework,A56127,0
Royal Borough of Kingston,14/02/2022,90086108,543.38,Bright Star Care Service Ltd,SOCIAL SERVICES - OTHER,Adult Social Care & Health,Homecare - new framework,A56127,0
Royal Borough of Kingston,14/02/2022,90086109,543.38,Bright Star Care Service Ltd,SOCIAL SERVICES - OTHER,Adult Social Care & Health,Homecare - new framework,A56127,0
Royal Borough of Kingston,14/02/2022,90086110,543.38,Bright Star Care Service Ltd,SOCIAL SERVICES - OTHER,Adult Social Care & Health,Homecare - new framework,A56127,0
Royal Borough of Kingston,14/02/2022,90086150,543.38,Bright Star Care Service Ltd,SOCIAL SERVICES - OTHER,Adult Social Care & Health,Homecare - new framework,A56127,0
Royal Borough of Kingston,14/02/2022,90086182,543.38,Bright Star Care Service Ltd,SOCIAL SERVICES - OTHER,Adult Social Care & Health,Homecare - new framework,A56127,0
Royal Borough of Kingston,14/02/2022,90086265,543.38,Bright Star Care Service Ltd,SOCIAL SERVICES - OTHER,Adult Social Care & Health,Homecare - new framework,A56127,0
Royal Borough of Kingston,14/02/2022,90086267,603.75,Bright Star Care Service Ltd,SOCIAL SERVICES - OTHER,Adult Social Care & Health,Homecare - new framework,A56127,0
Royal Borough of Kingston,14/02/2022,90086347,603.75,Bright Star Care Service Ltd,SOCIAL SERVICES - OTHER,Adult Social Care & Health,Homecare - new framework,A56127,0
Royal Borough of Kingston,14/02/2022,90086402,543.38,Bright Star Care Service Ltd,SOCIAL SERVICES - OTHER,Adult Social Care & Health,Homecare - new framework,A56127,0
Royal Borough of Kingston,14/02/2022,90086405,724.5,Bright Star Care Service Ltd,SOCIAL SERVICES - OTHER,Adult Social Care & Health,Homecare - new framework,A56127,0
Royal Borough of Kingston,14/02/2022,90086777,603.75,Bright Star Care Service Ltd,SOCIAL SERVICES - OTHER,Adult Social Care & Health,Personal Budget - Third Party,A61019,0
Royal Borough of Kingston,21/02/2022,90087441,543.38,Bright Star Care Service Ltd,SOCIAL SERVICES - OTHER,Adult Social Care & Health,Homecare - new framework,A56127,0
Royal Borough of Kingston,21/02/2022,90087446,-543.38,Bright Star Care Service Ltd,SOCIAL SERVICES - OTHER,Adult Social Care & Health,Homecare - new framework,A56127,0
Royal Borough of Kingston,21/02/2022,90087447,-543.38,Bright Star Care Service Ltd,SOCIAL SERVICES - OTHER,Adult Social Care & Health,Homecare - new framework,A56127,0
Royal Borough of Kingston,21/02/2022,90087448,-543.38,Bright Star Care Service Ltd,SOCIAL SERVICES - OTHER,Adult Social Care & Health,Homecare - new framework,A56127,0
Royal Borough of Kingston,21/02/2022,90087478,543.38,Bright Star Care Service Ltd,SOCIAL SERVICES - OTHER,Adult Social Care & Health,Homecare - new framework,A56127,0
Royal Borough of Kingston,21/02/2022,90087481,603.75,Bright Star Care Service Ltd,SOCIAL SERVICES - OTHER,Adult Social Care & Health,Homecare - new framework,A56127,0
Royal Borough of Kingston,21/02/2022,90087504,543.38,Bright Star Care Service Ltd,SOCIAL SERVICES - OTHER,Adult Social Care & Health,Homecare - new framework,A56127,0
Royal Borough of Kingston,21/02/2022,90087582,543.38,Bright Star Care Service Ltd,SOCIAL SERVICES - OTHER,Adult Social Care & Health,Homecare - new framework,A56127,0
Royal Borough of Kingston,21/02/2022,90087705,543.38,Bright Star Care Service Ltd,SOCIAL SERVICES - OTHER,Adult Social Care & Health,Homecare - new framework,A56127,0
Royal Borough of Kingston,21/02/2022,90087708,724.5,Bright Star Care Service Ltd,SOCIAL SERVICES - OTHER,Adult Social Care & Health,Homecare - new framework,A56127,0
Royal Borough of Kingston,21/02/2022,90088133,603.75,Bright Star Care Service Ltd,SOCIAL SERVICES - OTHER,Adult Social Care & Health,Personal Budget - Third Party,A61019,0
Royal Borough of Kingston,28/02/2022,90088532,543.38,Bright Star Care Service Ltd,SOCIAL SERVICES - OTHER,Adult Social Care & Health,Homecare - new framework,A56127,0
Royal Borough of Kingston,28/02/2022,90088535,603.75,Bright Star Care Service Ltd,SOCIAL SERVICES - OTHER,Adult Social Care & Health,Homecare - new framework,A56127,0
Royal Borough of Kingston,28/02/2022,90088553,543.38,Bright Star Care Service Ltd,SOCIAL SERVICES - OTHER,Adult Social Care & Health,Homecare - new framework,A56127,0
Royal Borough of Kingston,28/02/2022,90088642,543.38,Bright Star Care Service Ltd,SOCIAL SERVICES - OTHER,Adult Social Care & Health,Homecare - new framework,A56127,0
Royal Borough of Kingston,28/02/2022,90088763,543.38,Bright Star Care Service Ltd,SOCIAL SERVICES - OTHER,Adult Social Care & Health,Homecare - new framework,A56127,0
Royal Borough of Kingston,28/02/2022,90088767,724.5,Bright Star Care Service Ltd,SOCIAL SERVICES - OTHER,Adult Social Care & Health,Homecare - new framework,A56127,0
Royal Borough of Kingston,28/02/2022,90089121,603.75,Bright Star Care Service Ltd,SOCIAL SERVICES - OTHER,Adult Social Care & Health,Personal Budget - Third Party,A61019,0
Royal Borough of Kingston,26/03/2022,90089395,777,Bright Star Care Service Ltd,SOCIAL SERVICES - OTHER,Adult Social Care & Health,"Grants, Contributions & Donations",A47005,0
Royal Borough of Kingston,07/03/2022,90090306,543.38,Bright Star Care Service Ltd,SOCIAL SERVICES - OTHER,Adult Social Care & Health,Homecare - new framework,A56127,0
Royal Borough of Kingston,07/03/2022,90090344,543.38,Bright Star Care Service Ltd,SOCIAL SERVICES - OTHER,Adult Social Care & Health,Homecare - new framework,A56127,0
Royal Borough of Kingston,07/03/2022,90090362,543.38,Bright Star Care Service Ltd,SOCIAL SERVICES - OTHER,Adult Social Care & Health,Homecare - new framework,A56127,0
Royal Borough of Kingston,07/03/2022,90090447,543.38,Bright Star Care Service Ltd,SOCIAL SERVICES - OTHER,Adult Social Care & Health,Homecare - new framework,A56127,0
Royal Borough of Kingston,07/03/2022,90090564,543.38,Bright Star Care Service Ltd,SOCIAL SERVICES - OTHER,Adult Social Care & Health,Homecare - new framework,A56127,0
Royal Borough of Kingston,07/03/2022,90090567,724.5,Bright Star Care Service Ltd,SOCIAL SERVICES - OTHER,Adult Social Care & Health,Homecare - new framework,A56127,0
Royal Borough of Kingston,07/03/2022,90091345,603.75,Bright Star Care Service Ltd,SOCIAL SERVICES - OTHER,Adult Social Care & Health,Personal Budget - Third Party,A61019,0
Royal Borough of Kingston,09/03/2022,70020817,"1,089.40",BRITISH GAS TRADING LTD,UTILITIES,Housing Revenue Account,Electricity,A21000,0
Royal Borough of Kingston,25/02/2022,70020804,"4,338.35",BRITISH TELECOMMUNICATIONS PLC,TELECOMS,Corporate & Communities,Telephones,A45020,0
Royal Borough of Kingston,17/02/2021,70020811,"3,391.47",BRITISH TELECOMMUNICATIONS PLC,TELECOMS,Corporate & Communities,Telephones,A45020,0
Royal Borough of Kingston,28/02/2022,70020608,"1,344.00",Buildvantage Limited,ACCOMMODATION BED & BREAKFAST,Place,Bed & Breakfast,A56000,0
Royal Borough of Kingston,28/02/2022,70020649,"1,344.00",Buildvantage Limited,ACCOMMODATION BED & BREAKFAST,Place,Bed & Breakfast,A56000,0
Royal Borough of Kingston,28/02/2022,70020651,"1,200.00",Buildvantage Limited,ACCOMMODATION BED & BREAKFAST,Place,Bed & Breakfast,A56000,0
Royal Borough of Kingston,28/02/2022,70020652,"1,344.00",Buildvantage Limited,ACCOMMODATION BED & BREAKFAST,Place,Bed & Breakfast,A56000,0
Royal Borough of Kingston,28/02/2022,70020653,"1,344.00",Buildvantage Limited,ACCOMMODATION BED & BREAKFAST,Place,Bed & Breakfast,A56000,0
Royal Borough of Kingston,28/02/2022,70020654,864,Buildvantage Limited,ACCOMMODATION BED & BREAKFAST,Place,Bed & Breakfast,A56000,0
Royal Borough of Kingston,28/02/2022,70020655,960,Buildvantage Limited,ACCOMMODATION BED & BREAKFAST,Place,Bed & Breakfast,A56000,0
Royal Borough of Kingston,28/02/2022,70020656,"1,344.00",Buildvantage Limited,ACCOMMODATION BED & BREAKFAST,Place,Bed & Breakfast,A56000,0
Royal Borough of Kingston,31/01/2022,70020657,"1,488.00",Buildvantage Limited,ACCOMMODATION BED & BREAKFAST,Place,Bed & Breakfast,A56000,0
Royal Borough of Kingston,31/12/2021,70020658,480,Buildvantage Limited,ACCOMMODATION BED & BREAKFAST,Place,Bed & Breakfast,A56000,0
Royal Borough of Kingston,28/02/2022,70020659,480,Buildvantage Limited,ACCOMMODATION BED & BREAKFAST,Place,Bed & Breakfast,A56000,0
Royal Borough of Kingston,28/02/2022,70020660,"1,344.00",Buildvantage Limited,ACCOMMODATION BED & BREAKFAST,Place,Bed & Breakfast,A56000,0
Royal Borough of Kingston,28/02/2022,70020661,"1,344.00",Buildvantage Limited,ACCOMMODATION BED & BREAKFAST,Place,Bed & Breakfast,A56000,0
Royal Borough of Kingston,28/02/2022,70020662,462,Buildvantage Limited,ACCOMMODATION BED & BREAKFAST,Place,Bed & Breakfast,A56000,0
Royal Borough of Kingston,28/02/2022,70020663,"1,344.00",Buildvantage Limited,ACCOMMODATION BED & BREAKFAST,Place,Bed & Breakfast,A56000,0
Royal Borough of Kingston,28/02/2022,70020664,"1,344.00",Buildvantage Limited,ACCOMMODATION BED & BREAKFAST,Place,Bed & Breakfast,A56000,0
Royal Borough of Kingston,28/02/2022,70020665,"1,344.00",Buildvantage Limited,ACCOMMODATION BED & BREAKFAST,Place,Bed & Breakfast,A56000,0
Royal Borough of Kingston,28/02/2022,70020666,"1,344.00",Buildvantage Limited,ACCOMMODATION BED & BREAKFAST,Place,Bed & Breakfast,A56000,0
Royal Borough of Kingston,28/02/2022,70020668,960,Buildvantage Limited,ACCOMMODATION BED & BREAKFAST,Place,Bed & Breakfast,A56000,0
Royal Borough of Kingston,28/02/2022,70020669,"1,344.00",Buildvantage Limited,ACCOMMODATION BED & BREAKFAST,Place,Bed & Breakfast,A56000,0
Royal Borough of Kingston,28/02/2022,70020671,798,Buildvantage Limited,ACCOMMODATION BED & BREAKFAST,Place,Bed & Breakfast,A56000,0
Royal Borough of Kingston,28/02/2022,70020685,"1,344.00",Buildvantage Limited,ACCOMMODATION BED & BREAKFAST,Place,Bed & Breakfast,A56000,0
Royal Borough of Kingston,01/03/2022,70019258,765.56,BUNZL OUTSOURCING SVS UK LTD,CLOTHING & UNIFORMS,Adult Social Care & Health,Equipment And Materials Repairs & Maintenance,A40051,0
Royal Borough of Kingston,01/03/2022,90089902,"3,438.79",BUPA CARE  HOME (CFH CARE ) LTD,SOCIAL SERVICES RESIDENTIAL,Adult Social Care & Health,Independent Placements,A56006,0
Royal Borough of Kingston,01/03/2022,90086093,"2,237.38",BUPA CARE HOMES (AKW) LIMITED,SOCIAL SERVICES RESIDENTIAL,Adult Social Care & Health,Independent Placements,A56006,0
Royal Borough of Kingston,01/03/2022,90086094,"8,669.86",BUPA CARE HOMES (AKW) LIMITED,SOCIAL SERVICES RESIDENTIAL,Adult Social Care & Health,Independent Placements,A56006,0
Royal Borough of Kingston,01/03/2022,90086095,"8,669.86",BUPA CARE HOMES (AKW) LIMITED,SOCIAL SERVICES RESIDENTIAL,Adult Social Care & Health,Independent Placements,A56006,0
Royal Borough of Kingston,01/03/2022,90086096,"7,830.84",BUPA CARE HOMES (AKW) LIMITED,SOCIAL SERVICES RESIDENTIAL,Adult Social Care & Health,Independent Placements,A56006,0
Royal Borough of Kingston,26/03/2022,90089399,"1,531.00",BUPA CARE HOMES (AKW) LIMITED,SOCIAL SERVICES RESIDENTIAL,Adult Social Care & Health,"Grants, Contributions & Donations",A47005,0
Royal Borough of Kingston,01/03/2022,90089810,"8,007.03",BUPA CARE HOMES (AKW) LIMITED,SOCIAL SERVICES RESIDENTIAL,Adult Social Care & Health,Independent Placements,A56006,0
Royal Borough of Kingston,01/03/2022,90089811,"8,669.86",BUPA CARE HOMES (AKW) LIMITED,SOCIAL SERVICES RESIDENTIAL,Adult Social Care & Health,Independent Placements,A56006,0
Royal Borough of Kingston,01/03/2022,90090100,"5,125.27",BUPA CARE HOMES (AKW) LIMITED,SOCIAL SERVICES RESIDENTIAL,Adult Social Care & Health,Independent Placements,A56006,0
Royal Borough of Kingston,01/03/2022,90084972,"1,240.20",BURLINGTON INFANT AND NURSERY SCHOOL,SCHOOL FUNDS,Schools,Miscellaneous Expenses,A49000,0
Royal Borough of Kingston,01/03/2022,90085039,"5,662.80",BURLINGTON INFANT AND NURSERY SCHOOL,SCHOOL FUNDS,Schools,2 Yr Old Place Funding,A60000,0
Royal Borough of Kingston,01/03/2022,90085093,"45,581.76",BURLINGTON INFANT AND NURSERY SCHOOL,SCHOOL FUNDS,Schools,Miscellaneous Expenses,A49000,0
Royal Borough of Kingston,04/03/2022,90085273,"139,718.80",BURLINGTON INFANT AND NURSERY SCHOOL,SCHOOL FUNDS,Schools,Miscellaneous Expenses,A49000,0
Royal Borough of Kingston,28/03/2022,90089624,"19,502.50",BURLINGTON INFANT AND NURSERY SCHOOL,SCHOOL FUNDS,Schools,Miscellaneous Expenses,A49000,0
Royal Borough of Kingston,28/03/2022,90089625,"1,758.75",BURLINGTON INFANT AND NURSERY SCHOOL,SCHOOL FUNDS,Schools,Miscellaneous Expenses,A49000,0
Royal Borough of Kingston,30/03/2022,90091530,"2,240.25",BURLINGTON INFANT AND NURSERY SCHOOL,SCHOOL FUNDS,Capital Programme,Payments to Contractors,C14000,0
Royal Borough of Kingston,04/03/2022,90085274,"177,917.09",BURLINGTON JUNIOR SCHOOL,SCHOOL FUNDS,Schools,Miscellaneous Expenses,A49000,0
Royal Borough of Kingston,24/03/2022,90089264,"2,283.75",BURLINGTON JUNIOR SCHOOL,SCHOOL FUNDS,Schools,Miscellaneous Expenses,A49000,0
Royal Borough of Kingston,28/03/2022,90089626,"30,262.50",BURLINGTON JUNIOR SCHOOL,SCHOOL FUNDS,Schools,Miscellaneous Expenses,A49000,0
Royal Borough of Kingston,30/03/2022,90091531,"2,341.50",BURLINGTON JUNIOR SCHOOL,SCHOOL FUNDS,Capital Programme,Payments to Contractors,C14000,0
Royal Borough of Kingston,28/02/2022,70019517,"24,690.00",BURO HAPPOLD LIMTED,LEGAL & PROFESSIONAL SERVICES,Capital Programme,Buildings - Design & Planning,C14001,0
Royal Borough of Kingston,15/02/2022,70018268,"1,067.60",BYTES SOFTWARE SERVICES LTD,BUSINESS & COMPUTER SYSTEMS,Corporate & Communities,Cloud Services,A45007,0
Royal Borough of Kingston,28/02/2022,70019016,"3,779.68",BYTES SOFTWARE SERVICES LTD,BUSINESS & COMPUTER SYSTEMS,Capital Programme,Intangible Assets - Project Management,C13001,0
Royal Borough of Kingston,28/02/2022,70019045,"19,769.65",BYTES SOFTWARE SERVICES LTD,BUSINESS & COMPUTER SYSTEMS,Capital Programme,Intangible Assets - Project Management,C13001,0
Royal Borough of Kingston,07/03/2022,70019706,"48,513.00",BYTES SOFTWARE SERVICES LTD,BUSINESS & COMPUTER SYSTEMS,Capital Programme,Intangible Assets - Purchase,C13000,0
Royal Borough of Kingston,11/03/2022,70020053,"10,645.05",BYTES SOFTWARE SERVICES LTD,BUSINESS & COMPUTER SYSTEMS,Corporate & Communities,Cloud Services,A45007,0
Royal Borough of Kingston,14/03/2022,70020208,"27,239.29",BYTES SOFTWARE SERVICES LTD,BUSINESS & COMPUTER SYSTEMS,Capital Programme,Intangible Assets - Project Management,C13001,0
Royal Borough of Kingston,30/04/2022,90085262,"1,242.00",REDACTED - PERSONAL DATA,SOCIAL SERVICES - DIRECT PAYMENTS,Adult Social Care & Health,Payments To Carers,A56030,0
Royal Borough of Kingston,30/03/2022,90091750,888.33,REDACTED - PERSONAL DATA,PLS LANDLORDS,Place,PSL Payments To Landlords,A22031,0
Royal Borough of Kingston,30/03/2022,90091684,"1,314.08",REDACTED - PERSONAL DATA,PLS LANDLORDS,Place,PSL Payments To Landlords,A22031,0
Royal Borough of Kingston,30/03/2022,90091685,"1,094.00",REDACTED - PERSONAL DATA,PLS LANDLORDS,Place,PSL Payments To Landlords,A22031,0
Royal Borough of Kingston,30/03/2022,90091812,"1,314.08",REDACTED - PERSONAL DATA,PLS LANDLORDS,Place,PSL Payments To Landlords,A22031,0
Royal Borough of Kingston,30/03/2022,90091813,"1,314.08",REDACTED - PERSONAL DATA,PLS LANDLORDS,Place,PSL Payments To Landlords,A22031,0
Royal Borough of Kingston,30/03/2022,90091814,"1,314.08",REDACTED - PERSONAL DATA,PLS LANDLORDS,Place,PSL Payments To Landlords,A22031,0
Royal Borough of Kingston,30/03/2022,90091815,"1,314.08",REDACTED - PERSONAL DATA,PLS LANDLORDS,Place,PSL Payments To Landlords,A22031,0
Royal Borough of Kingston,30/03/2022,90091773,"1,317.76",REDACTED - PERSONAL DATA,PLS LANDLORDS,Place,PSL Payments To Landlords,A22031,0
Royal Borough of Kingston,30/03/2022,90091752,"1,025.00",REDACTED - PERSONAL DATA,PLS LANDLORDS,Place,PSL Payments To Landlords,A22031,0
Royal Borough of Kingston,30/03/2022,90091906,"1,679.75",REDACTED - PERSONAL DATA,PLS LANDLORDS,Place,PSL Payments To Landlords,A22031,0
Royal Borough of Kingston,10/03/2022,70020026,"1,000.00",C R E S T,GRANTS & EX GRATIA PAYMENTS,Adult Social Care & Health,Other Private Contractors - Third Party,A56080,0
Royal Borough of Kingston,03/03/2022,70020476,730,C R E S T,GRANTS & EX GRATIA PAYMENTS,Adult Social Care & Health,"Grants, Contributions & Donations",A47005,0
Royal Borough of Kingston,02/03/2022,70019425,"6,102.50",CABLES DIRECT LIMITED,IT EQUIPMENT MAINTENANCE,Corporate & Communities,IT Hardware Purchase,A45005,0
Royal Borough of Kingston,03/03/2022,70019458,"22,326.60",CAMBRIDGE HOUSE AND TALBOT,LEGAL & PROFESSIONAL SERVICES,Adult Social Care & Health,Professional Fees,A44066,0
Royal Borough of Kingston,22/02/2022,70019072,"149,488.00",CAMDEN & ISLINGTON NHS FOUNDATION TRUST,LEGAL & PROFESSIONAL SERVICES,Adult Social Care & Health,Other Private Contractors - Third Party,A56080,0
Royal Borough of Kingston,22/02/2022,70019119,"60,142.00",CAMDEN & ISLINGTON NHS FOUNDATION TRUST,LEGAL & PROFESSIONAL SERVICES,Adult Social Care & Health,Other Private Contractors - Third Party,A56080,0
Royal Borough of Kingston,25/02/2022,70019164,"121,795.00",CAMDEN & ISLINGTON NHS FOUNDATION TRUST,LEGAL & PROFESSIONAL SERVICES,Adult Social Care & Health,Other Private Contractors - Third Party,A56080,0
Royal Borough of Kingston,25/02/2022,70019165,"12,669.50",CAMDEN & ISLINGTON NHS FOUNDATION TRUST,LEGAL & PROFESSIONAL SERVICES,Adult Social Care & Health,Other Private Contractors - Third Party,A56080,0
Royal Borough of Kingston,22/02/2022,70018945,"3,304.82",CANON (UK) LTD,OPERATIONAL EQUIPMENT/MATERIAL,Corporate & Communities,Printing And Photocopying,A43005,0
Royal Borough of Kingston,22/02/2022,70018946,"1,324.27",CANON (UK) LTD,OPERATIONAL EQUIPMENT/MATERIAL,Corporate & Communities,Printing And Photocopying,A43005,0
Royal Borough of Kingston,22/02/2022,70018947,"8,787.54",CANON (UK) LTD,OPERATIONAL EQUIPMENT/MATERIAL,Corporate & Communities,Printing And Photocopying,A43005,0
Royal Borough of Kingston,30/12/2021,70020299,"2,165.49",CANON (UK) LTD,OPERATIONAL EQUIPMENT/MATERIAL,Corporate & Communities,Printing And Photocopying,A43005,0
Royal Borough of Kingston,30/12/2021,70020346,545.46,CANON (UK) LTD,OPERATIONAL EQUIPMENT/MATERIAL,Corporate & Communities,Printing And Photocopying,A43005,0
Royal Borough of Kingston,30/12/2021,70020347,"2,682.84",CANON (UK) LTD,OPERATIONAL EQUIPMENT/MATERIAL,Corporate & Communities,Printing And Photocopying,A43005,0
Royal Borough of Kingston,24/03/2022,70021108,915.2,CANON (UK) LTD,OPERATIONAL EQUIPMENT/MATERIAL,Corporate & Communities,Printing And Photocopying,A43005,0
Royal Borough of Kingston,24/02/2022,70021166,"-1,656.00",CANON (UK) LTD,OPERATIONAL EQUIPMENT/MATERIAL,Corporate & Communities,Printing And Photocopying,A43005,0
Royal Borough of Kingston,01/03/2022,90091088,"5,123.50",CARE MANAGEMENT GROUP LTD,SOCIAL SERVICES RESIDENTIAL,Adult Social Care & Health,Personal Budget - Third Party,A61019,0
Royal Borough of Kingston,24/03/2022,90089329,"2,926.06",CARE UK COMMUNITY PARTNERSHIPS LTD,SOCIAL SERVICES RESIDENTIAL,Adult Social Care & Health,"Grants, Contributions & Donations",A47005,0
Royal Borough of Kingston,26/03/2022,90089407,889,CARE UK COMMUNITY PARTNERSHIPS LTD,SOCIAL SERVICES RESIDENTIAL,Adult Social Care & Health,"Grants, Contributions & Donations",A47005,0
Royal Borough of Kingston,01/03/2022,90089837,"3,220.46",CARE UK COMMUNITY PARTNERSHIPS LTD,SOCIAL SERVICES RESIDENTIAL,Adult Social Care & Health,Independent Placements,A56006,0
Royal Borough of Kingston,01/03/2022,90089846,"3,321.43",CARE UK COMMUNITY PARTNERSHIPS LTD,SOCIAL SERVICES RESIDENTIAL,Adult Social Care & Health,Independent Placements,A56006,0
Royal Borough of Kingston,01/03/2022,90089984,"3,985.71",CARE UK COMMUNITY PARTNERSHIPS LTD,SOCIAL SERVICES RESIDENTIAL,Adult Social Care & Health,Independent Placements,A56006,0
Royal Borough of Kingston,01/03/2022,90089999,"2,683.71",CARE UK COMMUNITY PARTNERSHIPS LTD,SOCIAL SERVICES RESIDENTIAL,Adult Social Care & Health,Independent Placements,A56006,0
Royal Borough of Kingston,26/03/2022,90089408,"1,236.00",CARE UNLIMITED GROUP LTD,SOCIAL SERVICES RESIDENTIAL,Adult Social Care & Health,"Grants, Contributions & Donations",A47005,0
Royal Borough of Kingston,24/03/2022,90089282,"1,872.50",CAREART UK LTD,SOCIAL SERVICES - OTHER,Adult Social Care & Health,"Grants, Contributions & Donations",A47005,0
Royal Borough of Kingston,01/03/2022,90085072,"1,306.80",CAREROOM LTD ,ACADEMIC INSTNS - OTHER,Schools,2 Yr Old Place Funding,A60000,0
Royal Borough of Kingston,01/03/2022,90085179,"8,829.07",CAREROOM LTD ,ACADEMIC INSTNS - OTHER,Schools,PVI Providers,A60014,0
Royal Borough of Kingston,21/02/2022,90086271,724.5,CARLCARE LTD,SOCIAL SERVICES-HOME CARE,Adult Social Care & Health,Homecare - new framework,A56127,0
Royal Borough of Kingston,21/02/2022,90086544,586.5,CARLCARE LTD,SOCIAL SERVICES-HOME CARE,Adult Social Care & Health,Homecare - new framework,A56127,0
Royal Borough of Kingston,28/02/2022,90087597,724.5,CARLCARE LTD,SOCIAL SERVICES-HOME CARE,Adult Social Care & Health,Homecare - new framework,A56127,0
Royal Borough of Kingston,28/02/2022,90087862,595.13,CARLCARE LTD,SOCIAL SERVICES-HOME CARE,Adult Social Care & Health,Homecare - new framework,A56127,0
Royal Borough of Kingston,07/03/2022,90088653,724.5,CARLCARE LTD,SOCIAL SERVICES-HOME CARE,Adult Social Care & Health,Homecare - new framework,A56127,0
Royal Borough of Kingston,07/03/2022,90088911,595.13,CARLCARE LTD,SOCIAL SERVICES-HOME CARE,Adult Social Care & Health,Homecare - new framework,A56127,0
Royal Borough of Kingston,24/03/2022,90089283,"3,487.98",CARLCARE LTD,SOCIAL SERVICES-HOME CARE,Adult Social Care & Health,"Grants, Contributions & Donations",A47005,0
Royal Borough of Kingston,24/03/2022,90089341,"4,447.54",CARLCARE LTD,SOCIAL SERVICES-HOME CARE,Adult Social Care & Health,"Grants, Contributions & Donations",A47005,0
Royal Borough of Kingston,26/03/2022,90089412,"1,010.00",CARLCARE LTD,SOCIAL SERVICES-HOME CARE,Adult Social Care & Health,"Grants, Contributions & Donations",A47005,0
Royal Borough of Kingston,14/03/2022,90090453,724.5,CARLCARE LTD,SOCIAL SERVICES-HOME CARE,Adult Social Care & Health,Homecare - new framework,A56127,0
Royal Borough of Kingston,14/03/2022,90090689,724.5,CARLCARE LTD,SOCIAL SERVICES-HOME CARE,Adult Social Care & Health,Homecare - new framework,A56127,0
Royal Borough of Kingston,30/03/2022,90091788,"1,343.00",CARLISLE SECURITIES LTD,PLS LANDLORDS,Place,PSL Payments To Landlords,A22031,0
Royal Borough of Kingston,30/03/2022,90091588,"1,094.00",REDACTED - PERSONAL DATA,PLS LANDLORDS,Place,PSL Payments To Landlords,A22031,0
Royal Borough of Kingston,01/03/2022,90085181,"1,532.16",REDACTED - PERSONAL DATA,CHILDMINDERS START UP GRANT,Schools,PVI Providers,A60014,0
Royal Borough of Kingston,01/03/2022,90085197,766.08,REDACTED - PERSONAL DATA,CHILDMINDERS START UP GRANT,Schools,PVI Providers,A60014,0
Royal Borough of Kingston,26/03/2022,90089417,786,CARTREF HOMES,SOCIAL SERVICES RESIDENTIAL,Adult Social Care & Health,"Grants, Contributions & Donations",A47005,0
Royal Borough of Kingston,01/03/2022,90090057,"9,114.97",CARTREF HOMES,SOCIAL SERVICES RESIDENTIAL,Adult Social Care & Health,Independent Placements,A56006,0
Royal Borough of Kingston,26/03/2022,90089454,"2,472.00",CAS CARE SERVICES LTD,SOCIAL SERVICES - OTHER,Adult Social Care & Health,"Grants, Contributions & Donations",A47005,0
Royal Borough of Kingston,01/03/2022,90090030,"13,497.31",CAS CARE SERVICES LTD,SOCIAL SERVICES - OTHER,Adult Social Care & Health,Independent Placements,A56006,0
Royal Borough of Kingston,01/03/2022,90090076,"13,497.31",CAS CARE SERVICES LTD,SOCIAL SERVICES - OTHER,Adult Social Care & Health,Independent Placements,A56006,0
Royal Borough of Kingston,01/03/2022,90084973,572.4,CASTLE HILL SCHOOL,SCHOOL FUNDS,Schools,Miscellaneous Expenses,A49000,0
Royal Borough of Kingston,01/03/2022,90085040,"3,920.40",CASTLE HILL SCHOOL,SCHOOL FUNDS,Schools,2 Yr Old Place Funding,A60000,0
Royal Borough of Kingston,01/03/2022,90085094,"34,243.78",CASTLE HILL SCHOOL,SCHOOL FUNDS,Schools,Miscellaneous Expenses,A49000,0
Royal Borough of Kingston,01/03/2022,90085095,"1,149.12",CASTLE HILL SCHOOL,SCHOOL FUNDS,Schools,PVI Providers,A60014,0
Royal Borough of Kingston,30/03/2022,90091864,"1,675.00",CASTLE RESIDENTIAL PROPERTIES LTD,PLS LANDLORDS,Place,PSL Payments To Landlords,A22031,0
Royal Borough of Kingston,30/03/2022,90091936,"1,675.00",CASTLE RESIDENTIAL PROPERTIES LTD,PLS LANDLORDS,Place,PSL Payments To Landlords,A22031,0
Royal Borough of Kingston,14/03/2022,70020399,606.78,CASTLE WATER LIMITED,UTILITIES,Corporate & Communities,Water Services,A24005,0
Royal Borough of Kingston,30/03/2022,90091556,"1,094.34",CASTLE WILDISH RESI LTD,PLS LANDLORDS,Place,PSL Payments To Landlords,A22031,0
Royal Borough of Kingston,30/03/2022,90091557,"1,094.34",CASTLE WILDISH RESI LTD,PLS LANDLORDS,Place,PSL Payments To Landlords,A22031,0
Royal Borough of Kingston,30/03/2022,90091558,"1,094.34",CASTLE WILDISH RESI LTD,PLS LANDLORDS,Place,PSL Payments To Landlords,A22031,0
Royal Borough of Kingston,30/03/2022,90091626,"1,094.00",CASTLE WILDISH RESI LTD,PLS LANDLORDS,Place,PSL Payments To Landlords,A22031,0
Royal Borough of Kingston,30/03/2022,90091923,"1,626.00",CASTLE WILDISH RESI LTD,PLS LANDLORDS,Place,PSL Payments To Landlords,A22031,0
Royal Borough of Kingston,30/03/2022,90091924,"1,626.00",CASTLE WILDISH RESI LTD,PLS LANDLORDS,Place,PSL Payments To Landlords,A22031,0
Royal Borough of Kingston,30/03/2022,90091729,867,REDACTED - PERSONAL DATA,PLS LANDLORDS,Place,PSL Payments To Landlords,A22031,0
Royal Borough of Kingston,26/03/2022,90089418,983,CAVENDISH CARE,SOCIAL SERVICES RESIDENTIAL,Adult Social Care & Health,"Grants, Contributions & Donations",A47005,0
Royal Borough of Kingston,01/03/2022,90090045,"10,733.53",CAVENDISH CARE,SOCIAL SERVICES RESIDENTIAL,Adult Social Care & Health,Independent Placements,A56006,0
Royal Borough of Kingston,30/03/2022,90091710,850,REDACTED - PERSONAL DATA,PLS LANDLORDS,Place,PSL Payments To Landlords,A22031,0
Royal Borough of Kingston,29/03/2022,70021303,"7,100.00",REDACTED - PERSONAL DATA,SUNDRY SUPPLIER - HOUSING,Capital Programme,Buildings - Project Management,C14003,0
Royal Borough of Kingston,01/03/2022,90089818,"3,321.43",CHARING OAST LTD ,SOCIAL SERVICES RESIDENTIAL,Adult Social Care & Health,Independent Placements,A56006,0
Royal Borough of Kingston,01/03/2022,90085183,"1,532.16",REDACTED - PERSONAL DATA,CHILDMINDERS START UP GRANT,Schools,PVI Providers,A60014,0
Royal Borough of Kingston,31/01/2022,70019032,610,CHAWTON HILL ASSOCIATES LIMITED,LEGAL & PROFESSIONAL SERVICES,Capital Programme,Payments to Contractors,C14000,0
Royal Borough of Kingston,31/01/2022,70019033,"3,943.86",CHAWTON HILL ASSOCIATES LIMITED,LEGAL & PROFESSIONAL SERVICES,Place,Consultancy Services - Other,A44065,0
Royal Borough of Kingston,31/01/2022,70019034,"3,995.68",CHAWTON HILL ASSOCIATES LIMITED,LEGAL & PROFESSIONAL SERVICES,Capital Programme,Buildings - Design & Planning,C14001,0
Royal Borough of Kingston,31/01/2022,70019035,"10,000.00",CHAWTON HILL ASSOCIATES LIMITED,LEGAL & PROFESSIONAL SERVICES,Capital Programme,Buildings - Design & Planning,C14001,0
Royal Borough of Kingston,31/01/2022,70019036,450,CHAWTON HILL ASSOCIATES LIMITED,LEGAL & PROFESSIONAL SERVICES,Capital Programme,Buildings - Design & Planning,C14001,0
Royal Borough of Kingston,28/02/2022,70021133,"1,201.84",CHAWTON HILL ASSOCIATES LIMITED,LEGAL & PROFESSIONAL SERVICES,Capital Programme,Buildings - Design & Planning,C14001,0
Royal Borough of Kingston,24/03/2022,90089334,"1,289.45",CHD (CARE HOMES) LTD,SOCIAL SERVICES RESIDENTIAL,Adult Social Care & Health,"Grants, Contributions & Donations",A47005,0
Royal Borough of Kingston,24/03/2022,90089348,"7,033.00",CHD (CARE HOMES) LTD,SOCIAL SERVICES RESIDENTIAL,Adult Social Care & Health,"Grants, Contributions & Donations",A47005,0
Royal Borough of Kingston,26/03/2022,90089581,873,CHD (CARE HOMES) LTD,SOCIAL SERVICES RESIDENTIAL,Adult Social Care & Health,"Grants, Contributions & Donations",A47005,0
Royal Borough of Kingston,01/03/2022,90089867,"3,321.43",CHD (CARE HOMES) LTD,SOCIAL SERVICES RESIDENTIAL,Adult Social Care & Health,Independent Placements,A56006,0
Royal Borough of Kingston,01/03/2022,90089896,"3,542.86",CHD (CARE HOMES) LTD,SOCIAL SERVICES RESIDENTIAL,Adult Social Care & Health,Independent Placements,A56006,0
Royal Borough of Kingston,01/03/2022,90090129,"3,095.57",CHD (CARE HOMES) LTD,SOCIAL SERVICES RESIDENTIAL,Adult Social Care & Health,Other Private Contractors - Third Party,A56080,0
Royal Borough of Kingston,26/03/2022,90089582,"1,732.00",CHD CARE LTD,SOCIAL SERVICES RESIDENTIAL,Adult Social Care & Health,"Grants, Contributions & Donations",A47005,0
Royal Borough of Kingston,01/03/2022,90089682,"11,625.00",CHD CARE LTD,SOCIAL SERVICES RESIDENTIAL,Adult Social Care & Health,Independent Placements,A56006,0
Royal Borough of Kingston,01/03/2022,90089711,"2,571.43",CHD CARE LTD,SOCIAL SERVICES RESIDENTIAL,Adult Social Care & Health,Independent Placements,A56006,0
Royal Borough of Kingston,01/03/2022,90089715,"3,857.14",CHD CARE LTD,SOCIAL SERVICES RESIDENTIAL,Adult Social Care & Health,Independent Placements,A56006,0
Royal Borough of Kingston,01/03/2022,90089840,"5,203.57",CHD CARE LTD,SOCIAL SERVICES RESIDENTIAL,Adult Social Care & Health,Independent Placements,A56006,0
Royal Borough of Kingston,01/03/2022,90089946,"3,321.43",CHD CARE LTD,SOCIAL SERVICES RESIDENTIAL,Adult Social Care & Health,Independent Placements,A56006,0
Royal Borough of Kingston,01/03/2022,90089954,"4,982.14",CHD CARE LTD,SOCIAL SERVICES RESIDENTIAL,Adult Social Care & Health,Independent Placements,A56006,0
Royal Borough of Kingston,01/03/2022,90090126,750,CHD CARE LTD,SOCIAL SERVICES RESIDENTIAL,Adult Social Care & Health,Other Private Contractors - Third Party,A56080,0
Royal Borough of Kingston,01/03/2022,90090127,"1,000.00",CHD CARE LTD,SOCIAL SERVICES RESIDENTIAL,Adult Social Care & Health,Other Private Contractors - Third Party,A56080,0
Royal Borough of Kingston,01/03/2022,90089900,"1,062.86",CHD LIVING,SOCIAL SERVICES RESIDENTIAL,Adult Social Care & Health,Independent Placements,A56006,0
Royal Borough of Kingston,07/03/2022,70019687,600,CHESSINGTON SPORTS CENTRE,OPERATIONAL EQUIPMENT/MATERIAL,Adult Social Care & Health,Subscriptions,A47010,0
Royal Borough of Kingston,01/03/2022,90090015,"3,797.54",CHHG LTD,SOCIAL SERVICES RESIDENTIAL,Adult Social Care & Health,Independent Placements,A56006,0
Royal Borough of Kingston,01/03/2022,90085195,"9,576.00",CHILDS PLAY NURSERY SCHOOL LTD,GRANTS & EX GRATIA PAYMENTS,Schools,PVI Providers,A60014,0
Royal Borough of Kingston,26/03/2022,90089420,879,CHISWICK NURSING CENTRE,SOCIAL SERVICES RESIDENTIAL,Adult Social Care & Health,"Grants, Contributions & Donations",A47005,0
Royal Borough of Kingston,01/03/2022,90089742,"4,207.14",CHISWICK NURSING CENTRE,SOCIAL SERVICES RESIDENTIAL,Adult Social Care & Health,Independent Placements,A56006,0
Royal Borough of Kingston,01/03/2022,90089898,"3,614.07",CHISWICK NURSING CENTRE,SOCIAL SERVICES RESIDENTIAL,Adult Social Care & Health,Independent Placements,A56006,0
Royal Borough of Kingston,01/03/2022,90089927,"3,305.49",CHISWICK NURSING CENTRE,SOCIAL SERVICES RESIDENTIAL,Adult Social Care & Health,Independent Placements,A56006,0
Royal Borough of Kingston,26/03/2022,90089421,717,CHOICE LTD,SOCIAL SERVICES RESIDENTIAL,Adult Social Care & Health,"Grants, Contributions & Donations",A47005,0
Royal Borough of Kingston,26/03/2022,90089422,633,CHOICE LTD,SOCIAL SERVICES RESIDENTIAL,Adult Social Care & Health,"Grants, Contributions & Donations",A47005,0
Royal Borough of Kingston,01/03/2022,90090071,"7,827.50",CHOICE LTD,SOCIAL SERVICES RESIDENTIAL,Adult Social Care & Health,Independent Placements,A56006,0
Royal Borough of Kingston,01/03/2022,90090079,"6,916.45",CHOICE LTD,SOCIAL SERVICES RESIDENTIAL,Adult Social Care & Health,Independent Placements,A56006,0
Royal Borough of Kingston,01/03/2022,90085096,"17,619.84",CHRIST CHURCH  C. OF E.  PRIMARY SCHOOL (NEW MALDEN),SCHOOL FUNDS,Schools,Miscellaneous Expenses,A49000,0
Royal Borough of Kingston,04/03/2022,90085276,"153,325.48",CHRIST CHURCH  C. OF E.  PRIMARY SCHOOL (NEW MALDEN),SCHOOL FUNDS,Schools,Miscellaneous Expenses,A49000,0
Royal Borough of Kingston,28/03/2022,90089629,"12,441.25",CHRIST CHURCH  C. OF E.  PRIMARY SCHOOL (NEW MALDEN),SCHOOL FUNDS,Schools,Miscellaneous Expenses,A49000,0
Royal Borough of Kingston,28/03/2022,90089630,"1,172.50",CHRIST CHURCH  C. OF E.  PRIMARY SCHOOL (NEW MALDEN),SCHOOL FUNDS,Schools,Miscellaneous Expenses,A49000,0
Royal Borough of Kingston,11/02/2022,70018012,"5,336.00",CHRIST CHURCH C.OF E. PRIMARY SCHOOL - (SURBITON),ACADEMIC INSTNS - OTHER,Learning & Childrens Services,MSF Claims Teaching Staff - Internal Trading,A46107,0
Royal Borough of Kingston,11/02/2022,70018014,"1,151.04",CHRIST CHURCH C.OF E. PRIMARY SCHOOL - (SURBITON),ACADEMIC INSTNS - OTHER,Learning & Childrens Services,MSF Claims Support Staff - Internal Trading,A46108,0
Royal Borough of Kingston,15/03/2022,70020313,"5,520.00",CHRIST CHURCH C.OF E. PRIMARY SCHOOL - (SURBITON),ACADEMIC INSTNS - OTHER,Learning & Childrens Services,MSF Claims Teaching Staff - Internal Trading,A46107,0
Royal Borough of Kingston,04/03/2022,90085275,"173,226.88",CHRIST CHURCH C.OF E. PRIMARY SCHOOL - (SURBITON),ACADEMIC INSTNS - OTHER,Schools,Miscellaneous Expenses,A49000,0
Royal Borough of Kingston,28/03/2022,90089627,"9,751.25",CHRIST CHURCH C.OF E. PRIMARY SCHOOL - (SURBITON),ACADEMIC INSTNS - OTHER,Schools,Miscellaneous Expenses,A49000,0
Royal Borough of Kingston,28/03/2022,90089628,"1,172.50",CHRIST CHURCH C.OF E. PRIMARY SCHOOL - (SURBITON),ACADEMIC INSTNS - OTHER,Schools,Miscellaneous Expenses,A49000,0
Royal Borough of Kingston,26/03/2022,90089423,"1,849.00",CHRISTIES CARE LTD,SOCIAL SERVICES RESIDENTIAL,Adult Social Care & Health,"Grants, Contributions & Donations",A47005,0
Royal Borough of Kingston,01/03/2022,90091060,"3,988.19",CHRISTIES CARE LTD,SOCIAL SERVICES RESIDENTIAL,Adult Social Care & Health,Personal Budget - Third Party,A61019,0
Royal Borough of Kingston,01/03/2022,90091075,"4,361.70",CHRISTIES CARE LTD,SOCIAL SERVICES RESIDENTIAL,Adult Social Care & Health,Personal Budget - Third Party,A61019,0
Royal Borough of Kingston,01/03/2022,90091077,"4,059.45",CHRISTIES CARE LTD,SOCIAL SERVICES RESIDENTIAL,Adult Social Care & Health,Personal Budget - Third Party,A61019,0
Royal Borough of Kingston,01/03/2022,90091137,"4,068.75",CHRISTIES CARE LTD,SOCIAL SERVICES RESIDENTIAL,Adult Social Care & Health,Personal Budget - Third Party,A61019,0
Royal Borough of Kingston,28/02/2022,70019335,"1,736.00",CHRISTOPHER HOUSE (LONDON) LTD,ACCOMMODATION BED & BREAKFAST,Place,Bed & Breakfast,A56000,0
Royal Borough of Kingston,17/03/2022,70020510,750,CITY CHANGER PROJECTS,GRANTS & EX GRATIA PAYMENTS,Adult Social Care & Health,"Grants, Contributions & Donations",A47005,0
Royal Borough of Kingston,21/02/2022,70018562,"14,254.08",CITY OF LONDON,CENTRAL & LOCAL GOVERNMENT,Adult Social Care & Health,Other Private Contractors - Third Party,A56080,0
Royal Borough of Kingston,21/02/2022,70018563,"14,832.24",CITY OF LONDON,CENTRAL & LOCAL GOVERNMENT,Adult Social Care & Health,Other Private Contractors - Third Party,A56080,0
Royal Borough of Kingston,02/03/2022,70019440,"4,281.69",CITY OF LONDON,CENTRAL & LOCAL GOVERNMENT,Corporate & Communities,Other Cleaning And Waste-Related Third Party Payment,A56064,0
Royal Borough of Kingston,04/02/2022,70021019,"1,568.00",CITY OF LONDON,CENTRAL & LOCAL GOVERNMENT,Corporate & Communities,Professional Fees,A44066,0
Royal Borough of Kingston,28/02/2022,70019442,515.2,CITYSPRINT (UK) LTD,OFFICE SERVICES,Corporate & Communities,Books,A43050,0
Royal Borough of Kingston,24/03/2022,90089284,"3,341.12",CLARENDON CARE SERVICES LIMITED,TEMP STAFF & CONSULTANCY,Adult Social Care & Health,"Grants, Contributions & Donations",A47005,0
Royal Borough of Kingston,24/03/2022,90089342,"3,291.18",CLARENDON CARE SERVICES LIMITED,TEMP STAFF & CONSULTANCY,Adult Social Care & Health,"Grants, Contributions & Donations",A47005,0
Royal Borough of Kingston,24/03/2022,90089299,"1,248.33",CLARITY VENTURES LTD,SOCIAL SERVICES RESIDENTIAL,Adult Social Care & Health,"Grants, Contributions & Donations",A47005,0
Royal Borough of Kingston,26/03/2022,90089424,777,CLEARWATER CARE (HACKNEY) LTD,SOCIAL SERVICES RESIDENTIAL,Adult Social Care & Health,"Grants, Contributions & Donations",A47005,0
Royal Borough of Kingston,01/03/2022,90090082,"8,480.71",CLEARWATER CARE (HACKNEY) LTD,SOCIAL SERVICES RESIDENTIAL,Adult Social Care & Health,Independent Placements,A56006,0
Royal Borough of Kingston,01/03/2022,90091436,"5,965.06",CLIA Care Ltd,ACCOMMODATION - OTHER,Adult Social Care & Health,Personal Budget - Third Party,A61019,0
Royal Borough of Kingston,30/03/2022,90091811,"1,094.00",CLIFFE &  ROCHFORD,PLS LANDLORDS,Place,PSL Payments To Landlords,A22031,0
Royal Borough of Kingston,30/03/2022,90091629,"1,435.50",CLIQUE 187 LTD,PLS LANDLORDS,Place,PSL Payments To Landlords,A22031,0
Royal Borough of Kingston,26/03/2022,90089403,"1,477.00",CMG LIMITED,SOCIAL SERVICES - OTHER,Adult Social Care & Health,"Grants, Contributions & Donations",A47005,0
Royal Borough of Kingston,01/03/2022,90091072,"2,880.25",CMG LIMITED,SOCIAL SERVICES - OTHER,Adult Social Care & Health,Personal Budget - Third Party,A61019,0
Royal Borough of Kingston,01/03/2022,90091100,"5,225.71",CMG LIMITED,SOCIAL SERVICES - OTHER,Adult Social Care & Health,Personal Budget - Third Party,A61019,0
Royal Borough of Kingston,01/03/2022,90091101,"5,194.71",CMG LIMITED,SOCIAL SERVICES - OTHER,Adult Social Care & Health,Personal Budget - Third Party,A61019,0
Royal Borough of Kingston,01/03/2022,90091125,"5,704.00",CMG LIMITED,SOCIAL SERVICES - OTHER,Adult Social Care & Health,Personal Budget - Third Party,A61019,0
Royal Borough of Kingston,01/03/2022,90091139,878.45,CMG LIMITED,SOCIAL SERVICES - OTHER,Adult Social Care & Health,Personal Budget - Third Party,A61019,0
Royal Borough of Kingston,01/03/2022,90091140,"3,795.11",CMG LIMITED,SOCIAL SERVICES - OTHER,Adult Social Care & Health,Personal Budget - Third Party,A61019,0
Royal Borough of Kingston,01/03/2022,90091198,"4,527.15",CMG LIMITED,SOCIAL SERVICES - OTHER,Adult Social Care & Health,Personal Budget - Third Party,A61019,0
Royal Borough of Kingston,21/02/2022,90086320,905.63,CN Healthcare,SOCIAL SERVICES - OTHER,Adult Social Care & Health,Homecare - new framework,A56127,0
Royal Borough of Kingston,28/02/2022,90087453,543.38,CN Healthcare,SOCIAL SERVICES - OTHER,Adult Social Care & Health,Homecare - new framework,A56127,0
Royal Borough of Kingston,28/02/2022,90087650,905.63,CN Healthcare,SOCIAL SERVICES - OTHER,Adult Social Care & Health,Homecare - new framework,A56127,0
Royal Borough of Kingston,07/03/2022,90088510,543.38,CN Healthcare,SOCIAL SERVICES - OTHER,Adult Social Care & Health,Homecare - new framework,A56127,0
Royal Borough of Kingston,07/03/2022,90088708,905.63,CN Healthcare,SOCIAL SERVICES - OTHER,Adult Social Care & Health,Homecare - new framework,A56127,0
Royal Borough of Kingston,26/03/2022,90089427,791,CN Healthcare,SOCIAL SERVICES - OTHER,Adult Social Care & Health,"Grants, Contributions & Donations",A47005,0
Royal Borough of Kingston,14/03/2022,90090364,739.29,CN Healthcare,SOCIAL SERVICES - OTHER,Adult Social Care & Health,Homecare - new framework,A56127,0
Royal Borough of Kingston,14/03/2022,90090502,905.63,CN Healthcare,SOCIAL SERVICES - OTHER,Adult Social Care & Health,Homecare - new framework,A56127,0
Royal Borough of Kingston,30/03/2022,90091855,"1,116.00",COBHAM RENTALS LTD,PLS LANDLORDS,Place,PSL Payments To Landlords,A22031,0
Royal Borough of Kingston,30/03/2022,90091856,"1,116.00",COBHAM RENTALS LTD,PLS LANDLORDS,Place,PSL Payments To Landlords,A22031,0
Royal Borough of Kingston,30/03/2022,90091857,"1,116.00",COBHAM RENTALS LTD,PLS LANDLORDS,Place,PSL Payments To Landlords,A22031,0
Royal Borough of Kingston,26/03/2022,90089429,"1,262.00",COGNITHAN,SOCIAL SERVICES RESIDENTIAL,Adult Social Care & Health,"Grants, Contributions & Donations",A47005,0
Royal Borough of Kingston,01/03/2022,90090103,"13,495.72",COGNITHAN,SOCIAL SERVICES RESIDENTIAL,Adult Social Care & Health,Independent Placements,A56006,0
Royal Borough of Kingston,30/03/2022,90091670,"1,094.00",REDACTED - PERSONAL DATA,PLS LANDLORDS,Place,PSL Payments To Landlords,A22031,0
Royal Borough of Kingston,30/03/2022,90091687,"1,094.00",REDACTED - PERSONAL DATA,PLS LANDLORDS,Place,PSL Payments To Landlords,A22031,0
Royal Borough of Kingston,01/03/2022,90089904,"2,902.22",COLVILLE CARE LTD,SOCIAL SERVICES - DIRECT PAYMENTS,Adult Social Care & Health,Independent Placements,A56006,0
Royal Borough of Kingston,31/03/2022,70019107,"1,214.39",COMETT LIMITED,ENTERTAINMENTS INDUSTRY,Adult Social Care & Health,Consultancy Services - Other,A44065,0
Royal Borough of Kingston,10/03/2022,90086871,"14,490.00",COMFORT CARE AT HOME LTD,SOCIAL SERVICES - OTHER,Adult Social Care & Health,"Grants, Contributions & Donations",A47005,0
Royal Borough of Kingston,10/03/2022,90086872,"9,649.25",COMFORT CARE AT HOME LTD,SOCIAL SERVICES - OTHER,Adult Social Care & Health,"Grants, Contributions & Donations",A47005,0
Royal Borough of Kingston,24/03/2022,90089294,697.6,COMFORT CARE AT HOME LTD,SOCIAL SERVICES - OTHER,Adult Social Care & Health,"Grants, Contributions & Donations",A47005,0
Royal Borough of Kingston,24/03/2022,90089340,"5,000.00",COMFORT CARE AT HOME LTD,SOCIAL SERVICES - OTHER,Adult Social Care & Health,"Grants, Contributions & Donations",A47005,0
Royal Borough of Kingston,07/03/2022,90086084,"7,312.50",COMFORT CARE SERVICES UK LTD,SOCIAL SERVICES-HOME CARE,Adult Social Care & Health,"Grants, Contributions & Donations",A47005,0
Royal Borough of Kingston,07/03/2022,90086086,"14,490.00",COMFORT CARE SERVICES UK LTD,SOCIAL SERVICES-HOME CARE,Adult Social Care & Health,"Grants, Contributions & Donations",A47005,0
Royal Borough of Kingston,07/03/2022,90086087,"9,649.25",COMFORT CARE SERVICES UK LTD,SOCIAL SERVICES-HOME CARE,Adult Social Care & Health,"Grants, Contributions & Donations",A47005,0
Royal Borough of Kingston,01/03/2022,90088207,"2,245.35",COMFORT CARE SERVICES UK LTD,SOCIAL SERVICES-HOME CARE,Adult Social Care & Health,Personal Budget - Third Party,A61019,0
Royal Borough of Kingston,01/03/2022,90088208,"3,866.98",COMFORT CARE SERVICES UK LTD,SOCIAL SERVICES-HOME CARE,Adult Social Care & Health,Personal Budget - Third Party,A61019,0
Royal Borough of Kingston,26/03/2022,90089432,"1,124.00",COMFORT CARE SERVICES UK LTD,SOCIAL SERVICES-HOME CARE,Adult Social Care & Health,"Grants, Contributions & Donations",A47005,0
Royal Borough of Kingston,26/03/2022,90089436,"1,536.00",COMFORT CARE SERVICES UK LTD,SOCIAL SERVICES-HOME CARE,Adult Social Care & Health,"Grants, Contributions & Donations",A47005,0
Royal Borough of Kingston,26/03/2022,90089439,521,COMFORT CARE SERVICES UK LTD,SOCIAL SERVICES-HOME CARE,Adult Social Care & Health,"Grants, Contributions & Donations",A47005,0
Royal Borough of Kingston,01/03/2022,90090855,"2,937.87",COMFORT CARE SERVICES UK LTD,SOCIAL SERVICES-HOME CARE,Adult Social Care & Health,Personal Budget - Third Party,A61019,0
Royal Borough of Kingston,01/03/2022,90090858,"2,937.87",COMFORT CARE SERVICES UK LTD,SOCIAL SERVICES-HOME CARE,Adult Social Care & Health,Personal Budget - Third Party,A61019,0
Royal Borough of Kingston,01/03/2022,90091142,"3,776.15",COMFORT CARE SERVICES UK LTD,SOCIAL SERVICES-HOME CARE,Adult Social Care & Health,Personal Budget - Third Party,A61019,0
Royal Borough of Kingston,01/03/2022,90091384,"1,317.50",COMFORT CARE SERVICES UK LTD,SOCIAL SERVICES-HOME CARE,Adult Social Care & Health,Personal Budget - Third Party,A61019,0
Royal Borough of Kingston,01/03/2022,90091386,"2,635.00",COMFORT CARE SERVICES UK LTD,SOCIAL SERVICES-HOME CARE,Adult Social Care & Health,Personal Budget - Third Party,A61019,0
Royal Borough of Kingston,01/03/2022,90091390,"1,048.95",COMFORT CARE SERVICES UK LTD,SOCIAL SERVICES-HOME CARE,Adult Social Care & Health,Personal Budget - Third Party,A61019,0
Royal Borough of Kingston,01/03/2022,90091393,"2,635.00",COMFORT CARE SERVICES UK LTD,SOCIAL SERVICES-HOME CARE,Adult Social Care & Health,Personal Budget - Third Party,A61019,0
Royal Borough of Kingston,01/03/2022,90091394,"1,749.29",COMFORT CARE SERVICES UK LTD,SOCIAL SERVICES-HOME CARE,Adult Social Care & Health,Personal Budget - Third Party,A61019,0
Royal Borough of Kingston,01/03/2022,90091398,"2,635.00",COMFORT CARE SERVICES UK LTD,SOCIAL SERVICES-HOME CARE,Adult Social Care & Health,Personal Budget - Third Party,A61019,0
Royal Borough of Kingston,01/03/2022,90091402,850,COMFORT CARE SERVICES UK LTD,SOCIAL SERVICES-HOME CARE,Adult Social Care & Health,Personal Budget - Third Party,A61019,0
Royal Borough of Kingston,01/03/2022,90091405,"2,635.00",COMFORT CARE SERVICES UK LTD,SOCIAL SERVICES-HOME CARE,Adult Social Care & Health,Personal Budget - Third Party,A61019,0
Royal Borough of Kingston,01/03/2022,90091407,"2,635.00",COMFORT CARE SERVICES UK LTD,SOCIAL SERVICES-HOME CARE,Adult Social Care & Health,Personal Budget - Third Party,A61019,0
Royal Borough of Kingston,01/03/2022,90091408,"2,635.00",COMFORT CARE SERVICES UK LTD,SOCIAL SERVICES-HOME CARE,Adult Social Care & Health,Personal Budget - Third Party,A61019,0
Royal Borough of Kingston,01/03/2022,90091414,"2,635.00",COMFORT CARE SERVICES UK LTD,SOCIAL SERVICES-HOME CARE,Adult Social Care & Health,Personal Budget - Third Party,A61019,0
Royal Borough of Kingston,01/03/2022,90091417,"1,048.95",COMFORT CARE SERVICES UK LTD,SOCIAL SERVICES-HOME CARE,Adult Social Care & Health,Personal Budget - Third Party,A61019,0
Royal Borough of Kingston,01/03/2022,90091419,"2,635.00",COMFORT CARE SERVICES UK LTD,SOCIAL SERVICES-HOME CARE,Adult Social Care & Health,Personal Budget - Third Party,A61019,0
Royal Borough of Kingston,01/03/2022,90091420,"2,937.87",COMFORT CARE SERVICES UK LTD,SOCIAL SERVICES-HOME CARE,Adult Social Care & Health,Personal Budget - Third Party,A61019,0
Royal Borough of Kingston,01/03/2022,90091422,"2,635.00",COMFORT CARE SERVICES UK LTD,SOCIAL SERVICES-HOME CARE,Adult Social Care & Health,Personal Budget - Third Party,A61019,0
Royal Borough of Kingston,01/03/2022,90091423,"2,635.00",COMFORT CARE SERVICES UK LTD,SOCIAL SERVICES-HOME CARE,Adult Social Care & Health,Personal Budget - Third Party,A61019,0
Royal Borough of Kingston,01/03/2022,90091425,"2,937.87",COMFORT CARE SERVICES UK LTD,SOCIAL SERVICES-HOME CARE,Adult Social Care & Health,Personal Budget - Third Party,A61019,0
Royal Borough of Kingston,01/03/2022,90091426,"2,635.00",COMFORT CARE SERVICES UK LTD,SOCIAL SERVICES-HOME CARE,Adult Social Care & Health,Personal Budget - Third Party,A61019,0
Royal Borough of Kingston,01/03/2022,90091430,"1,988.78",COMFORT CARE SERVICES UK LTD,SOCIAL SERVICES-HOME CARE,Adult Social Care & Health,Personal Budget - Third Party,A61019,0
Royal Borough of Kingston,01/03/2022,90091433,"2,937.87",COMFORT CARE SERVICES UK LTD,SOCIAL SERVICES-HOME CARE,Adult Social Care & Health,Personal Budget - Third Party,A61019,0
Royal Borough of Kingston,01/03/2022,90091434,"2,635.00",COMFORT CARE SERVICES UK LTD,SOCIAL SERVICES-HOME CARE,Adult Social Care & Health,Personal Budget - Third Party,A61019,0
Royal Borough of Kingston,01/03/2022,90091437,"1,632.15",COMFORT CARE SERVICES UK LTD,SOCIAL SERVICES-HOME CARE,Adult Social Care & Health,Personal Budget - Third Party,A61019,0
Royal Borough of Kingston,22/12/2021,70019360,660,Common Cars UK Ltd,SOCIAL SERVICES - OTHER,Adult Social Care & Health,Home To School Transport Taxis,A33016,0
Royal Borough of Kingston,26/03/2022,90089442,714,COMMUNITY CARE SOLUTIONS LTD,SOCIAL SERVICES RESIDENTIAL,Adult Social Care & Health,"Grants, Contributions & Donations",A47005,0
Royal Borough of Kingston,01/03/2022,90090053,"7,798.71",COMMUNITY CARE SOLUTIONS LTD,SOCIAL SERVICES RESIDENTIAL,Adult Social Care & Health,Independent Placements,A56006,0
Royal Borough of Kingston,26/03/2022,90089461,737,CONGRESS HOUSE LIMITED,SOCIAL SERVICES RESIDENTIAL,Adult Social Care & Health,"Grants, Contributions & Donations",A47005,0
Royal Borough of Kingston,01/03/2022,90090059,"8,049.50",CONGRESS HOUSE LIMITED,SOCIAL SERVICES RESIDENTIAL,Adult Social Care & Health,Independent Placements,A56006,0
Royal Borough of Kingston,09/03/2022,70019864,"27,333.00",CONNECT NORTH KOREA,CHARITIES & VOLUNTARY ORGNS,Adult Social Care & Health,Other Private Contractors - Third Party,A56080,0
Royal Borough of Kingston,09/03/2022,70019864,"27,333.00",CONNECT NORTH KOREA,CHARITIES & VOLUNTARY ORGNS,Adult Social Care & Health,Other Private Contractors - Third Party,A56080,0
Royal Borough of Kingston,30/03/2022,90091974,842,REDACTED - PERSONAL DATA,PLS LANDLORDS,Place,PSL Payments To Landlords,A22031,0
Royal Borough of Kingston,26/03/2022,90089449,"1,968.00",CONSENSUS SUPPORT SERVICES LTD ,SOCIAL SERVICES RESIDENTIAL,Adult Social Care & Health,"Grants, Contributions & Donations",A47005,0
Royal Borough of Kingston,01/03/2022,90090063,"15,035.00",CONSENSUS SUPPORT SERVICES LTD ,SOCIAL SERVICES RESIDENTIAL,Adult Social Care & Health,Independent Placements,A56006,0
Royal Borough of Kingston,01/03/2022,90090117,"10,891.89",CONSENSUS SUPPORT SERVICES LTD ,SOCIAL SERVICES RESIDENTIAL,Adult Social Care & Health,Independent Placements,A56006,0
Royal Borough of Kingston,26/03/2022,90089446,"1,063.00",CONSENSUS SUPPORT SERVICES LTD ,SOCIAL SERVICES RESIDENTIAL,Adult Social Care & Health,"Grants, Contributions & Donations",A47005,0
Royal Borough of Kingston,01/03/2022,90090092,"11,605.07",CONSENSUS SUPPORT SERVICES LTD ,SOCIAL SERVICES RESIDENTIAL,Adult Social Care & Health,Independent Placements,A56006,0
Royal Borough of Kingston,26/03/2022,90089444,894,CONSENSUS SUPPORT SERVICES LTD ,SOCIAL SERVICES RESIDENTIAL,Adult Social Care & Health,"Grants, Contributions & Donations",A47005,0
Royal Borough of Kingston,01/03/2022,90090033,"9,765.00",CONSENSUS SUPPORT SERVICES LTD ,SOCIAL SERVICES RESIDENTIAL,Adult Social Care & Health,Independent Placements,A56006,0
Royal Borough of Kingston,01/03/2022,90085161,"18,577.44",COOMBE ACADEMY TRUST,ACADEMIC INSTNS - OTHER,Schools,Miscellaneous Expenses,A49000,0
Royal Borough of Kingston,15/03/2022,70020317,"2,097.60",COOMBE HILL INFANTS SCHOOL,ACADEMIC INSTNS - OTHER,Learning & Childrens Services,MSF Claims Teaching Staff - Internal Trading,A46107,0
Royal Borough of Kingston,04/03/2022,90085277,"106,317.90",COOMBE HILL INFANTS SCHOOL,ACADEMIC INSTNS - OTHER,Schools,Miscellaneous Expenses,A49000,0
Royal Borough of Kingston,28/03/2022,90089631,"8,742.50",COOMBE HILL INFANTS SCHOOL,ACADEMIC INSTNS - OTHER,Schools,Miscellaneous Expenses,A49000,0
Royal Borough of Kingston,28/03/2022,90089632,586.25,COOMBE HILL INFANTS SCHOOL,ACADEMIC INSTNS - OTHER,Schools,Miscellaneous Expenses,A49000,0
Royal Borough of Kingston,30/03/2022,90091533,"1,841.00",COOMBE HILL INFANTS SCHOOL,ACADEMIC INSTNS - OTHER,Capital Programme,Payments to Contractors,C14000,0
Royal Borough of Kingston,04/03/2022,90085278,"154,195.90",COOMBE HILL JUNIOR SCHOOL,ACADEMIC INSTNS - OTHER,Schools,Miscellaneous Expenses,A49000,0
Royal Borough of Kingston,15/03/2022,90087413,510.85,COOMBE HILL JUNIOR SCHOOL,ACADEMIC INSTNS - OTHER,Schools,Miscellaneous Expenses,A49000,0
Royal Borough of Kingston,24/03/2022,90089265,729.5,COOMBE HILL JUNIOR SCHOOL,ACADEMIC INSTNS - OTHER,Schools,Miscellaneous Expenses,A49000,0
Royal Borough of Kingston,28/03/2022,90089633,"15,467.50",COOMBE HILL JUNIOR SCHOOL,ACADEMIC INSTNS - OTHER,Schools,Miscellaneous Expenses,A49000,0
Royal Borough of Kingston,28/03/2022,90089635,"4,103.75",COOMBE HILL JUNIOR SCHOOL,ACADEMIC INSTNS - OTHER,Schools,Miscellaneous Expenses,A49000,0
Royal Borough of Kingston,30/03/2022,90091534,"2,175.75",COOMBE HILL JUNIOR SCHOOL,ACADEMIC INSTNS - OTHER,Capital Programme,Payments to Contractors,C14000,0
Royal Borough of Kingston,26/03/2022,90089445,"1,279.00",CORICH COMMUNITY CARE LTD,SOCIAL SERVICES RESIDENTIAL,Adult Social Care & Health,"Grants, Contributions & Donations",A47005,0
Royal Borough of Kingston,01/03/2022,90090049,"14,328.02",CORICH COMMUNITY CARE LTD,SOCIAL SERVICES RESIDENTIAL,Adult Social Care & Health,Independent Placements,A56006,0
Royal Borough of Kingston,15/03/2022,70020323,"1,288.00",CORPUS CHRISTI CATHOLIC PRIMARY SCHOOL ,ACADEMIC INSTNS - OTHER,Learning & Childrens Services,MSF Claims Teaching Staff - Internal Trading,A46107,0
Royal Borough of Kingston,01/03/2022,90085100,"17,543.23",CORPUS CHRISTI CATHOLIC PRIMARY SCHOOL ,ACADEMIC INSTNS - OTHER,Schools,Miscellaneous Expenses,A49000,0
Royal Borough of Kingston,04/03/2022,90085279,"154,011.21",CORPUS CHRISTI CATHOLIC PRIMARY SCHOOL ,ACADEMIC INSTNS - OTHER,Schools,Miscellaneous Expenses,A49000,0
Royal Borough of Kingston,28/03/2022,90089636,"12,777.50",CORPUS CHRISTI CATHOLIC PRIMARY SCHOOL ,ACADEMIC INSTNS - OTHER,Schools,Miscellaneous Expenses,A49000,0
Royal Borough of Kingston,28/03/2022,90089637,"1,758.75",CORPUS CHRISTI CATHOLIC PRIMARY SCHOOL ,ACADEMIC INSTNS - OTHER,Schools,Miscellaneous Expenses,A49000,0
Royal Borough of Kingston,01/03/2022,90085267,767,COUNTRY COURT CARE HOMES 2 LTD,SOCIAL SERVICES RESIDENTIAL,Adult Social Care & Health,Other Private Contractors - Third Party,A56080,0
Royal Borough of Kingston,01/03/2022,90088461,876.57,COUNTRY COURT CARE HOMES 2 LTD,SOCIAL SERVICES RESIDENTIAL,Adult Social Care & Health,Independent Placements,A56006,0
Royal Borough of Kingston,01/03/2022,90088462,767,COUNTRY COURT CARE HOMES 2 LTD,SOCIAL SERVICES RESIDENTIAL,Adult Social Care & Health,Independent Placements,A56006,0
Royal Borough of Kingston,01/03/2022,90088464,"2,629.71",COUNTRY COURT CARE HOMES 2 LTD,SOCIAL SERVICES RESIDENTIAL,Adult Social Care & Health,Independent Placements,A56006,0
Royal Borough of Kingston,01/03/2022,90088465,"3,068.00",COUNTRY COURT CARE HOMES 2 LTD,SOCIAL SERVICES RESIDENTIAL,Adult Social Care & Health,Independent Placements,A56006,0
Royal Borough of Kingston,26/03/2022,90089453,903,COUNTRY COURT CARE HOMES 2 LTD,SOCIAL SERVICES RESIDENTIAL,Adult Social Care & Health,"Grants, Contributions & Donations",A47005,0
Royal Borough of Kingston,01/03/2022,90089679,"3,121.43",COUNTRY COURT CARE HOMES 2 LTD,SOCIAL SERVICES RESIDENTIAL,Adult Social Care & Health,Independent Placements,A56006,0
Royal Borough of Kingston,01/03/2022,90089777,"3,321.43",COUNTRY COURT CARE HOMES 2 LTD,SOCIAL SERVICES RESIDENTIAL,Adult Social Care & Health,Independent Placements,A56006,0
Royal Borough of Kingston,01/03/2022,90089847,"3,396.45",COUNTRY COURT CARE HOMES 2 LTD,SOCIAL SERVICES RESIDENTIAL,Adult Social Care & Health,Independent Placements,A56006,0
Royal Borough of Kingston,01/03/2022,90089887,"3,321.43",COUNTRY COURT CARE HOMES 2 LTD,SOCIAL SERVICES RESIDENTIAL,Adult Social Care & Health,Independent Placements,A56006,0
Royal Borough of Kingston,01/03/2022,90089897,"3,396.71",COUNTRY COURT CARE HOMES 2 LTD,SOCIAL SERVICES RESIDENTIAL,Adult Social Care & Health,Independent Placements,A56006,0
Royal Borough of Kingston,01/03/2022,90089903,"3,396.71",COUNTRY COURT CARE HOMES 2 LTD,SOCIAL SERVICES RESIDENTIAL,Adult Social Care & Health,Independent Placements,A56006,0
Royal Borough of Kingston,01/03/2022,90089911,"3,330.29",COUNTRY COURT CARE HOMES 2 LTD,SOCIAL SERVICES RESIDENTIAL,Adult Social Care & Health,Independent Placements,A56006,0
Royal Borough of Kingston,07/03/2022,70019705,"9,456.25",CRANWELL-WARD LTD,LANDLORDS,Corporate & Communities,Building Rents,A22005,0
Royal Borough of Kingston,04/03/2022,70019506,794.71,CRAVENCROFT LTD,CONSTRUCTION INDUSTRY,Capital Programme,Payments to Contractors,C14000,0
Royal Borough of Kingston,11/03/2022,70020509,"27,803.59",CRAVENCROFT LTD,CONSTRUCTION INDUSTRY,Capital Programme,Buildings - Design & Planning,C14001,0
Royal Borough of Kingston,30/03/2022,90091706,"1,807.09",CROMWOOD LIMITED,PLS LANDLORDS,Place,PSL Payments To Landlords,A22031,0
Royal Borough of Kingston,28/02/2022,70020067,720,CROWN PROMOTIONS & REMOVALS LTD,PREMISES - REMOVALS,Capital Programme,Buildings - Project Management,C14003,0
Royal Borough of Kingston,28/02/2022,70020068,460,CROWN PROMOTIONS & REMOVALS LTD,PREMISES - REMOVALS,Capital Programme,Buildings - Project Management,C14003,0
Royal Borough of Kingston,28/02/2022,70020218,440,CROWN PROMOTIONS & REMOVALS LTD,PREMISES - REMOVALS,Place,Removal Services,A44075,0
Royal Borough of Kingston,28/02/2022,70020268,640,CROWN PROMOTIONS & REMOVALS LTD,PREMISES - REMOVALS,Place,Removal Services,A44075,0
Royal Borough of Kingston,24/01/2022,70018977,"235,399.91",LONDON BOROUGH OF CROYDON,CENTRAL & LOCAL GOVERNMENT,Corporate & Communities,Waste Disposal Contract,A56074,0
Royal Borough of Kingston,05/01/2022,70018978,"60,182.79",LONDON BOROUGH OF CROYDON,CENTRAL & LOCAL GOVERNMENT,Corporate & Communities,Contract Cleaning,A27010,0
Royal Borough of Kingston,05/01/2022,70018979,"569,177.00",LONDON BOROUGH OF CROYDON,CENTRAL & LOCAL GOVERNMENT,Corporate & Communities,Waste Disposal Contract,A56074,0
Royal Borough of Kingston,27/01/2022,70018980,"51,731.49",LONDON BOROUGH OF CROYDON,CENTRAL & LOCAL GOVERNMENT,Corporate & Communities,Contract Cleaning,A27010,0
Royal Borough of Kingston,27/01/2022,70018981,"235,246.56",LONDON BOROUGH OF CROYDON,CENTRAL & LOCAL GOVERNMENT,Corporate & Communities,Waste Disposal Contract,A56074,0
Royal Borough of Kingston,28/02/2022,70020574,"51,397.29",LONDON BOROUGH OF CROYDON,CENTRAL & LOCAL GOVERNMENT,Corporate & Communities,Contract Cleaning,A27010,0
Royal Borough of Kingston,28/02/2022,70020575,"305,110.91",LONDON BOROUGH OF CROYDON,CENTRAL & LOCAL GOVERNMENT,Corporate & Communities,Waste Disposal Contract,A56074,0
Royal Borough of Kingston,03/02/2022,70020576,"580,125.57",LONDON BOROUGH OF CROYDON,CENTRAL & LOCAL GOVERNMENT,Corporate & Communities,Waste Disposal Contract,A56074,0
Royal Borough of Kingston,31/12/2021,70020253,350,Croydon Court LTD,ACCOMMODATION BED & BREAKFAST,Place,Bed & Breakfast,A56000,0
Royal Borough of Kingston,31/12/2021,70020253,350,Croydon Court LTD,ACCOMMODATION BED & BREAKFAST,Place,Bed & Breakfast,A56000,0
Royal Borough of Kingston,31/01/2022,70021046,70,Croydon Court LTD,ACCOMMODATION BED & BREAKFAST,Place,Bed & Breakfast,A56000,0
Royal Borough of Kingston,31/01/2022,70021046,35,Croydon Court LTD,ACCOMMODATION BED & BREAKFAST,Place,Bed & Breakfast,A56000,0
Royal Borough of Kingston,31/01/2022,70021046,"1,050.00",Croydon Court LTD,ACCOMMODATION BED & BREAKFAST,Place,Bed & Breakfast,A56000,0
Royal Borough of Kingston,01/03/2022,70019762,"1,040.00",CRYSTAL & CO,ACCOMMODATION BED & BREAKFAST,Place,Bed & Breakfast,A56000,0
Royal Borough of Kingston,01/03/2022,70019763,"1,428.00",CRYSTAL & CO,ACCOMMODATION BED & BREAKFAST,Place,Bed & Breakfast,A56000,0
Royal Borough of Kingston,01/03/2022,70019764,"1,736.00",CRYSTAL & CO,ACCOMMODATION BED & BREAKFAST,Place,Bed & Breakfast,A56000,0
Royal Borough of Kingston,01/03/2022,70019765,"1,736.00",CRYSTAL & CO,ACCOMMODATION BED & BREAKFAST,Place,Bed & Breakfast,A56000,0
Royal Borough of Kingston,01/03/2022,70019766,"1,540.00",CRYSTAL & CO,ACCOMMODATION BED & BREAKFAST,Place,Bed & Breakfast,A56000,0
Royal Borough of Kingston,01/03/2022,70019767,"1,484.00",CRYSTAL & CO,ACCOMMODATION BED & BREAKFAST,Place,Bed & Breakfast,A56000,0
Royal Borough of Kingston,01/03/2022,70019768,"1,484.00",CRYSTAL & CO,ACCOMMODATION BED & BREAKFAST,Place,Bed & Breakfast,A56000,0
Royal Borough of Kingston,01/03/2022,70019770,"1,428.00",CRYSTAL & CO,ACCOMMODATION BED & BREAKFAST,Place,Bed & Breakfast,A56000,0
Royal Borough of Kingston,01/03/2022,70019771,"1,120.00",CRYSTAL & CO,ACCOMMODATION BED & BREAKFAST,Place,Bed & Breakfast,A56000,0
Royal Borough of Kingston,01/03/2022,70019772,"1,736.00",CRYSTAL & CO,ACCOMMODATION BED & BREAKFAST,Place,Bed & Breakfast,A56000,0
Royal Borough of Kingston,01/03/2022,70019773,"1,428.00",CRYSTAL & CO,ACCOMMODATION BED & BREAKFAST,Place,Bed & Breakfast,A56000,0
Royal Borough of Kingston,01/03/2022,70019774,"1,736.00",CRYSTAL & CO,ACCOMMODATION BED & BREAKFAST,Place,Bed & Breakfast,A56000,0
Royal Borough of Kingston,01/03/2022,70019796,"1,428.00",CRYSTAL & CO,ACCOMMODATION BED & BREAKFAST,Place,Bed & Breakfast,A56000,0
Royal Borough of Kingston,26/03/2022,90089443,"3,164.00",CSS LTD,SOCIAL SERVICES - OTHER,Adult Social Care & Health,"Grants, Contributions & Donations",A47005,0
Royal Borough of Kingston,01/03/2022,90090052,"9,659.60",CSS LTD,SOCIAL SERVICES - OTHER,Adult Social Care & Health,Independent Placements,A56006,0
Royal Borough of Kingston,01/03/2022,90090095,"9,249.38",CSS LTD,SOCIAL SERVICES - OTHER,Adult Social Care & Health,Independent Placements,A56006,0
Royal Borough of Kingston,01/03/2022,90090108,"7,447.84",CSS LTD,SOCIAL SERVICES - OTHER,Adult Social Care & Health,Independent Placements,A56006,0
Royal Borough of Kingston,01/03/2022,90090118,"11,071.43",CSS LTD,SOCIAL SERVICES - OTHER,Adult Social Care & Health,Independent Placements,A56006,0
Royal Borough of Kingston,26/03/2022,90089448,"1,590.00",CSS LTD,SOCIAL SERVICES RESIDENTIAL,Adult Social Care & Health,"Grants, Contributions & Donations",A47005,0
Royal Borough of Kingston,01/03/2022,90090083,"14,184.14",CSS LTD,SOCIAL SERVICES RESIDENTIAL,Adult Social Care & Health,Independent Placements,A56006,0
Royal Borough of Kingston,01/03/2022,90085127,"10,725.12",KNOLLMEAD PRIMARY SCHOOL,SCHOOL FUNDS,Schools,Miscellaneous Expenses,A49000,0
Royal Borough of Kingston,31/12/2021,70019574,"6,366.05",CUBE CONTENT GOVERNANCE  LIMITED,TRAINING,Corporate & Communities,ICT Expenses,A45009,0
Royal Borough of Kingston,11/03/2022,70020076,"74,914.00",Cycling project for the north west,CHARITIES & VOLUNTARY ORGNS,Adult Social Care & Health,Community Initiatives,A44288,0
Royal Borough of Kingston,30/03/2022,90091800,"1,317.00",REDACTED - PERSONAL DATA,PLS LANDLORDS,Place,PSL Payments To Landlords,A22031,0
Royal Borough of Kingston,30/03/2022,90091879,"1,321.66",REDACTED - PERSONAL DATA,PLS LANDLORDS,Place,PSL Payments To Landlords,A22031,0
Royal Borough of Kingston,30/03/2022,90091915,"1,094.00",REDACTED - PERSONAL DATA,PLS LANDLORDS,Place,PSL Payments To Landlords,A22031,0
Royal Borough of Kingston,21/02/2022,90086707,535.5,DAY AND NITE SERVICES (KINGSTON),SOCIAL SERVICES-HOME CARE,Adult Social Care & Health,Personal Budget - Third Party,A61019,0
Royal Borough of Kingston,21/02/2022,90086726,595,DAY AND NITE SERVICES (KINGSTON),SOCIAL SERVICES-HOME CARE,Adult Social Care & Health,Personal Budget - Third Party,A61019,0
Royal Borough of Kingston,21/02/2022,90086791,654.5,DAY AND NITE SERVICES (KINGSTON),SOCIAL SERVICES-HOME CARE,Adult Social Care & Health,Personal Budget - Third Party,A61019,0
Royal Borough of Kingston,28/02/2022,90088016,535.5,DAY AND NITE SERVICES (KINGSTON),SOCIAL SERVICES-HOME CARE,Adult Social Care & Health,Personal Budget - Third Party,A61019,0
Royal Borough of Kingston,28/02/2022,90088036,595,DAY AND NITE SERVICES (KINGSTON),SOCIAL SERVICES-HOME CARE,Adult Social Care & Health,Personal Budget - Third Party,A61019,0
Royal Borough of Kingston,28/02/2022,90088166,654.5,DAY AND NITE SERVICES (KINGSTON),SOCIAL SERVICES-HOME CARE,Adult Social Care & Health,Personal Budget - Third Party,A61019,0
Royal Borough of Kingston,07/03/2022,90089050,535.5,DAY AND NITE SERVICES (KINGSTON),SOCIAL SERVICES-HOME CARE,Adult Social Care & Health,Personal Budget - Third Party,A61019,0
Royal Borough of Kingston,07/03/2022,90089070,595,DAY AND NITE SERVICES (KINGSTON),SOCIAL SERVICES-HOME CARE,Adult Social Care & Health,Personal Budget - Third Party,A61019,0
Royal Borough of Kingston,07/03/2022,90089135,654.5,DAY AND NITE SERVICES (KINGSTON),SOCIAL SERVICES-HOME CARE,Adult Social Care & Health,Personal Budget - Third Party,A61019,0
Royal Borough of Kingston,26/03/2022,90089456,"4,558.00",DAY AND NITE SERVICES (KINGSTON),SOCIAL SERVICES-HOME CARE,Adult Social Care & Health,"Grants, Contributions & Donations",A47005,0
Royal Borough of Kingston,14/03/2022,90090820,"49,392.00",DAY AND NITE SERVICES (KINGSTON),SOCIAL SERVICES-HOME CARE,Adult Social Care & Health,Personal Budget - Third Party,A61019,0
Royal Borough of Kingston,14/03/2022,90091260,535.5,DAY AND NITE SERVICES (KINGSTON),SOCIAL SERVICES-HOME CARE,Adult Social Care & Health,Personal Budget - Third Party,A61019,0
Royal Borough of Kingston,14/03/2022,90091281,595,DAY AND NITE SERVICES (KINGSTON),SOCIAL SERVICES-HOME CARE,Adult Social Care & Health,Personal Budget - Third Party,A61019,0
Royal Borough of Kingston,14/03/2022,90091359,654.5,DAY AND NITE SERVICES (KINGSTON),SOCIAL SERVICES-HOME CARE,Adult Social Care & Health,Personal Budget - Third Party,A61019,0
Royal Borough of Kingston,22/03/2022,70020887,"1,500.00",REDACTED - PERSONAL DATA,PLS LANDLORDS,Place,Housing Incentives,A62025,0
Royal Borough of Kingston,30/03/2022,90091875,"1,050.00",REDACTED - PERSONAL DATA,PLS LANDLORDS,Place,PSL Payments To Landlords,A22031,0
Royal Borough of Kingston,30/03/2022,90091968,"1,000.00",REDACTED - PERSONAL DATA,PLS LANDLORDS,Place,PSL Payments To Landlords,A22031,0
Royal Borough of Kingston,30/03/2022,90091897,"1,094.00",REDACTED - PERSONAL DATA,PLS LANDLORDS,Place,PSL Payments To Landlords,A22031,0
Royal Borough of Kingston,28/02/2022,70020610,"1,140.00",Delta Wise Limited,ACCOMMODATION BED & BREAKFAST,Place,Bed & Breakfast,A56000,0
Royal Borough of Kingston,28/02/2022,70020610,360,Delta Wise Limited,ACCOMMODATION BED & BREAKFAST,Place,Bed & Breakfast,A56000,0
Royal Borough of Kingston,03/03/2022,70019373,950,DEXTERS LIMITED,LANDLORDS,Adult Social Care & Health,Building Rents,A22005,0
Royal Borough of Kingston,17/02/2022,70018857,"22,898.00",DFE ,SUNDRY SUPPLIER - FINANCE,Learning & Childrens Services,Extended Rights to Free Travel,A90070,0
Royal Borough of Kingston,30/03/2022,90091581,"1,097.00",REDACTED - PERSONAL DATA,PLS LANDLORDS,Place,PSL Payments To Landlords,A22031,0
Royal Borough of Kingston,01/03/2022,90085041,"1,161.60",DICKY BIRDS PRE SCHOOL NURSERIES LTD,CHILDMINDERS START UP GRANT,Schools,2 Yr Old Place Funding,A60000,0
Royal Borough of Kingston,01/03/2022,90085102,"15,066.24",DICKY BIRDS PRE SCHOOL NURSERIES LTD,CHILDMINDERS START UP GRANT,Schools,PVI Providers,A60014,0
Royal Borough of Kingston,01/03/2022,90085103,"29,111.04",DICKY BIRDS PRE SCHOOL NURSERIES LTD,CHILDMINDERS START UP GRANT,Schools,PVI Providers,A60014,0
Royal Borough of Kingston,01/03/2022,90085104,"23,684.64",DICKY BIRDS PRE SCHOOL NURSERIES LTD,CHILDMINDERS START UP GRANT,Schools,PVI Providers,A60014,0
Royal Borough of Kingston,31/01/2022,70019913,"25,127.00",DISCLOSURE AND BARRING SERVICE,LEGAL & PROFESSIONAL SERVICES,Corporate & Communities,DBS Checks,A15029,0
Royal Borough of Kingston,26/03/2022,90089458,546,DIVINE MOTIONS HEALTHCARE SERVICES LTD,SOCIAL SERVICES-HOME CARE,Adult Social Care & Health,"Grants, Contributions & Donations",A47005,0
Royal Borough of Kingston,16/03/2022,70020367,500,REDACTED - PERSONAL DATA,PLS LANDLORDS,Place,Housing Incentives,A62025,0
Royal Borough of Kingston,30/03/2022,90091946,"1,094.33",REDACTED - PERSONAL DATA,PLS LANDLORDS,Place,PSL Payments To Landlords,A22031,0
Royal Borough of Kingston,30/03/2022,90091947,867.83,REDACTED - PERSONAL DATA,PLS LANDLORDS,Place,PSL Payments To Landlords,A22031,0
Royal Borough of Kingston,23/03/2022,70020937,"2,960.42",DL THE PRINTED CLOTHING,CLOTHING & UNIFORMS,Corporate & Communities,Clothing & Uniforms,A42005,0
Royal Borough of Kingston,01/03/2022,70019136,"4,695.00",DOLPHIN MOBILITY LIMITED,CONSTRUCTION INDUSTRY,Capital Programme,Disabled Adaptations,C20003,0
Royal Borough of Kingston,28/02/2022,70019522,"7,067.00",DOLPHIN MOBILITY LIMITED,CONSTRUCTION INDUSTRY,Capital Programme,Disabled Adaptations,C20003,0
Royal Borough of Kingston,01/03/2022,90085137,766.08,REDACTED - PERSONAL DATA,CHILDMINDERS START UP GRANT,Schools,PVI Providers,A60014,0
Royal Borough of Kingston,01/03/2022,90084977,954,DORIS VENNER PRE-SCHOOL,ACADEMIC INSTNS - OTHER,Schools,PVI Providers,A60014,0
Royal Borough of Kingston,01/03/2022,90085016,777.6,DORIS VENNER PRE-SCHOOL,ACADEMIC INSTNS - OTHER,Schools,PVI Providers,A60014,0
Royal Borough of Kingston,01/03/2022,90085043,"5,263.50",DORIS VENNER PRE-SCHOOL,ACADEMIC INSTNS - OTHER,Schools,2 Yr Old Place Funding,A60000,0
Royal Borough of Kingston,01/03/2022,90085105,"42,389.76",DORIS VENNER PRE-SCHOOL,ACADEMIC INSTNS - OTHER,Schools,PVI Providers,A60014,0
Royal Borough of Kingston,01/03/2022,90090089,"5,327.08",DOWNING (CHERTSEY ROAD) LTD,SOCIAL SERVICES RESIDENTIAL,Adult Social Care & Health,Independent Placements,A56006,0
Royal Borough of Kingston,28/02/2022,70019431,500,Doxa Deo Comm Church-Kingston Foodbank,SUNDRY SUPPLIER - FINANCE,Adult Social Care & Health,"Grants, Contributions & Donations",A47005,0
Royal Borough of Kingston,30/03/2022,90091908,"1,106.66",REDACTED - PERSONAL DATA,PLS LANDLORDS,Place,PSL Payments To Landlords,A22031,0
Royal Borough of Kingston,30/03/2022,90091590,"1,675.00",REDACTED - PERSONAL DATA,PLS LANDLORDS,Place,PSL Payments To Landlords,A22031,0
Royal Borough of Kingston,30/03/2022,90091922,"1,314.00",REDACTED - PERSONAL DATA,PLS LANDLORDS,Place,PSL Payments To Landlords,A22031,0
Royal Borough of Kingston,30/03/2022,90091737,"1,090.00",REDACTED - PERSONAL DATA,PLS LANDLORDS,Place,PSL Payments To Landlords,A22031,0
Royal Borough of Kingston,30/03/2022,90091945,"1,090.00",REDACTED - PERSONAL DATA,PLS LANDLORDS,Place,PSL Payments To Landlords,A22031,0
Royal Borough of Kingston,30/03/2022,90091568,"1,314.00",REDACTED - PERSONAL DATA,PLS LANDLORDS,Place,PSL Payments To Landlords,A22031,0
Royal Borough of Kingston,30/03/2022,90091909,"1,094.00",REDACTED - PERSONAL DATA,PLS LANDLORDS,Place,PSL Payments To Landlords,A22031,0
Royal Borough of Kingston,14/03/2022,70020089,"1,050.00",Driscoll Kingston Solicitors,SUNDRY SUPPLIER - HOUSING,Housing Revenue Account,Compensation (In Lieu Of Works),A20039,0
Royal Borough of Kingston,31/01/2022,70018970,"1,085.00",Dunheved Hotel LTD,ACCOMMODATION BED & BREAKFAST,Place,Bed & Breakfast,A56000,0
Royal Borough of Kingston,31/01/2022,70018970,"1,085.00",Dunheved Hotel LTD,ACCOMMODATION BED & BREAKFAST,Place,Bed & Breakfast,A56000,0
Royal Borough of Kingston,28/02/2022,70020376,980,Dunheved Hotel LTD,ACCOMMODATION BED & BREAKFAST,Place,Bed & Breakfast,A56000,0
Royal Borough of Kingston,28/02/2022,70020376,980,Dunheved Hotel LTD,ACCOMMODATION BED & BREAKFAST,Place,Bed & Breakfast,A56000,0
Royal Borough of Kingston,01/03/2022,90085202,"1,225.73",REDACTED - PERSONAL DATA,CHILDMINDERS START UP GRANT,Schools,PVI Providers,A60014,0
Royal Borough of Kingston,01/03/2022,90085143,"1,915.20",REDACTED - PERSONAL DATA,CHILDMINDERS START UP GRANT,Schools,PVI Providers,A60014,0
Royal Borough of Kingston,30/03/2022,90091757,"1,094.00",EARLSFIELD PROPERTIES,PLS LANDLORDS,Place,PSL Payments To Landlords,A22031,0
Royal Borough of Kingston,30/03/2022,90091758,"1,094.00",EARLSFIELD PROPERTIES,PLS LANDLORDS,Place,PSL Payments To Landlords,A22031,0
Royal Borough of Kingston,30/03/2022,90091993,"1,047.00",EARLSFIELD PROPERTIES,PLS LANDLORDS,Place,PSL Payments To Landlords,A22031,0
Royal Borough of Kingston,12/03/2022,70018850,"2,180.00",EASTBOURNE BOROUGH COUNCIL,LEGAL & PROFESSIONAL SERVICES,Place,Consultancy Services - Other,A44065,0
Royal Borough of Kingston,30/03/2022,90091624,"1,100.00",EAV THOMPSON,PLS LANDLORDS,Place,PSL Payments To Landlords,A22031,0
Royal Borough of Kingston,17/03/2022,70020823,"5,729.62",CHESSINGTON SCHOOL,ACADEMIC INSTNS - OTHER,Adult Social Care & Health,Building Rents,A22005,0
Royal Borough of Kingston,24/03/2022,70020987,"307,126.70",CHESSINGTON SCHOOL,ACADEMIC INSTNS - OTHER,Corporate & Communities,Contingency,A49001,0
Royal Borough of Kingston,30/03/2022,90091532,"2,869.00",CHESSINGTON SCHOOL,ACADEMIC INSTNS - OTHER,Capital Programme,Payments to Contractors,C14000,0
Royal Borough of Kingston,08/01/2022,70019437,432,EDF ENERGY CUSTOMER PLC,UTILITIES,Adult Social Care & Health,Electricity,A21000,0
Royal Borough of Kingston,02/02/2022,70020084,"5,752.93",EDF ENERGY CUSTOMER PLC,UTILITIES,Corporate & Communities,Site Management,A56063,0
Royal Borough of Kingston,26/01/2022,70020142,487.12,EDF ENERGY CUSTOMER PLC,UTILITIES,Housing Revenue Account,Electricity,A21000,0
Royal Borough of Kingston,27/02/2022,70019105,875,EDGE TRAINING AND CONSULTANCY LTD,TRAINING,Adult Social Care & Health,Staff Development And Training,A15022,0
Royal Borough of Kingston,01/03/2022,90085106,"5,075.28",EDUCARE SMALL SCHOOL LTD,ACADEMIC INSTNS - OTHER,Schools,PVI Providers,A60014,0
Royal Borough of Kingston,30/03/2022,90091621,"1,100.00",REDACTED - PERSONAL DATA,PLS LANDLORDS,Place,PSL Payments To Landlords,A22031,0
Royal Borough of Kingston,30/03/2022,90091609,910,REDACTED - PERSONAL DATA,PLS LANDLORDS,Place,PSL Payments To Landlords,A22031,0
Royal Borough of Kingston,30/03/2022,90091634,"1,066.66",REDACTED - PERSONAL DATA,PLS LANDLORDS,Place,PSL Payments To Landlords,A22031,0
Royal Borough of Kingston,28/03/2022,70021214,"20,000.00",Efficiency Fit Ltd,SUNDRY SUPPLIER - FINANCE,Place,"Grants, Contributions & Donations",A47005,0
Royal Borough of Kingston,30/06/2021,70020968,"3,157.00",ELDERCARE (UK) LTD,SOCIAL SERVICES - OTHER,Adult Social Care & Health,Equipment And Materials Purchase,A40000,0
Royal Borough of Kingston,31/10/2021,70020971,"1,999.22",ELDERCARE (UK) LTD,SOCIAL SERVICES - OTHER,Adult Social Care & Health,Equipment And Materials Purchase,A40000,0
Royal Borough of Kingston,30/11/2021,70020973,"2,695.77",ELDERCARE (UK) LTD,SOCIAL SERVICES - OTHER,Adult Social Care & Health,Equipment And Materials Purchase,A40000,0
Royal Borough of Kingston,22/02/2022,70020975,941,ELDERCARE (UK) LTD,SOCIAL SERVICES - OTHER,Adult Social Care & Health,Equipment And Materials Purchase,A40000,0
Royal Borough of Kingston,30/06/2021,70020976,427.57,ELDERCARE (UK) LTD,SOCIAL SERVICES - OTHER,Adult Social Care & Health,Equipment And Materials Purchase,A40000,0
Royal Borough of Kingston,31/07/2021,70020978,"2,169.74",ELDERCARE (UK) LTD,SOCIAL SERVICES - OTHER,Adult Social Care & Health,Equipment And Materials Purchase,A40000,0
Royal Borough of Kingston,31/08/2021,70020981,"5,379.90",ELDERCARE (UK) LTD,SOCIAL SERVICES - OTHER,Adult Social Care & Health,Equipment And Materials Purchase,A40000,0
Royal Borough of Kingston,30/09/2021,70020983,"3,541.94",ELDERCARE (UK) LTD,SOCIAL SERVICES - OTHER,Adult Social Care & Health,Equipment And Materials Purchase,A40000,0
Royal Borough of Kingston,01/03/2022,90085045,"2,178.00",ELLINGHAM PRIMARY SCHOOL,ACADEMIC INSTNS - OTHER,Schools,2 Yr Old Place Funding,A60000,0
Royal Borough of Kingston,01/03/2022,90085107,"28,728.00",ELLINGHAM PRIMARY SCHOOL,ACADEMIC INSTNS - OTHER,Schools,Miscellaneous Expenses,A49000,0
Royal Borough of Kingston,21/03/2022,90088447,"2,541.00",ELLINGHAM PRIMARY SCHOOL,ACADEMIC INSTNS - OTHER,Schools,2 Yr Old Place Funding,A60000,0
Royal Borough of Kingston,21/03/2022,90088448,"26,812.80",ELLINGHAM PRIMARY SCHOOL,ACADEMIC INSTNS - OTHER,Schools,Miscellaneous Expenses,A49000,0
Royal Borough of Kingston,24/03/2022,90089266,"2,211.25",ELLINGHAM PRIMARY SCHOOL,ACADEMIC INSTNS - OTHER,Schools,Miscellaneous Expenses,A49000,0
Royal Borough of Kingston,28/03/2022,90089638,"26,900.00",ELLINGHAM PRIMARY SCHOOL,ACADEMIC INSTNS - OTHER,Schools,Miscellaneous Expenses,A49000,0
Royal Borough of Kingston,28/03/2022,90089639,"1,172.50",ELLINGHAM PRIMARY SCHOOL,ACADEMIC INSTNS - OTHER,Schools,Miscellaneous Expenses,A49000,0
Royal Borough of Kingston,30/03/2022,90091535,"2,124.50",ELLINGHAM PRIMARY SCHOOL,ACADEMIC INSTNS - OTHER,Capital Programme,Payments to Contractors,C14000,0
Royal Borough of Kingston,26/03/2022,90089462,"1,743.00",ELYSIUM HEALTHCARE LTD,SOCIAL SERVICES - OTHER,Adult Social Care & Health,"Grants, Contributions & Donations",A47005,0
Royal Borough of Kingston,26/03/2022,90089463,"1,000.00",ELYSIUM HEALTHCARE LTD,SOCIAL SERVICES - OTHER,Adult Social Care & Health,"Grants, Contributions & Donations",A47005,0
Royal Borough of Kingston,26/03/2022,90089464,710,ELYSIUM HEALTHCARE LTD,SOCIAL SERVICES - OTHER,Adult Social Care & Health,"Grants, Contributions & Donations",A47005,0
Royal Borough of Kingston,26/03/2022,90089521,889,ELYSIUM HEALTHCARE LTD,SOCIAL SERVICES - OTHER,Adult Social Care & Health,"Grants, Contributions & Donations",A47005,0
Royal Borough of Kingston,26/03/2022,90089522,841,ELYSIUM HEALTHCARE LTD,SOCIAL SERVICES - OTHER,Adult Social Care & Health,"Grants, Contributions & Donations",A47005,0
Royal Borough of Kingston,01/03/2022,90090025,"9,513.55",ELYSIUM HEALTHCARE LTD,SOCIAL SERVICES - OTHER,Adult Social Care & Health,Independent Placements,A56006,0
Royal Borough of Kingston,01/03/2022,90090032,"9,178.83",ELYSIUM HEALTHCARE LTD,SOCIAL SERVICES - OTHER,Adult Social Care & Health,Independent Placements,A56006,0
Royal Borough of Kingston,01/03/2022,90090034,"10,921.08",ELYSIUM HEALTHCARE LTD,SOCIAL SERVICES - OTHER,Adult Social Care & Health,Independent Placements,A56006,0
Royal Borough of Kingston,01/03/2022,90090038,"7,750.00",ELYSIUM HEALTHCARE LTD,SOCIAL SERVICES - OTHER,Adult Social Care & Health,Independent Placements,A56006,0
Royal Borough of Kingston,01/03/2022,90090041,"9,706.10",ELYSIUM HEALTHCARE LTD,SOCIAL SERVICES - OTHER,Adult Social Care & Health,Independent Placements,A56006,0
Royal Borough of Kingston,01/03/2022,90090067,"9,513.55",ELYSIUM HEALTHCARE LTD,SOCIAL SERVICES - OTHER,Adult Social Care & Health,Independent Placements,A56006,0
Royal Borough of Kingston,01/03/2022,90085131,766.08,REDACTED - PERSONAL DATA,CHILDMINDERS START UP GRANT,Schools,PVI Providers,A60014,0
Royal Borough of Kingston,01/03/2022,90085036,"2,178.00",REDACTED - PERSONAL DATA,CHILDMINDERS START UP GRANT,Schools,2 Yr Old Place Funding,A60000,0
Royal Borough of Kingston,01/03/2022,90085087,"3,830.40",REDACTED - PERSONAL DATA,CHILDMINDERS START UP GRANT,Schools,PVI Providers,A60014,0
Royal Borough of Kingston,28/03/2022,70021219,"15,000.00",REDACTED - PERSONAL DATA,SUNDRY SUPPLIER - FINANCE,Place,"Grants, Contributions & Donations",A47005,0
Royal Borough of Kingston,01/03/2022,90085056,"1,089.00",REDACTED - PERSONAL DATA,CHILDMINDERS START UP GRANT,Schools,2 Yr Old Place Funding,A60000,0
Royal Borough of Kingston,01/02/2022,70018098,"1,800.00",EnergyDirection Limited,CONSULTING ARCHITECTS ENGINEER,Place,Consultancy Services,A56007,0
Royal Borough of Kingston,17/02/2022,70018500,"13,343.88",ENGIE SERVICES LIMITED,CONSTRUCTION INDUSTRY,Place,Other Private Contractors - Third Party,A56080,0
Royal Borough of Kingston,01/03/2022,90089895,"3,223.96",ENHAM,SOCIAL SERVICES - OTHER,Adult Social Care & Health,Independent Placements,A56006,0
Royal Borough of Kingston,28/02/2022,70019967,"1,483.20",ENHANCEABLE,SOCIAL SERVICES - OTHER,Adult Social Care & Health,Other Private Contractors - Third Party,A56080,0
Royal Borough of Kingston,31/12/2021,70019968,988.8,ENHANCEABLE,SOCIAL SERVICES - OTHER,Adult Social Care & Health,Other Private Contractors - Third Party,A56080,0
Royal Borough of Kingston,31/01/2022,70019969,"1,977.60",ENHANCEABLE,SOCIAL SERVICES - OTHER,Adult Social Care & Health,Other Private Contractors - Third Party,A56080,0
Royal Borough of Kingston,31/07/2021,70019970,"1,854.00",ENHANCEABLE,SOCIAL SERVICES - OTHER,Adult Social Care & Health,Other Private Contractors - Third Party,A56080,0
Royal Borough of Kingston,30/06/2021,70019971,"1,854.00",ENHANCEABLE,SOCIAL SERVICES - OTHER,Adult Social Care & Health,Other Private Contractors - Third Party,A56080,0
Royal Borough of Kingston,30/11/2021,70019972,"1,977.60",ENHANCEABLE,SOCIAL SERVICES - OTHER,Adult Social Care & Health,Other Private Contractors - Third Party,A56080,0
Royal Borough of Kingston,30/09/2021,70019973,"1,483.20",ENHANCEABLE,SOCIAL SERVICES - OTHER,Adult Social Care & Health,Other Private Contractors - Third Party,A56080,0
Royal Borough of Kingston,31/10/2021,70019974,"1,483.20",ENHANCEABLE,SOCIAL SERVICES - OTHER,Adult Social Care & Health,Other Private Contractors - Third Party,A56080,0
Royal Borough of Kingston,01/03/2022,90088189,"1,501.46",ENHANCEABLE,SOCIAL SERVICES - OTHER,Adult Social Care & Health,Personal Budget - Third Party,A61019,0
Royal Borough of Kingston,24/03/2022,90089285,734.31,ENHANCEABLE,SOCIAL SERVICES - OTHER,Adult Social Care & Health,"Grants, Contributions & Donations",A47005,0
Royal Borough of Kingston,26/03/2022,90089469,"2,272.00",ENHANCEABLE,SOCIAL SERVICES - OTHER,Adult Social Care & Health,"Grants, Contributions & Donations",A47005,0
Royal Borough of Kingston,01/03/2022,90090055,"-4,408.40",ENHANCEABLE,SOCIAL SERVICES - OTHER,Adult Social Care & Health,Independent Placements,A56006,0
Royal Borough of Kingston,01/03/2022,90090056,"-4,754.48",ENHANCEABLE,SOCIAL SERVICES - OTHER,Adult Social Care & Health,Independent Placements,A56006,0
Royal Borough of Kingston,01/03/2022,90090132,"31,227.10",ENHANCEABLE,SOCIAL SERVICES - OTHER,Adult Social Care & Health,Other Private Contractors - Third Party,A56080,0
Royal Borough of Kingston,01/03/2022,90090133,"-1,959.57",ENHANCEABLE,SOCIAL SERVICES - OTHER,Adult Social Care & Health,Other Private Contractors - Third Party,A56080,0
Royal Borough of Kingston,01/03/2022,90090134,"-2,094.71",ENHANCEABLE,SOCIAL SERVICES - OTHER,Adult Social Care & Health,Other Private Contractors - Third Party,A56080,0
Royal Borough of Kingston,01/03/2022,90090135,"-2,027.14",ENHANCEABLE,SOCIAL SERVICES - OTHER,Adult Social Care & Health,Other Private Contractors - Third Party,A56080,0
Royal Borough of Kingston,01/03/2022,90090136,"-2,094.71",ENHANCEABLE,SOCIAL SERVICES - OTHER,Adult Social Care & Health,Other Private Contractors - Third Party,A56080,0
Royal Borough of Kingston,01/03/2022,90090137,"-2,094.71",ENHANCEABLE,SOCIAL SERVICES - OTHER,Adult Social Care & Health,Other Private Contractors - Third Party,A56080,0
Royal Borough of Kingston,01/03/2022,90090138,"-2,027.14",ENHANCEABLE,SOCIAL SERVICES - OTHER,Adult Social Care & Health,Other Private Contractors - Third Party,A56080,0
Royal Borough of Kingston,01/03/2022,90090139,"-2,094.71",ENHANCEABLE,SOCIAL SERVICES - OTHER,Adult Social Care & Health,Other Private Contractors - Third Party,A56080,0
Royal Borough of Kingston,01/03/2022,90090140,"-2,027.14",ENHANCEABLE,SOCIAL SERVICES - OTHER,Adult Social Care & Health,Other Private Contractors - Third Party,A56080,0
Royal Borough of Kingston,01/03/2022,90090141,"-2,094.71",ENHANCEABLE,SOCIAL SERVICES - OTHER,Adult Social Care & Health,Other Private Contractors - Third Party,A56080,0
Royal Borough of Kingston,01/03/2022,90090142,"-2,094.71",ENHANCEABLE,SOCIAL SERVICES - OTHER,Adult Social Care & Health,Other Private Contractors - Third Party,A56080,0
Royal Borough of Kingston,01/03/2022,90090143,"-1,892.00",ENHANCEABLE,SOCIAL SERVICES - OTHER,Adult Social Care & Health,Other Private Contractors - Third Party,A56080,0
Royal Borough of Kingston,01/03/2022,90090148,505.3,ENHANCEABLE,SOCIAL SERVICES - OTHER,Adult Social Care & Health,Other Private Contractors - Third Party,A56080,0
Royal Borough of Kingston,01/03/2022,90090842,608.93,ENHANCEABLE,SOCIAL SERVICES - OTHER,Adult Social Care & Health,Personal Budget - Third Party,A61019,0
Royal Borough of Kingston,01/03/2022,90091112,"1,594.29",ENHANCEABLE,SOCIAL SERVICES - OTHER,Adult Social Care & Health,Personal Budget - Third Party,A61019,0
Royal Borough of Kingston,01/03/2022,90091480,885.71,ENHANCEABLE,SOCIAL SERVICES - OTHER,Adult Social Care & Health,Personal Budget - Third Party,A61019,0
Royal Borough of Kingston,01/03/2022,90091481,974.29,ENHANCEABLE,SOCIAL SERVICES - OTHER,Adult Social Care & Health,Personal Budget - Third Party,A61019,0
Royal Borough of Kingston,04/03/2022,70019957,"3,000.00",ENVIRONMENT AGENCY,CENTRAL & LOCAL GOVERNMENT,Corporate & Communities,Building Rents,A22005,0
Royal Borough of Kingston,27/01/2022,70017861,583.39,EPSOM & ST HELIER UNIVERSITY HOSPITALS NHS TRUST,SOCIAL SERVICES - OTHER,Adult Social Care & Health,Other Private Contractors - Third Party,A56080,0
Royal Borough of Kingston,27/01/2022,70020366,"55,000.00",ERNST AND YOUNG LLP,LEGAL & PROFESSIONAL SERVICES,Adult Social Care & Health,Professional Fees,A44066,0
Royal Borough of Kingston,30/03/2022,90091591,"1,314.00",REDACTED - PERSONAL DATA,PLS LANDLORDS,Place,PSL Payments To Landlords,A22031,0
Royal Borough of Kingston,01/03/2022,70019620,"1,652.00",EXCLUSIVE FINE HOMES LTD,ACCOMMODATION BED & BREAKFAST,Place,Bed & Breakfast,A56000,0
Royal Borough of Kingston,01/03/2022,70019623,"1,428.00",EXCLUSIVE FINE HOMES LTD,ACCOMMODATION BED & BREAKFAST,Place,Bed & Breakfast,A56000,0
Royal Borough of Kingston,01/03/2022,70019624,"1,652.00",EXCLUSIVE FINE HOMES LTD,ACCOMMODATION BED & BREAKFAST,Place,Bed & Breakfast,A56000,0
Royal Borough of Kingston,01/03/2022,70019625,"1,512.00",EXCLUSIVE FINE HOMES LTD,ACCOMMODATION BED & BREAKFAST,Place,Bed & Breakfast,A56000,0
Royal Borough of Kingston,01/03/2022,70019626,"1,302.00",EXCLUSIVE FINE HOMES LTD,ACCOMMODATION BED & BREAKFAST,Place,Bed & Breakfast,A56000,0
Royal Borough of Kingston,01/03/2022,70019627,"4,200.00",EXCLUSIVE FINE HOMES LTD,ACCOMMODATION BED & BREAKFAST,Place,Bed & Breakfast,A56000,0
Royal Borough of Kingston,01/03/2022,70019628,"1,904.00",EXCLUSIVE FINE HOMES LTD,ACCOMMODATION BED & BREAKFAST,Place,Bed & Breakfast,A56000,0
Royal Borough of Kingston,01/03/2022,70019711,"4,200.00",EXCLUSIVE FINE HOMES LTD,ACCOMMODATION BED & BREAKFAST,Place,Bed & Breakfast,A56000,0
Royal Borough of Kingston,30/03/2022,90091874,823.33,REDACTED - PERSONAL DATA,PLS LANDLORDS,Place,PSL Payments To Landlords,A22031,0
Royal Borough of Kingston,30/03/2022,90091844,"1,551.00",REDACTED - PERSONAL DATA,PLS LANDLORDS,Place,PSL Payments To Landlords,A22031,0
Royal Borough of Kingston,30/03/2022,90091599,918.33,REDACTED - PERSONAL DATA,PLS LANDLORDS,Place,PSL Payments To Landlords,A22031,0
Royal Borough of Kingston,26/11/2021,70014672,"1,300.00",F H & G LIMITED,LEGAL & PROFESSIONAL SERVICES,Housing Revenue Account,Professional Fees,A44066,0
Royal Borough of Kingston,17/12/2021,70014673,650,F H & G LIMITED,LEGAL & PROFESSIONAL SERVICES,Housing Revenue Account,Professional Fees,A44066,0
Royal Borough of Kingston,10/12/2021,70014674,"3,500.00",F H & G LIMITED,LEGAL & PROFESSIONAL SERVICES,Housing Revenue Account,Professional Fees,A44066,0
Royal Borough of Kingston,10/12/2021,70014675,650,F H & G LIMITED,LEGAL & PROFESSIONAL SERVICES,Housing Revenue Account,Professional Fees,A44066,0
Royal Borough of Kingston,03/12/2021,70014676,"1,500.00",F H & G LIMITED,LEGAL & PROFESSIONAL SERVICES,Housing Revenue Account,Professional Fees,A44066,0
Royal Borough of Kingston,05/11/2021,70014830,500,F H & G LIMITED,LEGAL & PROFESSIONAL SERVICES,Housing Revenue Account,Professional Fees,A44066,0
Royal Borough of Kingston,07/01/2022,70015566,500,F H & G LIMITED,LEGAL & PROFESSIONAL SERVICES,Housing Revenue Account,Professional Fees,A44066,0
Royal Borough of Kingston,15/10/2021,70015858,"1,300.00",F H & G LIMITED,LEGAL & PROFESSIONAL SERVICES,Housing Revenue Account,Professional Fees,A44066,0
Royal Borough of Kingston,21/01/2022,70016650,443.72,F H & G LIMITED,LEGAL & PROFESSIONAL SERVICES,Housing Revenue Account,Professional Fees,A44066,0
Royal Borough of Kingston,21/01/2022,70016651,"2,600.00",F H & G LIMITED,LEGAL & PROFESSIONAL SERVICES,Housing Revenue Account,Professional Fees,A44066,0
Royal Borough of Kingston,04/02/2022,70017594,"3,000.00",F H & G LIMITED,LEGAL & PROFESSIONAL SERVICES,Housing Revenue Account,Professional Fees,A44066,0
Royal Borough of Kingston,11/02/2022,70018068,650,F H & G LIMITED,LEGAL & PROFESSIONAL SERVICES,Housing Revenue Account,Professional Fees,A44066,0
Royal Borough of Kingston,18/02/2022,70018455,"2,500.00",F H & G LIMITED,LEGAL & PROFESSIONAL SERVICES,Housing Revenue Account,Professional Fees,A44066,0
Royal Borough of Kingston,18/02/2022,70018456,"1,950.00",F H & G LIMITED,LEGAL & PROFESSIONAL SERVICES,Housing Revenue Account,Professional Fees,A44066,0
Royal Borough of Kingston,25/02/2022,70018914,500,F H & G LIMITED,LEGAL & PROFESSIONAL SERVICES,Housing Revenue Account,Professional Fees,A44066,0
Royal Borough of Kingston,25/02/2022,70018915,650,F H & G LIMITED,LEGAL & PROFESSIONAL SERVICES,Housing Revenue Account,Professional Fees,A44066,0
Royal Borough of Kingston,04/03/2022,70019539,500,F H & G LIMITED,LEGAL & PROFESSIONAL SERVICES,Housing Revenue Account,Professional Fees,A44066,0
Royal Borough of Kingston,04/03/2022,70019540,500,F H & G LIMITED,LEGAL & PROFESSIONAL SERVICES,Housing Revenue Account,Professional Fees,A44066,0
Royal Borough of Kingston,11/03/2022,70020027,650,F H & G LIMITED,LEGAL & PROFESSIONAL SERVICES,Housing Revenue Account,Professional Fees,A44066,0
Royal Borough of Kingston,25/03/2022,70021112,"1,950.00",F H & G LIMITED,LEGAL & PROFESSIONAL SERVICES,Housing Revenue Account,Professional Fees,A44066,0
Royal Borough of Kingston,25/03/2022,70021113,"2,000.00",F H & G LIMITED,LEGAL & PROFESSIONAL SERVICES,Housing Revenue Account,Professional Fees,A44066,0
Royal Borough of Kingston,25/03/2022,70021114,650,F H & G LIMITED,LEGAL & PROFESSIONAL SERVICES,Housing Revenue Account,Professional Fees,A44066,0
Royal Borough of Kingston,25/03/2022,70021115,500,F H & G LIMITED,LEGAL & PROFESSIONAL SERVICES,Housing Revenue Account,Professional Fees,A44066,0
Royal Borough of Kingston,30/03/2022,90091887,"1,626.00",REDACTED - PERSONAL DATA,PLS LANDLORDS,Place,PSL Payments To Landlords,A22031,0
Royal Borough of Kingston,23/02/2022,70018797,"3,950.23",F.M. CONWAY LTD,CONSTRUCTION INDUSTRY,Capital Programme,Infrastructure Assets - Project Management,C12000,0
Royal Borough of Kingston,22/02/2022,70018849,"3,765.23",F.M. CONWAY LTD,CONSTRUCTION INDUSTRY,Corporate & Communities,Bridge Repairs & Maintenance,A56035,0
Royal Borough of Kingston,23/12/2021,70018937,"10,965.88",F.M. CONWAY LTD,CONSTRUCTION INDUSTRY,Corporate & Communities,Vehicle Crossings,A56043,0
Royal Borough of Kingston,23/12/2021,70018938,"13,948.55",F.M. CONWAY LTD,CONSTRUCTION INDUSTRY,Corporate & Communities,Vehicle Crossings,A56043,0
Royal Borough of Kingston,25/02/2022,70018944,"4,949.00",F.M. CONWAY LTD,CONSTRUCTION INDUSTRY,Corporate & Communities,Vehicle Crossings,A56043,0
Royal Borough of Kingston,25/02/2022,70018948,"4,959.33",F.M. CONWAY LTD,CONSTRUCTION INDUSTRY,Capital Programme,Infrastructure Assets - Project Management,C12000,0
Royal Borough of Kingston,28/02/2022,70019438,"30,000.00",F.M. CONWAY LTD,CONSTRUCTION INDUSTRY,Capital Programme,Infrastructure Assets - Purchase & Enhancement,C12001,0
Royal Borough of Kingston,28/02/2022,70019439,"40,000.00",F.M. CONWAY LTD,CONSTRUCTION INDUSTRY,Capital Programme,Infrastructure Assets - Purchase & Enhancement,C12001,0
Royal Borough of Kingston,23/03/2022,70021037,"252,096.00",F.M. CONWAY LTD,CONSTRUCTION INDUSTRY,Capital Programme,Infrastructure Assets - Purchase & Enhancement,C12001,0
Royal Borough of Kingston,01/03/2022,90085046,"3,267.00",FAIRFIELD PLAYBOX PLAYGROUP,ACADEMIC INSTNS - OTHER,Schools,2 Yr Old Place Funding,A60000,0
Royal Borough of Kingston,01/03/2022,90085108,"1,276.80",FAIRFIELD PLAYBOX PLAYGROUP,ACADEMIC INSTNS - OTHER,Schools,PVI Providers,A60014,0
Royal Borough of Kingston,26/03/2022,90089473,505,FAMILY INVESTMENT (THREE) LIMITED,SOCIAL SERVICES RESIDENTIAL,Adult Social Care & Health,"Grants, Contributions & Donations",A47005,0
Royal Borough of Kingston,01/03/2022,90090084,"4,375.43",FAMILY INVESTMENT (THREE) LIMITED,SOCIAL SERVICES RESIDENTIAL,Adult Social Care & Health,Independent Placements,A56006,0
Royal Borough of Kingston,30/03/2022,90091572,"1,094.00",REDACTED - PERSONAL DATA,PLS LANDLORDS,Place,PSL Payments To Landlords,A22031,0
Royal Borough of Kingston,01/03/2022,90085081,"2,681.28",REDACTED - PERSONAL DATA,CHILDMINDERS START UP GRANT,Schools,PVI Providers,A60014,0
Royal Borough of Kingston,28/02/2022,70019008,"4,065.00",FERN CONSULTING SERVICES LIMITED,TEMP STAFF & CONSULTANCY,Corporate & Communities,Professional Fees,A44066,0
Royal Borough of Kingston,28/02/2022,70019009,"2,450.00",FERN CONSULTING SERVICES LIMITED,TEMP STAFF & CONSULTANCY,Place,Professional Fees,A44066,0
Royal Borough of Kingston,28/02/2022,70019010,"1,130.00",FERN CONSULTING SERVICES LIMITED,TEMP STAFF & CONSULTANCY,Corporate & Communities,Professional Fees,A44066,0
Royal Borough of Kingston,01/03/2022,90085110,"41,974.40",FERN HILL PRIMARY SCHOOL ,ACADEMIC INSTNS - OTHER,Schools,Miscellaneous Expenses,A49000,0
Royal Borough of Kingston,30/03/2022,90091536,"2,943.50",FERN HILL PRIMARY SCHOOL ,ACADEMIC INSTNS - OTHER,Capital Programme,Payments to Contractors,C14000,0
Royal Borough of Kingston,01/03/2022,70019104,"3,000.00",FLEXRM LIMITED,OPERATIONAL EQUIPMENT/MATERIAL,Corporate & Communities,IT Software Maintenance,A45045,0
Royal Borough of Kingston,28/02/2022,70019454,"4,800.00",FOCUS CONSULTANTS 2010 LLP,LEGAL & PROFESSIONAL SERVICES,Capital Programme,Buildings - Project Management,C14003,0
Royal Borough of Kingston,30/03/2022,90091583,850,FORTYNINE LTD,PLS LANDLORDS,Place,PSL Payments To Landlords,A22031,0
Royal Borough of Kingston,31/01/2022,70017680,754,FOTHERGILL & COMPANY LIMITED,LEGAL & PROFESSIONAL SERVICES,Capital Programme,Council Dwellings - Construction & Renovation,C10002,0
Royal Borough of Kingston,01/03/2022,90085111,"1,723.68",Fountain Nursery Limited,CHILDMINDERS START UP GRANT,Schools,PVI Providers,A60014,0
Royal Borough of Kingston,24/03/2022,90089320,"3,322.81",FOUR SEASONS HEALTHCARE,SOCIAL SERVICES RESIDENTIAL,Adult Social Care & Health,"Grants, Contributions & Donations",A47005,0
Royal Borough of Kingston,26/03/2022,90089371,"1,444.00",FOUR SEASONS HEALTHCARE,SOCIAL SERVICES RESIDENTIAL,Adult Social Care & Health,"Grants, Contributions & Donations",A47005,0
Royal Borough of Kingston,26/03/2022,90089372,"3,106.00",FOUR SEASONS HEALTHCARE,SOCIAL SERVICES RESIDENTIAL,Adult Social Care & Health,"Grants, Contributions & Donations",A47005,0
Royal Borough of Kingston,01/03/2022,90089730,"3,321.43",FOUR SEASONS HEALTHCARE,SOCIAL SERVICES RESIDENTIAL,Adult Social Care & Health,Independent Placements,A56006,0
Royal Borough of Kingston,01/03/2022,90089739,"3,321.43",FOUR SEASONS HEALTHCARE,SOCIAL SERVICES RESIDENTIAL,Adult Social Care & Health,Independent Placements,A56006,0
Royal Borough of Kingston,01/03/2022,90089743,"3,305.49",FOUR SEASONS HEALTHCARE,SOCIAL SERVICES RESIDENTIAL,Adult Social Care & Health,Independent Placements,A56006,0
Royal Borough of Kingston,01/03/2022,90089753,"2,900.71",FOUR SEASONS HEALTHCARE,SOCIAL SERVICES RESIDENTIAL,Adult Social Care & Health,Independent Placements,A56006,0
Royal Borough of Kingston,01/03/2022,90089757,"3,321.43",FOUR SEASONS HEALTHCARE,SOCIAL SERVICES RESIDENTIAL,Adult Social Care & Health,Independent Placements,A56006,0
Royal Borough of Kingston,01/03/2022,90089776,"2,900.71",FOUR SEASONS HEALTHCARE,SOCIAL SERVICES RESIDENTIAL,Adult Social Care & Health,Independent Placements,A56006,0
Royal Borough of Kingston,01/03/2022,90089780,"3,108.41",FOUR SEASONS HEALTHCARE,SOCIAL SERVICES RESIDENTIAL,Adult Social Care & Health,Independent Placements,A56006,0
Royal Borough of Kingston,01/03/2022,90089794,"3,210.71",FOUR SEASONS HEALTHCARE,SOCIAL SERVICES RESIDENTIAL,Adult Social Care & Health,Independent Placements,A56006,0
Royal Borough of Kingston,01/03/2022,90089803,"3,193.00",FOUR SEASONS HEALTHCARE,SOCIAL SERVICES RESIDENTIAL,Adult Social Care & Health,Independent Placements,A56006,0
Royal Borough of Kingston,01/03/2022,90089806,"3,321.43",FOUR SEASONS HEALTHCARE,SOCIAL SERVICES RESIDENTIAL,Adult Social Care & Health,Independent Placements,A56006,0
Royal Borough of Kingston,01/03/2022,90089905,"3,354.64",FOUR SEASONS HEALTHCARE,SOCIAL SERVICES RESIDENTIAL,Adult Social Care & Health,Independent Placements,A56006,0
Royal Borough of Kingston,01/03/2022,90089909,"3,232.86",FOUR SEASONS HEALTHCARE,SOCIAL SERVICES RESIDENTIAL,Adult Social Care & Health,Independent Placements,A56006,0
Royal Borough of Kingston,01/03/2022,90089912,"-2,084.93",FOUR SEASONS HEALTHCARE,SOCIAL SERVICES RESIDENTIAL,Adult Social Care & Health,Independent Placements,A56006,0
Royal Borough of Kingston,01/03/2022,90089923,"3,108.41",FOUR SEASONS HEALTHCARE,SOCIAL SERVICES RESIDENTIAL,Adult Social Care & Health,Independent Placements,A56006,0
Royal Borough of Kingston,30/03/2022,90091563,"1,675.00",REDACTED - PERSONAL DATA,PLS LANDLORDS,Place,PSL Payments To Landlords,A22031,0
Royal Borough of Kingston,30/03/2022,90091863,"1,280.67",REDACTED - PERSONAL DATA,PLS LANDLORDS,Place,PSL Payments To Landlords,A22031,0
Royal Borough of Kingston,26/03/2022,90089478,561,Freshstart Care Solutions Ltd,ACCOMMODATION - OTHER,Adult Social Care & Health,"Grants, Contributions & Donations",A47005,0
Royal Borough of Kingston,01/03/2022,90091404,"16,647.00",Freshstart Care Solutions Ltd,ACCOMMODATION - OTHER,Adult Social Care & Health,Personal Budget - Third Party,A61019,0
Royal Borough of Kingston,04/03/2022,70020589,887,Friends Of Churchfields,SUNDRY SUPPLIER - FINANCE,Adult Social Care & Health,"Grants, Contributions & Donations",A47005,0
Royal Borough of Kingston,05/02/2022,70019423,693.87,FRIENDS OF KINGSTON MUSIC SERVICE,CHARITIES & VOLUNTARY ORGNS,Corporate & Communities,Miscellaneous Expenses,A49000,0
Royal Borough of Kingston,29/12/2018,70020816,595,FRIENDS OF LATCHMERE RECREATION GROUND,CHARITIES & VOLUNTARY ORGNS,Adult Social Care & Health,"Grants, Contributions & Donations",A47005,0
Royal Borough of Kingston,28/02/2022,70019427,500,FRIENDS OF MANOR PARK,GRANTS & EX GRATIA PAYMENTS,Adult Social Care & Health,"Grants, Contributions & Donations",A47005,0
Royal Borough of Kingston,08/03/2022,70019834,"2,000.00",FRIENDS OF MANOR PARK,GRANTS & EX GRATIA PAYMENTS,Adult Social Care & Health,Other Private Contractors - Third Party,A56080,0
Royal Borough of Kingston,08/03/2022,70019929,655.15,FRIENDS OF MANOR PARK,GRANTS & EX GRATIA PAYMENTS,Adult Social Care & Health,"Grants, Contributions & Donations",A47005,0
Royal Borough of Kingston,17/12/2021,70020206,"2,000.00",FULHAM FOOTBALL CLUB FOUNDATION,ACADEMIC INSTNS - OTHER,Adult Social Care & Health,"Grants, Contributions & Donations",A47005,0
Royal Borough of Kingston,08/03/2022,70019669,"4,690.00",Full Cycle Bicyle Project CIC,GRANTS & EX GRATIA PAYMENTS,Adult Social Care & Health,Community Initiatives,A44288,0
Royal Borough of Kingston,01/03/2022,90085083,"1,149.12",FUN EXPLORERS CHILDCARE,CHILDMINDERS START UP GRANT,Schools,PVI Providers,A60014,0
Royal Borough of Kingston,22/03/2022,70020888,"1,595.62",REDACTED - PERSONAL DATA,SUNDRY SUPPLIER - HOUSING,Place,Prevention Of Homelessness,A44141,0
Royal Borough of Kingston,22/03/2022,70020889,"1,600.00",REDACTED - PERSONAL DATA,SUNDRY SUPPLIER - HOUSING,Place,Housing Incentives,A62025,0
Royal Borough of Kingston,01/03/2022,90085175,766.08,KIKO' S CHILDCARE,CHILDMINDERS START UP GRANT,Schools,PVI Providers,A60014,0
Royal Borough of Kingston,30/03/2022,90091728,"1,053.00",REDACTED - PERSONAL DATA,PLS LANDLORDS,Place,PSL Payments To Landlords,A22031,0
Royal Borough of Kingston,30/03/2022,90091553,"1,094.34",REDACTED - PERSONAL DATA,PLS LANDLORDS,Place,PSL Payments To Landlords,A22031,0
Royal Borough of Kingston,30/03/2022,90091868,"1,094.34",REDACTED - PERSONAL DATA,PLS LANDLORDS,Place,PSL Payments To Landlords,A22031,0
Royal Borough of Kingston,28/02/2022,70019390,"2,688.00",GAS CONTRACT SERVICES LTD,LEGAL & PROFESSIONAL SERVICES,Housing Revenue Account,Gas Servicing & Heating Repairs,A20005,0
Royal Borough of Kingston,30/03/2022,90091663,"1,240.00",GATES & BRADSHAW (UK) LTD,PLS LANDLORDS,Place,PSL Payments To Landlords,A22031,0
Royal Borough of Kingston,25/02/2022,70019163,"4,549.74",KINGSTON HOSPITAL NHS TRUST,CENTRAL & LOCAL GOVERNMENT,Adult Social Care & Health,Other Private Contractors - Third Party,A56080,0
Royal Borough of Kingston,01/03/2022,90085019,777.6,KINGSTON HOSPITAL NHS TRUST,SOCIAL SERVICES DAY CARE,Schools,PVI Providers,A60014,0
Royal Borough of Kingston,01/03/2022,90085050,"4,537.50",KINGSTON HOSPITAL NHS TRUST,SOCIAL SERVICES DAY CARE,Schools,2 Yr Old Place Funding,A60000,0
Royal Borough of Kingston,01/03/2022,90085117,"41,496.00",KINGSTON HOSPITAL NHS TRUST,SOCIAL SERVICES DAY CARE,Schools,PVI Providers,A60014,0
Royal Borough of Kingston,26/03/2022,90089468,"1,792.00",GENEVA ROAD LIMITED,SOCIAL SERVICES RESIDENTIAL,Adult Social Care & Health,"Grants, Contributions & Donations",A47005,0
